Workbook

Sheet Main
B10: 2020-04-16
B12: Sheet No. | C12: Template Name | D12: Summary
B13: 1 | C13: Future Intra | D13: For Intraday trading in F&O segment
B14: 2 | C14: Cash Intra | D14: For Intraday trading in cash market segment
B15: 3 | C15: Mid-cap Intra | D15: For Intraday trading in Mid-cap stocks
B16: 4 | C16: Bulk Deals | D16: Reveals Bulk Deals carried on NSE & BSE
B17: 5 | C17: Call Tracker
K27: `

Sheet Future Intra
M5: Back to Main Page
A6: FOR INTRA DAY TRADING | L6: =Main!B10 -> 2020-04-16
A9: Sr.no | B9: Sector | C9: Scrip | D9: CLOSE RATE | E9: Pivot Point | F9: Supports | I9: Resistances
B10: Sector | D10: Point | E10: Point | F10: S1 | G10: S2 | H10: S3 | I10: R1 | J10: R2 | K10: R3 | L10: HIGH | M10: LOW | N10: OI | O10: % Change in OI
A11: 1 | B11: Index | C11: BANKNIFTY | D11: 18989.70 | E11: 19290.03 | F11: 18361.07 | G11: 17732.43 | H11: 16803.47 | I11: 19918.67 | J11: 20847.63 | K11: 21476.27 | L11: 20219 | M11: 18661.4 | N11: 1350220 | O11: 15.43%
A12: 2 | B12: Index | C12: NIFTY | D12: 8930.30 | E12: 9019.78 | F12: 8757.22 | G12: 8584.13 | H12: 8321.57 | I12: 9192.87 | J12: 9455.43 | K12: 9628.52 | L12: 9282.35 | M12: 8846.7 | N12: 11068425 | O12: -3.91%
A13: 3 | B13: Index | C13: NIFTYIT | D13: 12601.00 | E13: 12655.67 | F13: 12360.33 | G13: 12119.67 | H13: 11824.33 | I13: 12896.33 | J13: 13191.67 | K13: 13432.33 | L13: 12951 | M13: 12415 | N13: 2100 | O13: 27.27%
A14: 4 | B14: Cement | C14: ACC | D14: 1135.10 | E14: 1125.55 | F14: 1087.90 | G14: 1040.70 | H14: 1003.05 | I14: 1172.75 | J14: 1210.40 | K14: 1257.60 | L14: 1163.2 | M14: 1078.35 | N14: 1698400 | O14: -14.57%
A15: 5 | B15: Others | C15: ADANIENT | D15: 146.05 | E15: 147.32 | F15: 143.03 | G15: 140.02 | H15: 135.73 | I15: 150.33 | J15: 154.62 | K15: 157.63 | L15: 151.6 | M15: 144.3 | N15: 17500000 | O15: 5.17%
A16: 6 | B16: Others | C16: ADANIPORTS | D16: 269.65 | E16: 272.50 | F16: 263.75 | G16: 257.85 | H16: 249.10 | I16: 278.40 | J16: 287.15 | K16: 293.05 | L16: 281.25 | M16: 266.6 | N16: 31110000 | O16: 1.27%
A17: 7 | B17: Power | C17: ADANIPOWER | D17: 29.55 | E17: 30.07 | F17: 28.78 | G17: 28.02 | H17: 26.73 | I17: 30.83 | J17: 32.12 | K17: 32.88 | L17: 31.35 | M17: 29.3 | N17: 60020000 | O17: 4.15%
A18: 8 | B18: Automobile | C18: AMARAJABAT | D18: 513.85 | E18: 516.27 | F18: 499.53 | G18: 485.22 | H18: 468.48 | I18: 530.58 | J18: 547.32 | K18: 561.63 | L18: 533 | M18: 501.95 | N18: 976000 | O18: 15.31%
A19: 9 | B19: Cement | C19: AMBUJACEM | D19: 169.05 | E19: 170.32 | F19: 165.83 | G19: 162.62 | H19: 158.13 | I19: 173.53 | J19: 178.02 | K19: 181.23 | L19: 174.8 | M19: 167.1 | N19: 19977500 | O19: -1.06%
A20: 10 | B20: Others | C20: APOLLOHOSP | D20: 1349.15 | E20: 1355.13 | F20: 1295.37 | G20: 1241.58 | H20: 1181.82 | I20: 1408.92 | J20: 1468.68 | K20: 1522.47 | L20: 1414.9 | M20: 1301.35 | N20: 798500 | O20: -6.11%
A21: 11 | B21: Automobile | C21: APOLLOTYRE | D21: 88.00 | E21: 88.17 | F21: 86.03 | G21: 84.07 | H21: 81.93 | I21: 90.13 | J21: 92.27 | K21: 94.23 | L21: 90.3 | M21: 86.2 | N21: 5562000 | O21: 2.37%
A22: 12 | B22: Automobile | C22: ASHOKLEY | D22: 46.85 | E22: 48.20 | F22: 44.85 | G22: 42.85 | H22: 39.50 | I22: 50.20 | J22: 53.55 | K22: 55.55 | L22: 51.55 | M22: 46.2 | N22: 33960000 | O22: 0.21%
A23: 13 | B23: FMCG | C23: ASIANPAINT | D23: 1716.60 | E23: 1712.90 | F23: 1686.60 | G23: 1656.60 | H23: 1630.30 | I23: 1742.90 | J23: 1769.20 | K23: 1799.20 | L23: 1739.2 | M23: 1682.9 | N23: 5855400 | O23: -3.13%
A24: 14 | B24: Pharma | C24: AUROPHARMA | D24: 516.50 | E24: 518.02 | F24: 496.88 | G24: 477.27 | H24: 456.13 | I24: 537.63 | J24: 558.77 | K24: 578.38 | L24: 539.15 | M24: 498.4 | N24: 7917000 | O24: -2.37%
A25: 15 | B25: Banking | C25: AXISBANK | D25: 416.90 | E25: 427.35 | F25: 402.10 | G25: 387.30 | H25: 362.05 | I25: 442.15 | J25: 467.40 | K25: 482.20 | L25: 452.6 | M25: 412.55 | N25: 49278000 | O25: -1.01%
A26: 16 | B26: Automobile | C26: BAJAJ-AUTO | D26: 2339.50 | E26: 2382.17 | F26: 2282.33 | G26: 2225.17 | H26: 2125.33 | I26: 2439.33 | J26: 2539.17 | K26: 2596.33 | L26: 2482 | M26: 2325 | N26: 1360000 | O26: -2.65%
A27: 17 | B27: Finance | C27: BAJAJFINSV | D27: 4601.35 | E27: 4586.83 | F27: 4478.67 | G27: 4355.98 | H27: 4247.82 | I27: 4709.52 | J27: 4817.68 | K27: 4940.37 | L27: 4695 | M27: 4464.15 | N27: 721375 | O27: -5.59%
A28: 18 | B28: Finance | C28: BAJFINANCE | D28: 2188.35 | E28: 2248.57 | F28: 2114.18 | G28: 2040.02 | H28: 1905.63 | I28: 2322.73 | J28: 2457.12 | K28: 2531.28 | L28: 2382.95 | M28: 2174.4 | N28: 4817500 | O28: 1.11%
A29: 19 | B29: Automobile | C29: BALKRISIND | D29: 875.60 | E29: 881.77 | F29: 854.53 | G29: 833.47 | H29: 806.23 | I29: 902.83 | J29: 930.07 | K29: 951.13 | L29: 909 | M29: 860.7 | N29: 570400 | O29: -4.04%
A30: 20 | B30: Banking | C30: BANDHANBNK | D30: 187.30 | E30: 195.40 | F30: 177.55 | G30: 167.80 | H30: 149.95 | I30: 205.15 | J30: 223.00 | K30: 232.75 | L30: 213.25 | M30: 185.65 | N30: 11080800 | O30: 8.29%
A31: 21 | B31: Banking | C31: BANKBARODA | D31: 48.95 | E31: 49.83 | F31: 47.52 | G31: 46.08 | H31: 43.77 | I31: 51.27 | J31: 53.58 | K31: 55.02 | L31: 52.15 | M31: 48.4 | N31: 37227600 | O31: 3.02%
A32: 22 | B32: FMCG | C32: BATAINDIA | D32: 1207.05 | E32: 1216.12 | F32: 1184.33 | G32: 1161.62 | H32: 1129.83 | I32: 1238.83 | J32: 1270.62 | K32: 1293.33 | L32: 1247.9 | M32: 1193.4 | N32: 1386550 | O32: 0.32%
A33: 23 | B33: Capital_Goods | C33: BEL | D33: 69.80 | E33: 70.87 | F33: 68.08 | G33: 66.37 | H33: 63.58 | I33: 72.58 | J33: 75.37 | K33: 77.08 | L33: 73.65 | M33: 69.15 | N33: 15462000 | O33: -5.95%
A34: 24 | B34: FMCG | C34: BERGEPAINT | D34: 513.60 | E34: 512.27 | F34: 500.13 | G34: 486.67 | H34: 474.53 | I34: 525.73 | J34: 537.87 | K34: 551.33 | L34: 524.4 | M34: 498.8 | N34: 4824600 | O34: -1.31%
A35: 25 | B35: Automobile | C35: BHARATFORG | D35: 237.80 | E35: 242.85 | F35: 230.85 | G35: 223.90 | H35: 211.90 | I35: 249.80 | J35: 261.80 | K35: 268.75 | L35: 254.85 | M35: 235.9 | N35: 6644300 | O35: 0.20%
A36: 26 | B36: Telecom | C36: BHARTIARTL | D36: 511.10 | E36: 517.40 | F36: 498.40 | G36: 485.70 | H36: 466.70 | I36: 530.10 | J36: 549.10 | K36: 561.80 | L36: 536.4 | M36: 504.7 | N36: 52938600 | O36: -5.06%
A37: 27 | B37: Capital_Goods | C37: BHEL | D37: 21.55 | E37: 22.05 | F37: 20.80 | G37: 20.05 | H37: 18.80 | I37: 22.80 | J37: 24.05 | K37: 24.80 | L37: 23.3 | M37: 21.3 | N37: 54496000 | O37: 6.42%
A38: 28 | B38: Pharma | C38: BIOCON | D38: 338.20 | E38: 340.57 | F38: 329.28 | G38: 320.37 | H38: 309.08 | I38: 349.48 | J38: 360.77 | K38: 369.68 | L38: 351.85 | M38: 331.65 | N38: 10428200 | O38: -3.45%
A39: 29 | B39: Automobile | C39: BOSCHLTD | D39: 10528.85 | E39: 10564.78 | F39: 10164.17 | G39: 9799.48 | H39: 9398.87 | I39: 10929.47 | J39: 11330.08 | K39: 11694.77 | L39: 10965.4 | M39: 10200.1 | N39: 125560 | O39: 3.36%
A40: 30 | B40: Oil_Gas | C40: BPCL | D40: 354.50 | E40: 358.92 | F40: 346.98 | G40: 339.47 | H40: 327.53 | I40: 366.43 | J40: 378.37 | K40: 385.88 | L40: 370.85 | M40: 351.4 | N40: 15699600 | O40: -3.09%
A41: 31 | B41: FMCG | C41: BRITANNIA | D41: 2846.90 | E41: 2824.35 | F41: 2744.70 | G41: 2642.50 | H41: 2562.85 | I41: 2926.55 | J41: 3006.20 | K41: 3108.40 | L41: 2904 | M41: 2722.15 | N41: 1136000 | O41: -0.96%
A42: 32 | B42: Pharma | C42: CADILAHC | D42: 340.60 | E42: 343.82 | F42: 328.53 | G42: 316.47 | H42: 301.18 | I42: 355.88 | J42: 371.17 | K42: 383.23 | L42: 359.1 | M42: 331.75 | N42: 4562800 | O42: -3.40%
A43: 33 | B43: Banking | C43: CANBK | D43: 86.75 | E43: 88.43 | F43: 84.32 | G43: 81.88 | H43: 77.77 | I43: 90.87 | J43: 94.98 | K43: 97.42 | L43: 92.55 | M43: 86 | N43: 7256600 | O43: 0.22%
A44: 34 | B44: Textile | C44: CENTURYTEX | D44: 321.35 | E44: 328.58 | F44: 310.47 | G44: 299.58 | H44: 281.47 | I44: 339.47 | J44: 357.58 | K44: 368.47 | L44: 346.7 | M44: 317.7 | N44: 1761000 | O44: -0.68%
A45: 35 | B45: Power | C45: CESC | D45: 504.40 | E45: 511.62 | F45: 494.93 | G45: 485.47 | H45: 468.78 | I45: 521.08 | J45: 537.77 | K45: 547.23 | L45: 528.3 | M45: 502.15 | N45: 904000 | O45: -5.12%
A46: 36 | B46: Finance | C46: CHOLAFIN | D46: 153.95 | E46: 154.58 | F46: 145.32 | G46: 136.68 | H46: 127.42 | I46: 163.22 | J46: 172.48 | K46: 181.12 | L46: 163.85 | M46: 145.95 | N46: 4332500 | O46: -5.82%
A47: 37 | B47: Pharma | C47: CIPLA | D47: 594.70 | E47: 597.33 | F47: 578.52 | G47: 562.33 | H47: 543.52 | I47: 613.52 | J47: 632.33 | K47: 648.52 | L47: 616.15 | M47: 581.15 | N47: 11013550 | O47: 3.79%
A48: 38 | B48: Others | C48: COALINDIA | D48: 147.00 | E48: 148.38 | F48: 144.62 | G48: 142.23 | H48: 138.47 | I48: 150.77 | J48: 154.53 | K48: 156.92 | L48: 152.15 | M48: 146 | N48: 23047200 | O48: -2.50%
A49: 39 | B49: FMCG | C49: COLPAL | D49: 1393.55 | E49: 1393.37 | F49: 1360.18 | G49: 1326.82 | H49: 1293.63 | I49: 1426.73 | J49: 1459.92 | K49: 1493.28 | L49: 1426.55 | M49: 1360 | N49: 1824900 | O49: 15.35%
A50: 40 | B50: Others | C50: CONCOR | D50: 384.60 | E50: 388.70 | F50: 378.40 | G50: 372.20 | H50: 361.90 | I50: 394.90 | J50: 405.20 | K50: 411.40 | L50: 399 | M50: 382.5 | N50: 3693369 | O50: -1.13%
A51: 41 | B51: Capital_Goods | C51: CUMMINSIND | D51: 375.40 | E51: 375.67 | F51: 362.83 | G51: 350.27 | H51: 337.43 | I51: 388.23 | J51: 401.07 | K51: 413.63 | L51: 388.5 | M51: 363.1 | N51: 1433700 | O51: -16.47%
A52: 42 | B52: FMCG | C52: DABUR | D52: 502.60 | E52: 497.02 | F52: 489.68 | G52: 476.77 | H52: 469.43 | I52: 509.93 | J52: 517.27 | K52: 530.18 | L52: 504.35 | M52: 484.1 | N52: 10766250 | O52: -1.54%
A53: 43 | B53: Pharma | C53: DIVISLAB | D53: 2399.85 | E53: 2386.57 | F53: 2348.28 | G53: 2296.72 | H53: 2258.43 | I53: 2438.13 | J53: 2476.42 | K53: 2527.98 | L53: 2424.85 | M53: 2335 | N53: 2201600 | O53: 2.36%
A54: 44 | B54: Realty | C54: DLF | D54: 140.15 | E54: 140.92 | F54: 136.93 | G54: 133.72 | H54: 129.73 | I54: 144.13 | J54: 148.12 | K54: 151.33 | L54: 144.9 | M54: 137.7 | N54: 25865400 | O54: 0.42%
A55: 45 | B55: Pharma | C55: DRREDDY | D55: 3810.55 | E55: 3825.37 | F55: 3753.33 | G55: 3696.12 | H55: 3624.08 | I55: 3882.58 | J55: 3954.62 | K55: 4011.83 | L55: 3897.4 | M55: 3768.15 | N55: 2095000 | O55: 0.54%
A56: 46 | B56: Automobile | C56: EICHERMOT | D56: 13311.00 | E56: 13454.70 | F56: 12959.40 | G56: 12607.80 | H56: 12112.50 | I56: 13806.30 | J56: 14301.60 | K56: 14653.20 | L56: 13950 | M56: 13103.1 | N56: 267810 | O56: -0.87%
A57: 47 | B57: Finance | C57: EQUITAS | D57: 39.10 | E57: 40.53 | F57: 37.27 | G57: 35.43 | H57: 32.17 | I57: 42.37 | J57: 45.63 | K57: 47.47 | L57: 43.8 | M57: 38.7 | N57: 6938400 | O57: -1.12%
A58: 48 | B58: Automobile | C58: ESCORTS | D58: 715.75 | E58: 731.33 | F58: 679.42 | G58: 643.08 | H58: 591.17 | I58: 767.67 | J58: 819.58 | K58: 855.92 | L58: 783.25 | M58: 695 | N58: 1322200 | O58: 4.07%
A59: 49 | B59: Automobile | C59: EXIDEIND | D59: 140.95 | E59: 142.82 | F59: 137.68 | G59: 134.42 | H59: 129.28 | I59: 146.08 | J59: 151.22 | K59: 154.48 | L59: 147.95 | M59: 139.55 | N59: 3819300 | O59: 6.90%
A60: 50 | B60: Banking | C60: FEDERALBNK | D60: 41.55 | E60: 42.20 | F60: 40.40 | G60: 39.25 | H60: 37.45 | I60: 43.35 | J60: 45.15 | K60: 46.30 | L60: 44 | M60: 41.05 | N60: 42917000 | O60: 3.02%
A61: 51 | B61: Oil_Gas | C61: GAIL | D61: 86.90 | E61: 87.80 | F61: 85.50 | G61: 84.10 | H61: 81.80 | I61: 89.20 | J61: 91.50 | K61: 92.90 | L61: 90.1 | M61: 86.4 | N61: 25576530 | O61: 0.10%
A62: 52 | B62: Pharma | C62: GLENMARK | D62: 321.25 | E62: 324.97 | F62: 306.98 | G62: 292.72 | H62: 274.73 | I62: 339.23 | J62: 357.22 | K62: 371.48 | L62: 342.95 | M62: 310.7 | N62: 2534000 | O62: -5.14%
A63: 53 | B63: Infrastructure | C63: GMRINFRA | D63: 17.00 | E63: 17.18 | F63: 16.72 | G63: 16.43 | H63: 15.97 | I63: 17.47 | J63: 17.93 | K63: 18.22 | L63: 17.65 | M63: 16.9 | N63: 59805000 | O63: -7.52%
A64: 54 | B64: FMCG | C64: GODREJCP | D64: 572.00 | E64: 577.85 | F64: 556.20 | G64: 540.40 | H64: 518.75 | I64: 593.65 | J64: 615.30 | K64: 631.10 | L64: 599.5 | M64: 562.05 | N64: 6051200 | O64: -0.22%
A65: 55 | B65: Cement | C65: GRASIM | D65: 535.85 | E65: 546.78 | F65: 519.62 | G65: 503.38 | H65: 476.22 | I65: 563.02 | J65: 590.18 | K65: 606.42 | L65: 573.95 | M65: 530.55 | N65: 19176750 | O65: -1.88%
A66: 56 | B66: Others | C66: HAVELLS | D66: 540.65 | E66: 547.47 | F66: 526.78 | G66: 512.92 | H66: 492.23 | I66: 561.33 | J66: 582.02 | K66: 595.88 | L66: 568.15 | M66: 533.6 | N66: 5873000 | O66: 4.45%
A67: 57 | B67: Technology | C67: HCLTECH | D67: 478.30 | E67: 474.00 | F67: 467.10 | G67: 455.90 | H67: 449.00 | I67: 485.20 | J67: 492.10 | K67: 503.30 | L67: 480.9 | M67: 462.8 | N67: 20798400 | O67: 0.24%
A68: 58 | B68: Finance | C68: HDFC | D68: 1600.95 | E68: 1633.73 | F68: 1557.47 | G68: 1513.98 | H68: 1437.72 | I68: 1677.22 | J68: 1753.48 | K68: 1796.97 | L68: 1710 | M68: 1590.25 | N68: 28580250 | O68: 0.22%
A69: 59 | B69: Banking | C69: HDFCBANK | D69: 862.60 | E69: 875.77 | F69: 826.63 | G69: 790.67 | H69: 741.53 | I69: 911.73 | J69: 960.87 | K69: 996.83 | L69: 924.9 | M69: 839.8 | N69: 32359000 | O69: 0.36%
A70: 60 | B70: Finance | C70: HDFCLIFE | D70: 472.80 | E70: 478.27 | F70: 464.53 | G70: 456.27 | H70: 442.53 | I70: 486.53 | J70: 500.27 | K70: 508.53 | L70: 492 | M70: 470 | N70: 10193400 | O70: -1.29%
A71: 61 | B71: Automobile | C71: HEROMOTOCO | D71: 1831.10 | E71: 1879.40 | F71: 1772.70 | G71: 1714.30 | H71: 1607.60 | I71: 1937.80 | J71: 2044.50 | K71: 2102.90 | L71: 1986.1 | M71: 1821 | N71: 2040400 | O71: 2.26%
A72: 62 | B72: Metals | C72: HINDALCO | D72: 115.50 | E72: 117.93 | F72: 111.77 | G72: 108.03 | H72: 101.87 | I72: 121.67 | J72: 127.83 | K72: 131.57 | L72: 124.1 | M72: 114.2 | N72: 30261000 | O72: -2.71%
A73: 63 | B73: Oil_Gas | C73: HINDPETRO | D73: 209.15 | E73: 212.53 | F73: 203.67 | G73: 198.18 | H73: 189.32 | I73: 218.02 | J73: 226.88 | K73: 232.37 | L73: 221.4 | M73: 207.05 | N73: 12358500 | O73: 11.29%
A74: 64 | B74: FMCG | C74: HINDUNILVR | D74: 2464.05 | E74: 2448.78 | F74: 2400.27 | G74: 2336.48 | H74: 2287.97 | I74: 2512.57 | J74: 2561.08 | K74: 2624.87 | L74: 2497.3 | M74: 2385 | N74: 13561200 | O74: 44.82%
A75: 65 | B75: Finance | C75: IBULHSGFIN | D75: 91.20 | E75: 93.18 | F75: 88.07 | G75: 84.93 | H75: 79.82 | I75: 96.32 | J75: 101.43 | K75: 104.57 | L75: 98.3 | M75: 90.05 | N75: 9750000 | O75: 3.21%
A76: 66 | B76: Banking | C76: ICICIBANK | D76: 327.80 | E76: 335.43 | F76: 317.27 | G76: 306.73 | H76: 288.57 | I76: 345.97 | J76: 364.13 | K76: 374.67 | L76: 353.6 | M76: 324.9 | N76: 82229125 | O76: -0.87%
A77: 67 | B77: Finance | C77: ICICIPRULI | D77: 330.70 | E77: 338.40 | F77: 319.50 | G77: 308.30 | H77: 289.40 | I77: 349.60 | J77: 368.50 | K77: 379.70 | L77: 357.3 | M77: 327.2 | N77: 7528500 | O77: 1.60%
A78: 68 | B78: Telecom | C78: IDEA | D78: 4.25 | E78: 4.40 | F78: 3.90 | G78: 3.55 | H78: 3.05 | I78: 4.75 | J78: 5.25 | K78: 5.60 | L78: 4.9 | M78: 4.05 | N78: 292432000 | O78: -11.16%
A79: 69 | B79: Banking | C79: IDFCFIRSTB | D79: 22.65 | E79: 22.63 | F79: 22.07 | G79: 21.48 | H79: 20.92 | I79: 23.22 | J79: 23.78 | K79: 24.37 | L79: 23.2 | M79: 22.05 | N79: 122820000 | O79: 3.97%
A80: 70 | B80: Oil_Gas | C80: IGL | D80: 455.30 | E80: 456.12 | F80: 446.18 | G80: 437.07 | H80: 427.13 | I80: 465.23 | J80: 475.17 | K80: 484.28 | L80: 466.05 | M80: 447 | N80: 4897750 | O80: 4.34%
A81: 71 | B81: Others | C81: INDIGO | D81: 1009.30 | E81: 1013.73 | F81: 989.67 | G81: 970.03 | H81: 945.97 | I81: 1033.37 | J81: 1057.43 | K81: 1077.07 | L81: 1037.8 | M81: 994.1 | N81: 3340200 | O81: -2.26%
A82: 72 | B82: Banking | C82: INDUSINDBK | D82: 424.45 | E82: 428.08 | F82: 410.42 | G82: 396.38 | H82: 378.72 | I82: 442.12 | J82: 459.78 | K82: 473.82 | L82: 445.75 | M82: 414.05 | N82: 17125600 | O82: -4.36%
A83: 73 | B83: Telecom | C83: INFRATEL | D83: 174.60 | E83: 176.02 | F83: 171.08 | G83: 167.57 | H83: 162.63 | I83: 179.53 | J83: 184.47 | K83: 187.98 | L83: 180.95 | M83: 172.5 | N83: 6374000 | O83: 0.19%
A84: 74 | B84: Technology | C84: INFY | D84: 641.30 | E84: 645.12 | F84: 634.23 | G84: 627.17 | H84: 616.28 | I84: 652.18 | J84: 663.07 | K84: 670.13 | L84: 656 | M84: 638.05 | N84: 39028800 | O84: 0.35%
A85: 75 | B85: Oil_Gas | C85: IOC | D85: 83.50 | E85: 84.48 | F85: 82.17 | G85: 80.83 | H85: 78.52 | I85: 85.82 | J85: 88.13 | K85: 89.47 | L85: 86.8 | M85: 83.15 | N85: 53204000 | O85: 0.84%
A86: 76 | B86: FMCG | C86: ITC | D86: 189.55 | E86: 188.88 | F86: 183.87 | G86: 178.18 | H86: 173.17 | I86: 194.57 | J86: 199.58 | K86: 205.27 | L86: 193.9 | M86: 183.2 | N86: 68925600 | O86: -3.01%
A87: 77 | B87: Metals | C87: JINDALSTEL | D87: 88.20 | E87: 90.55 | F87: 84.90 | G87: 81.60 | H87: 75.95 | I87: 93.85 | J87: 99.50 | K87: 102.80 | L87: 96.2 | M87: 87.25 | N87: 10930000 | O87: -5.08%
A88: 78 | B88: Metals | C88: JSWSTEEL | D88: 171.35 | E88: 170.72 | F88: 165.93 | G88: 160.52 | H88: 155.73 | I88: 176.13 | J88: 180.92 | K88: 186.33 | L88: 175.5 | M88: 165.3 | N88: 25891100 | O88: -15.49%
A89: 79 | B89: Others | C89: JUBLFOOD | D89: 1394.20 | E89: 1399.67 | F89: 1334.53 | G89: 1274.87 | H89: 1209.73 | I89: 1459.33 | J89: 1524.47 | K89: 1584.13 | L89: 1464.8 | M89: 1340 | N89: 1637000 | O89: 3.02%
A90: 80 | B90: Others | C90: JUSTDIAL | D90: 318.05 | E90: 322.75 | F90: 303.35 | G90: 288.65 | H90: 269.25 | I90: 337.45 | J90: 356.85 | K90: 371.55 | L90: 342.15 | M90: 308.05 | N90: 1346800 | O90: 19.35%
A91: 81 | B91: Banking | C91: KOTAKBANK | D91: 1167.95 | E91: 1191.03 | F91: 1119.07 | G91: 1070.18 | H91: 998.22 | I91: 1239.92 | J91: 1311.88 | K91: 1360.77 | L91: 1263 | M91: 1142.15 | N91: 9402000 | O91: 5.97%
A92: 82 | B92: Finance | C92: L&TFH | D92: 52.70 | E92: 53.57 | F92: 50.48 | G92: 48.27 | H92: 45.18 | I92: 55.78 | J92: 58.87 | K92: 61.08 | L92: 56.65 | M92: 51.35 | N92: 21649600 | O92: 3.18%
A93: 83 | B93: Finance | C93: LICHSGFIN | D93: 247.90 | E93: 253.30 | F93: 241.35 | G93: 234.80 | H93: 222.85 | I93: 259.85 | J93: 271.80 | K93: 278.35 | L93: 265.25 | M93: 246.75 | N93: 7832500 | O93: 2.50%
A94: 84 | B94: Capital_Goods | C94: LT | D94: 881.70 | E94: 893.77 | F94: 859.98 | G94: 838.27 | H94: 804.48 | I94: 915.48 | J94: 949.27 | K94: 970.98 | L94: 927.55 | M94: 872.05 | N94: 11736000 | O94: -3.55%
A95: 85 | B95: Pharma | C95: LUPIN | D95: 813.25 | E95: 821.10 | F95: 787.15 | G95: 761.05 | H95: 727.10 | I95: 847.20 | J95: 881.15 | K95: 907.25 | L95: 855.05 | M95: 795 | N95: 9880500 | O95: 2.05%
A96: 86 | B96: Automobile | C96: M&M | D96: 353.50 | E96: 361.07 | F96: 341.23 | G96: 328.97 | H96: 309.13 | I96: 373.33 | J96: 393.17 | K96: 405.43 | L96: 380.9 | M96: 348.8 | N96: 13814000 | O96: -0.73%
A97: 87 | B97: Finance | C97: M&MFIN | D97: 156.20 | E97: 160.30 | F97: 150.90 | G97: 145.60 | H97: 136.20 | I97: 165.60 | J97: 175.00 | K97: 180.30 | L97: 169.7 | M97: 155 | N97: 10590400 | O97: 2.40%
A98: 88 | B98: Finance | C98: MANAPPURAM | D98: 102.40 | E98: 104.77 | F98: 98.63 | G98: 94.87 | H98: 88.73 | I98: 108.53 | J98: 114.67 | K98: 118.43 | L98: 110.9 | M98: 101 | N98: 10230000 | O98: -6.32%
A99: 89 | B99: FMCG | C99: MARICO | D99: 304.05 | E99: 301.95 | F99: 293.10 | G99: 282.15 | H99: 273.30 | I99: 312.90 | J99: 321.75 | K99: 332.70 | L99: 310.8 | M99: 291 | N99: 10452000 | O99: 5.17%
A100: 90 | B100: Automobile | C100: MARUTI | D100: 5111.75 | E100: 5174.65 | F100: 4988.10 | G100: 4864.45 | H100: 4677.90 | I100: 5298.30 | J100: 5484.85 | K100: 5608.50 | L100: 5361.2 | M100: 5051 | N100: 2205800 | O100: -1.90%
A101: 91 | B101: FMCG | C101: MCDOWELL-N | D101: 561.35 | E101: 562.47 | F101: 545.53 | G101: 529.72 | H101: 512.78 | I101: 578.28 | J101: 595.22 | K101: 611.03 | L101: 579.4 | M101: 546.65 | N101: 9552500 | O101: 2.33%
A102: 92 | B102: Finance | C102: MFSL | D102: 395.35 | E102: 390.63 | F102: 367.37 | G102: 339.38 | H102: 316.12 | I102: 418.62 | J102: 441.88 | K102: 469.87 | L102: 413.9 | M102: 362.65 | N102: 939900 | O102: -33.06%
A103: 93 | B103: Oil_Gas | C103: MGL | D103: 939.10 | E103: 944.23 | F103: 922.87 | G103: 906.63 | H103: 885.27 | I103: 960.47 | J103: 981.83 | K103: 998.07 | L103: 965.6 | M103: 928 | N103: 1381800 | O103: -4.04%
A104: 94 | B104: Technology | C104: MINDTREE | D104: 743.05 | E104: 741.00 | F104: 717.55 | G104: 692.05 | H104: 668.60 | I104: 766.50 | J104: 789.95 | K104: 815.45 | L104: 764.45 | M104: 715.5 | N104: 860000 | O104: -2.27%
A105: 95 | B105: Automobile | C105: MOTHERSUMI | D105: 71.10 | E105: 70.28 | F105: 65.72 | G105: 60.33 | H105: 55.77 | I105: 75.67 | J105: 80.23 | K105: 85.62 | L105: 74.85 | M105: 64.9 | N105: 22765000 | O105: 6.65%
A106: 96 | B106: Automobile | C106: MRF | D106: 57423.75 | E106: 57483.00 | F106: 56566.00 | G106: 55708.25 | H106: 54791.25 | I106: 58340.75 | J106: 59257.75 | K106: 60115.50 | L106: 58400 | M106: 56625.25 | N106: 16020 | O106: -0.68%
A107: 97 | B107: Finance | C107: MUTHOOTFIN | D107: 694.75 | E107: 705.17 | F107: 668.33 | G107: 641.92 | H107: 605.08 | I107: 731.58 | J107: 768.42 | K107: 794.83 | L107: 742 | M107: 678.75 | N107: 1897500 | O107: 7.11%
A108: 98 | B108: Metals | C108: NATIONALUM | D108: 30.05 | E108: 30.38 | F108: 29.32 | G108: 28.58 | H108: 27.52 | I108: 31.12 | J108: 32.18 | K108: 32.92 | L108: 31.45 | M108: 29.65 | N108: 18392400 | O108: 1.95%
A109: 99 | B109: Others | C109: NAUKRI | D109: 2369.40 | E109: 2332.13 | F109: 2269.27 | G109: 2169.13 | H109: 2106.27 | I109: 2432.27 | J109: 2495.13 | K109: 2595.27 | L109: 2395 | M109: 2232 | N109: 641200 | O109: -1.84%
A110: 100 | B110: Infrastructure | C110: NCC | D110: 25.50 | E110: 25.85 | F110: 24.30 | G110: 23.10 | H110: 21.55 | I110: 27.05 | J110: 28.60 | K110: 29.80 | L110: 27.4 | M110: 24.65 | N110: 19926000 | O110: -17.14%
A111: 101 | B111: FMCG | C111: NESTLEIND | D111: 17380.70 | E111: 17185.28 | F111: 16920.97 | G111: 16461.23 | H111: 16196.92 | I111: 17645.02 | J111: 17909.33 | K111: 18369.07 | L111: 17449.6 | M111: 16725.55 | N111: 351250 | O111: -2.67%
A112: 102 | B112: Technology | C112: NIITTECH | D112: 1086.40 | E112: 1092.62 | F112: 1054.23 | G112: 1022.07 | H112: 983.68 | I112: 1124.78 | J112: 1163.17 | K112: 1195.33 | L112: 1131 | M112: 1060.45 | N112: 344250 | O112: 10.07%
A113: 103 | B113: Metals | C113: NMDC | D113: 82.55 | E113: 83.65 | F113: 80.75 | G113: 78.95 | H113: 76.05 | I113: 85.45 | J113: 88.35 | K113: 90.15 | L113: 86.55 | M113: 81.85 | N113: 23820000 | O113: -1.19%
A114: 104 | B114: Power | C114: NTPC | D114: 90.10 | E114: 91.22 | F114: 88.13 | G114: 86.17 | H114: 83.08 | I114: 93.18 | J114: 96.27 | K114: 98.23 | L114: 94.3 | M114: 89.25 | N114: 42172800 | O114: -6.82%
A115: 105 | B115: Oil_Gas | C115: OIL | D115: 89.25 | E115: 89.30 | F115: 87.20 | G115: 85.15 | H115: 83.05 | I115: 91.35 | J115: 93.45 | K115: 95.50 | L115: 91.4 | M115: 87.25 | N115: 5234460 | O115: -1.22%
A116: 106 | B116: Oil_Gas | C116: ONGC | D116: 74.75 | E116: 75.10 | F116: 73.35 | G116: 71.95 | H116: 70.20 | I116: 76.50 | J116: 78.25 | K116: 79.65 | L116: 76.85 | M116: 73.7 | N116: 52574300 | O116: -1.28%
A117: 107 | B117: Textile | C117: PAGEIND | D117: 16821.00 | E117: 16807.55 | F117: 16448.85 | G117: 16076.70 | H117: 15718.00 | I117: 17179.70 | J117: 17538.40 | K117: 17910.55 | L117: 17166.25 | M117: 16435.4 | N117: 127925 | O117: -2.92%
A118: 108 | B118: Pharma | C118: PEL | D118: 931.25 | E118: 951.78 | F118: 897.57 | G118: 863.88 | H118: 809.67 | I118: 985.47 | J118: 1039.68 | K118: 1073.37 | L118: 1006 | M118: 918.1 | N118: 2899656 | O118: 3.89%
A119: 109 | B119: Oil_Gas | C119: PETRONET | D119: 210.90 | E119: 214.60 | F119: 206.25 | G119: 201.60 | H119: 193.25 | I119: 219.25 | J119: 227.60 | K119: 232.25 | L119: 222.95 | M119: 209.95 | N119: 9783000 | O119: 1.91%
A120: 110 | B120: Finance | C120: PFC | D120: 88.65 | E120: 89.32 | F120: 86.23 | G120: 83.82 | H120: 80.73 | I120: 91.73 | J120: 94.82 | K120: 97.23 | L120: 92.4 | M120: 86.9 | N120: 35433000 | O120: 3.70%
A121: 111 | B121: FMCG | C121: PIDILITIND | D121: 1476.35 | E121: 1456.77 | F121: 1424.68 | G121: 1373.02 | H121: 1340.93 | I121: 1508.43 | J121: 1540.52 | K121: 1592.18 | L121: 1488.85 | M121: 1405.1 | N121: 2273000 | O121: -8.37%
A122: 112 | B122: Banking | C122: PNB | D122: 31.10 | E122: 31.48 | F122: 30.17 | G122: 29.23 | H122: 27.92 | I122: 32.42 | J122: 33.73 | K122: 34.67 | L122: 32.8 | M122: 30.55 | N122: 48945100 | O122: 0.99%
A123: 113 | B123: Power | C123: POWERGRID | D123: 160.00 | E123: 161.32 | F123: 157.83 | G123: 155.67 | H123: 152.18 | I123: 163.48 | J123: 166.97 | K123: 169.13 | L123: 164.8 | M123: 159.15 | N123: 39756000 | O123: -0.87%
A124: 114 | B124: Media | C124: PVR | D124: 997.90 | E124: 981.60 | F124: 946.50 | G124: 895.10 | H124: 860.00 | I124: 1033.00 | J124: 1068.10 | K124: 1119.50 | L124: 1016.7 | M124: 930.2 | N124: 1326400 | O124: 15.14%
A125: 115 | B125: Cement | C125: RAMCOCEM | D125: 518.40 | E125: 525.33 | F125: 501.87 | G125: 485.33 | H125: 461.87 | I125: 541.87 | J125: 565.33 | K125: 581.87 | L125: 548.8 | M125: 508.8 | N125: 638400 | O125: 10.37%
A126: 116 | B126: Banking | C126: RBLBANK | D126: 120.90 | E126: 122.65 | F126: 116.75 | G126: 112.60 | H126: 106.70 | I126: 126.80 | J126: 132.70 | K126: 136.85 | L126: 128.55 | M126: 118.5 | N126: 17931000 | O126: -4.75%
A127: 117 | B127: Power | C127: RECLTD | D127: 90.40 | E127: 90.90 | F127: 87.75 | G127: 85.10 | H127: 81.95 | I127: 93.55 | J127: 96.70 | K127: 99.35 | L127: 94.05 | M127: 88.25 | N127: 23232000 | O127: -2.49%
A128: 118 | B128: Oil_Gas | C128: RELIANCE | D128: 1153.30 | E128: 1180.18 | F128: 1119.72 | G128: 1086.13 | H128: 1025.67 | I128: 1213.77 | J128: 1274.23 | K128: 1307.82 | L128: 1240.65 | M128: 1146.6 | N128: 39686500 | O128: -2.84%
A129: 119 | B129: Metals | C129: SAIL | D129: 26.15 | E129: 26.40 | F129: 25.55 | G129: 24.95 | H129: 24.10 | I129: 27.00 | J129: 27.85 | K129: 28.45 | L129: 27.25 | M129: 25.8 | N129: 29798600 | O129: 0.00%
A130: 120 | B130: Banking | C130: SBIN | D130: 182.20 | E130: 185.03 | F130: 176.82 | G130: 171.43 | H130: 163.22 | I130: 190.42 | J130: 198.63 | K130: 204.02 | L130: 193.25 | M130: 179.65 | N130: 92865000 | O130: 1.97%
A131: 121 | B131: Cement | C131: SHREECEM | D131: 18134.55 | E131: 17890.80 | F131: 17269.60 | G131: 16404.65 | H131: 15783.45 | I131: 18755.75 | J131: 19376.95 | K131: 20241.90 | L131: 18512 | M131: 17025.85 | N131: 141300 | O131: -12.02%
A132: 122 | B132: Capital_Goods | C132: SIEMENS | D132: 1196.00 | E132: 1212.95 | F132: 1172.10 | G132: 1148.20 | H132: 1107.35 | I132: 1236.85 | J132: 1277.70 | K132: 1301.60 | L132: 1253.8 | M132: 1189.05 | N132: 1272150 | O132: -6.70%
A133: 123 | B133: Textile | C133: SRF | D133: 3355.90 | E133: 3369.40 | F133: 3248.85 | G133: 3141.80 | H133: 3021.25 | I133: 3476.45 | J133: 3597.00 | K133: 3704.05 | L133: 3489.95 | M133: 3262.35 | N133: 491500 | O133: 1.55%
A134: 124 | B134: Finance | C134: SRTRANSFIN | D134: 665.15 | E134: 671.37 | F134: 634.78 | G134: 604.42 | H134: 567.83 | I134: 701.73 | J134: 738.32 | K134: 768.68 | L134: 707.95 | M134: 641 | N134: 2082000 | O134: 9.57%
A135: 125 | B135: Pharma | C135: SUNPHARMA | D135: 451.10 | E135: 461.20 | F135: 433.90 | G135: 416.70 | H135: 389.40 | I135: 478.40 | J135: 505.70 | K135: 522.90 | L135: 488.5 | M135: 444 | N135: 48920000 | O135: 0.70%
A136: 126 | B136: Media | C136: SUNTV | D136: 349.45 | E136: 350.38 | F136: 341.17 | G136: 332.88 | H136: 323.67 | I136: 358.67 | J136: 367.88 | K136: 376.17 | L136: 359.6 | M136: 342.1 | N136: 4251600 | O136: 4.05%
A137: 127 | B137: Fertilisers | C137: TATACHEM | D137: 241.00 | E137: 244.32 | F137: 235.78 | G137: 230.57 | H137: 222.03 | I137: 249.53 | J137: 258.07 | K137: 263.28 | L137: 252.85 | M137: 239.1 | N137: 1198800 | O137: 11.37%
A138: 128 | B138: Others | C138: TATACONSUM | D138: 316.35 | E138: 315.35 | F138: 307.50 | G138: 298.65 | H138: 290.80 | I138: 324.20 | J138: 332.05 | K138: 340.90 | L138: 323.2 | M138: 306.5 | N138: 7028100 | O138: -1.96%
A139: 129 | B139: Automobile | C139: TATAMOTORS | D139: 72.90 | E139: 74.52 | F139: 70.08 | G139: 67.27 | H139: 62.83 | I139: 77.33 | J139: 81.77 | K139: 84.58 | L139: 78.95 | M139: 71.7 | N139: 56575100 | O139: -0.43%
A140: 130 | B140: Power | C140: TATAPOWER | D140: 35.20 | E140: 35.88 | F140: 34.07 | G140: 32.93 | H140: 31.12 | I140: 37.02 | J140: 38.83 | K140: 39.97 | L140: 37.7 | M140: 34.75 | N140: 42696000 | O140: 2.29%
A141: 131 | B141: Metals | C141: TATASTEEL | D141: 284.55 | E141: 287.68 | F141: 278.32 | G141: 272.08 | H141: 262.72 | I141: 293.92 | J141: 303.28 | K141: 309.52 | L141: 297.05 | M141: 281.45 | N141: 14049000 | O141: -3.19%
A142: 132 | B142: Technology | C142: TCS | D142: 1740.65 | E142: 1763.93 | F142: 1708.92 | G142: 1677.18 | H142: 1622.17 | I142: 1795.67 | J142: 1850.68 | K142: 1882.42 | L142: 1818.95 | M142: 1732.2 | N142: 15280000 | O142: -0.55%
A143: 133 | B143: Technology | C143: TECHM | D143: 537.80 | E143: 539.73 | F143: 530.42 | G143: 523.03 | H143: 513.72 | I143: 547.12 | J143: 556.43 | K143: 563.82 | L143: 549.05 | M143: 532.35 | N143: 12165600 | O143: 0.07%
A144: 134 | B144: FMCG | C144: TITAN | D144: 948.10 | E144: 958.88 | F144: 926.22 | G144: 904.33 | H144: 871.67 | I144: 980.77 | J144: 1013.43 | K144: 1035.32 | L144: 991.55 | M144: 937 | N144: 6444000 | O144: 3.68%
A145: 135 | B145: Pharma | C145: TORNTPHARM | D145: 2309.10 | E145: 2349.55 | F145: 2227.10 | G145: 2145.10 | H145: 2022.65 | I145: 2431.55 | J145: 2554.00 | K145: 2636.00 | L145: 2472 | M145: 2267.55 | N145: 604500 | O145: 9.41%
A146: 136 | B146: Power | C146: TORNTPOWER | D146: 296.55 | E146: 300.17 | F146: 286.33 | G146: 276.12 | H146: 262.28 | I146: 310.38 | J146: 324.22 | K146: 334.43 | L146: 314 | M146: 289.95 | N146: 1239000 | O146: -9.03%
A147: 137 | B147: Automobile | C147: TVSMOTOR | D147: 275.20 | E147: 282.20 | F147: 265.00 | G147: 254.80 | H147: 237.60 | I147: 292.40 | J147: 309.60 | K147: 319.80 | L147: 299.4 | M147: 272 | N147: 3215700 | O147: 4.29%
A148: 138 | B148: FMCG | C148: UBL | D148: 915.90 | E148: 931.27 | F148: 893.13 | G148: 870.37 | H148: 832.23 | I148: 954.03 | J148: 992.17 | K148: 1014.93 | L148: 969.4 | M148: 908.5 | N148: 463400 | O148: -3.36%
A149: 139 | B149: Finance | C149: UJJIVAN | D149: 153.80 | E149: 158.88 | F149: 145.82 | G149: 137.83 | H149: 124.77 | I149: 166.87 | J149: 179.93 | K149: 187.92 | L149: 171.95 | M149: 150.9 | N149: 1919300 | O149: -3.59%
A150: 140 | B150: Cement | C150: ULTRACEMCO | D150: 3602.75 | E150: 3610.83 | F150: 3533.67 | G150: 3464.58 | H150: 3387.42 | I150: 3679.92 | J150: 3757.08 | K150: 3826.17 | L150: 3688 | M150: 3541.75 | N150: 1887800 | O150: 1.85%
A151: 141 | B151: Fertilisers | C151: UPL | D151: 351.80 | E151: 355.57 | F151: 327.38 | G151: 302.97 | H151: 274.78 | I151: 379.98 | J151: 408.17 | K151: 432.58 | L151: 383.75 | M151: 331.15 | N151: 13828500 | O151: 3.80%
A152: 142 | B152: Metals | C152: VEDL | D152: 78.90 | E152: 80.10 | F152: 76.60 | G152: 74.30 | H152: 70.80 | I152: 82.40 | J152: 85.90 | K152: 88.20 | L152: 83.6 | M152: 77.8 | N152: 90317500 | O152: 0.79%
A153: 143 | B153: Capital_Goods | C153: VOLTAS | D153: 517.25 | E153: 522.30 | F153: 505.10 | G153: 492.95 | H153: 475.75 | I153: 534.45 | J153: 551.65 | K153: 563.80 | L153: 539.5 | M153: 510.15 | N153: 1259000 | O153: -1.87%
A154: 144 | B154: Technology | C154: WIPRO | D154: 186.95 | E154: 188.98 | F154: 184.07 | G154: 181.18 | H154: 176.27 | I154: 191.87 | J154: 196.78 | K154: 199.67 | L154: 193.9 | M154: 186.1 | N154: 21056000 | O154: 7.75%
A155: 145 | B155: Banking | C155: YESBANK | D155: 24.10 | E155: 24.30 | F155: 23.05 | G155: 22.00 | H155: 20.75 | I155: 25.35 | J155: 26.60 | K155: 27.65 | L155: 25.55 | M155: 23.25 | N155: 55457600 | O155: -0.82%
A156: 146 | B156: Media | C156: ZEEL | D156: 133.80 | E156: 134.93 | F156: 128.37 | G156: 122.93 | H156: 116.37 | I156: 140.37 | J156: 146.93 | K156: 152.37 | L156: 141.5 | M156: 129.5 | N156: 20350700 | O156: -0.75%
A157: 147
A175: Pivot Point: This is trigger point for intra day buy/sell based on the price range of the previous day
A176: As per the tool,the trader should take BUY position just above Pivot and keep the stop loss of pivot point and the first target would be Resistance 1(R1)
A177: If R1 is crossed then R2 becomes the next target with stop loss of at R1
A178: Similarly if price goes below pivot point then the trader should sell and keep a stop loss of pivot point and the first target would be S1
A179: If S1 is crossed then S2 becomes the next target with stop loss of at S1
A181: Disclaimer:
A182: This document has been prepared by the Retail Research Desk of Asit C Mehta
A183: Investment Intermediates Ltd. and is meant for use of the recipient only
A184: and is not for circulation. This document is not to be reported or
A185: copied or made available to others. It should not be considered to be
A186: taken as an offer to sell or a solicitation to buy any security. The
A187: information contained herein is from sources believed reliable. We do
A188: not represent that it is accurate or complete and it should not be
A189: relied upon as such. We may from time to time have positions in and buy
A190: and sell securities referred to herein

Sheet Cash Intra
M5: Back to Main Page
A6: FOR INTRA DAY TRADING | K6: =Main!B10 -> 2020-04-16
A8: Sr.no | B8: Scrip | C8: CLOSE RATE | D8: Pivot Point | E8: Supports | H8: Resistances
C9: Point | E9: S1 | F9: S2 | G9: S3 | H9: R1 | I9: R2 | J9: R3 | K9: HIGH | L9: LOW | M9: Total Trade Quanity in Lakhs
A10: 1 | B10: Nifty 50 | C10: 8925.3 | D10: 9020.20 | E10: 8779.20 | F10: 8633.10 | G10: 8392.10 | H10: 9166.30 | I10: 9407.30 | J10: 9553.40 | K10: 9261.2 | L10: 8874.1
A11: 2 | B11: Nifty Bank | C11: 19057.05 | D11: 19339.30 | E11: 18494.50 | F11: 17931.95 | G11: 17087.15 | H11: 19901.85 | I11: 20746.65 | J11: 21309.20 | K11: 20184.1 | L11: 18776.75
A12: 3 | B12: Nifty CPSE | C12: 1377.9 | D12: 1389.93 | E12: 1359.12 | F12: 1340.33 | G12: 1309.52 | H12: 1408.72 | I12: 1439.53 | J12: 1458.32 | K12: 1420.75 | L12: 1371.15
A13: 4 | B13: Nifty Infra | C13: 2538.3 | D13: 2568.70 | E13: 2502.85 | F13: 2467.40 | G13: 2401.55 | H13: 2604.15 | I13: 2670.00 | J13: 2705.45 | K13: 2634.55 | L13: 2533.25
A14: 5 | B14: Nifty IT | C14: 12702.6 | D14: 12771.67 | E14: 12591.93 | F14: 12481.27 | G14: 12301.53 | H14: 12882.33 | I14: 13062.07 | J14: 13172.73 | K14: 12951.4 | L14: 12661
A15: 6 | B15: Nifty PSE | C15: 2343 | D15: 2366.33 | E15: 2310.02 | F15: 2277.03 | G15: 2220.72 | H15: 2399.32 | I15: 2455.63 | J15: 2488.62 | K15: 2422.65 | L15: 2333.35
A16: 7 | B16: Nifty Midcap 50 | C16: 3419.55 | D16: 3437.53 | E16: 3364.07 | F16: 3308.58 | G16: 3235.12 | H16: 3493.02 | I16: 3566.48 | J16: 3621.97 | K16: 3511 | L16: 3382.05
A17: 8 | B17: ACC | C17: 1137.95 | D17: 1126.07 | E17: 1089.13 | F17: 1040.32 | G17: 1003.38 | H17: 1174.88 | I17: 1211.82 | J17: 1260.63 | K17: 1163 | L17: 1077.25 | M17: 29.31488
A18: 9 | B18: AUBANK | C18: 502.25 | D18: 500.75 | E18: 492.50 | F18: 482.75 | G18: 474.50 | H18: 510.50 | I18: 518.75 | J18: 528.50 | K18: 509 | L18: 491 | M18: 6.4816
A19: 10 | B19: ADANIPORTS | C19: 268.9 | D19: 271.10 | E19: 262.80 | F19: 256.70 | G19: 248.40 | H19: 277.20 | I19: 285.50 | J19: 291.60 | K19: 279.4 | L19: 265 | M19: 76.06729
A20: 11 | B20: ADANIPOWER | C20: 29.3 | D20: 29.83 | E20: 28.52 | F20: 27.73 | G20: 26.42 | H20: 30.62 | I20: 31.93 | J20: 32.72 | K20: 31.15 | L20: 29.05 | M20: 161.72034
A21: 12 | B21: ABCAPITAL | C21: 48.05 | D21: 48.33 | E21: 45.77 | F21: 43.48 | G21: 40.92 | H21: 50.62 | I21: 53.18 | J21: 55.47 | K21: 50.9 | L21: 46.05 | M21: 26.6424
A22: 13 | B22: ABFRL | C22: 145.6 | D22: 147.20 | E22: 140.90 | F22: 136.20 | G22: 129.90 | H22: 151.90 | I22: 158.20 | J22: 162.90 | K22: 153.5 | L22: 142.5 | M22: 12.27603
A23: 14 | B23: AJANTPHARM | C23: 1409.4 | D23: 1423.13 | E23: 1386.27 | F23: 1363.13 | G23: 1326.27 | H23: 1446.27 | I23: 1483.13 | J23: 1506.27 | K23: 1460 | L23: 1400 | M23: 1.73664
A24: 15 | B24: ALKEM | C24: 2686.85 | D24: 2723.60 | E24: 2637.25 | F24: 2587.65 | G24: 2501.30 | H24: 2773.20 | I24: 2859.55 | J24: 2909.15 | K24: 2809.95 | L24: 2674 | M24: 1.52184
A25: 16 | B25: AMARAJABAT | C25: 511.2 | D25: 512.98 | E25: 497.32 | F25: 483.43 | G25: 467.77 | H25: 526.87 | I25: 542.53 | J25: 556.42 | K25: 528.65 | L25: 499.1 | M25: 9.48123
A26: 17 | B26: AMBUJACEM | C26: 168.55 | D26: 169.87 | E26: 165.78 | F26: 163.02 | G26: 158.93 | H26: 172.63 | I26: 176.72 | J26: 179.48 | K26: 173.95 | L26: 167.1 | M26: 99.09062
A27: 18 | B27: APOLLOHOSP | C27: 1360.55 | D27: 1355.70 | E27: 1296.45 | F27: 1232.35 | G27: 1173.10 | H27: 1419.80 | I27: 1479.05 | J27: 1543.15 | K27: 1414.95 | L27: 1291.6 | M27: 22.7413
A28: 19 | B28: APOLLOTYRE | C28: 88.15 | D28: 88.02 | E28: 86.13 | F28: 84.12 | G28: 82.23 | H28: 90.03 | I28: 91.92 | J28: 93.93 | K28: 89.9 | L28: 86 | M28: 60.59059
A29: 20 | B29: ASHOKLEY | C29: 46.7 | D29: 48.10 | E29: 44.90 | F29: 43.10 | G29: 39.90 | H29: 49.90 | I29: 53.10 | J29: 54.90 | K29: 51.3 | L29: 46.3 | M29: 603.09614
A30: 21 | B30: ASIANPAINT | C30: 1718.2 | D30: 1712.92 | E30: 1689.08 | F30: 1659.97 | G30: 1636.13 | H30: 1742.03 | I30: 1765.87 | J30: 1794.98 | K30: 1736.75 | L30: 1683.8 | M30: 25.0828
A31: 22 | B31: AUROPHARMA | C31: 514.7 | D31: 516.32 | E31: 495.13 | F31: 475.57 | G31: 454.38 | H31: 535.88 | I31: 557.07 | J31: 576.63 | K31: 537.5 | L31: 496.75 | M31: 126.44934
A32: 23 | B32: DMART | C32: 2180.9 | D32: 2220.10 | E32: 2120.20 | F32: 2059.50 | G32: 1959.60 | H32: 2280.80 | I32: 2380.70 | J32: 2441.40 | K32: 2320 | L32: 2159.4 | M32: 6.34856
A33: 24 | B33: AXISBANK | C33: 417.3 | D33: 427.13 | E33: 402.62 | F33: 387.93 | G33: 363.42 | H33: 441.82 | I33: 466.33 | J33: 481.02 | K33: 451.65 | L33: 412.45 | M33: 483.15084
A34: 25 | B34: BAJAJ-AUTO | C34: 2335.15 | D34: 2379.60 | E34: 2275.60 | F34: 2216.05 | G34: 2112.05 | H34: 2439.15 | I34: 2543.15 | J34: 2602.70 | K34: 2483.6 | L34: 2320.05 | M34: 9.8675
A35: 26 | B35: BAJFINANCE | C35: 2182.45 | D35: 2239.62 | E35: 2111.23 | F35: 2040.02 | G35: 1911.63 | H35: 2310.83 | I35: 2439.22 | J35: 2510.43 | K35: 2368 | L35: 2168.4 | M35: 93.33672
A36: 27 | B36: BAJAJFINSV | C36: 4599.1 | D36: 4581.12 | E36: 4497.98 | F36: 4396.87 | G36: 4313.73 | H36: 4682.23 | I36: 4765.37 | J36: 4866.48 | K36: 4664.25 | L36: 4480 | M36: 9.83071
A37: 28 | B37: BAJAJHLDNG | C37: 2088.5 | D37: 2051.15 | E37: 1947.35 | F37: 1806.20 | G37: 1702.40 | H37: 2192.30 | I37: 2296.10 | J37: 2437.25 | K37: 2154.95 | L37: 1910 | M37: 0.34275
A38: 29 | B38: BALKRISIND | C38: 872.1 | D38: 877.32 | E38: 851.63 | F38: 831.17 | G38: 805.48 | H38: 897.78 | I38: 923.47 | J38: 943.93 | K38: 903 | L38: 856.85 | M38: 5.56182
A39: 30 | B39: BANDHANBNK | C39: 186.8 | D39: 194.70 | E39: 177.10 | F39: 167.40 | G39: 149.80 | H39: 204.40 | I39: 222.00 | J39: 231.70 | K39: 212.3 | L39: 185 | M39: 241.76595
A40: 31 | B40: BANKBARODA | C40: 48.95 | D40: 49.78 | E40: 47.67 | F40: 46.38 | G40: 44.27 | H40: 51.07 | I40: 53.18 | J40: 54.47 | K40: 51.9 | L40: 48.5 | M40: 202.43132
A41: 32 | B41: BANKINDIA | C41: 34.3 | D41: 34.23 | E41: 33.77 | F41: 33.23 | G41: 32.77 | H41: 34.77 | I41: 35.23 | J41: 35.77 | K41: 34.7 | L41: 33.7 | M41: 13.23418
A42: 33 | B42: BATAINDIA | C42: 1203.75 | D42: 1212.63 | E42: 1180.27 | F42: 1156.78 | G42: 1124.42 | H42: 1236.12 | I42: 1268.48 | J42: 1291.97 | K42: 1245 | L42: 1189.15 | M42: 10.88202
A43: 34 | B43: BERGEPAINT | C43: 512.65 | D43: 511.43 | E43: 498.92 | F43: 485.18 | G43: 472.67 | H43: 525.17 | I43: 537.68 | J43: 551.42 | K43: 523.95 | L43: 497.7 | M43: 24.18076
A44: 35 | B44: BEL | C44: 69.6 | D44: 70.58 | E44: 67.92 | F44: 66.23 | G44: 63.57 | H44: 72.27 | I44: 74.93 | J44: 76.62 | K44: 73.25 | L44: 68.9 | M44: 114.8631
A45: 36 | B45: BHARATFORG | C45: 237.3 | D45: 241.78 | E45: 230.57 | F45: 223.83 | G45: 212.62 | H45: 248.52 | I45: 259.73 | J45: 266.47 | K45: 253 | L45: 235.05 | M45: 18.75218
A46: 37 | B46: BHEL | C46: 21.45 | D46: 21.97 | E46: 20.78 | F46: 20.12 | G46: 18.93 | H46: 22.63 | I46: 23.82 | J46: 24.48 | K46: 23.15 | L46: 21.3 | M46: 401.78521
A47: 38 | B47: BPCL | C47: 353.85 | D47: 358.43 | E47: 346.52 | F47: 339.18 | G47: 327.27 | H47: 365.77 | I47: 377.68 | J47: 385.02 | K47: 370.35 | L47: 351.1 | M47: 62.99482
A48: 39 | B48: BHARTIARTL | C48: 510.5 | D48: 517.17 | E48: 498.38 | F48: 486.27 | G48: 467.48 | H48: 529.28 | I48: 548.07 | J48: 560.18 | K48: 535.95 | L48: 505.05 | M48: 257.93155
A49: 40 | B49: INFRATEL | C49: 173.8 | D49: 175.63 | E49: 170.27 | F49: 166.73 | G49: 161.37 | H49: 179.17 | I49: 184.53 | J49: 188.07 | K49: 181 | L49: 172.1 | M49: 45.25878
A50: 41 | B50: BIOCON | C50: 336.85 | D50: 340.00 | E50: 327.00 | F50: 317.15 | G50: 304.15 | H50: 349.85 | I50: 362.85 | J50: 372.70 | K50: 353 | L50: 330.15 | M50: 84.36365
A51: 42 | B51: BBTC | C51: 806.7 | D51: 817.27 | E51: 789.53 | F51: 772.37 | G51: 744.63 | H51: 834.43 | I51: 862.17 | J51: 879.33 | K51: 845 | L51: 800.1 | M51: 0.80149
A52: 43 | B52: BOSCHLTD | C52: 10524.45 | D52: 10494.88 | E52: 10089.77 | F52: 9655.08 | G52: 9249.97 | H52: 10929.57 | I52: 11334.68 | J52: 11769.37 | K52: 10900 | L52: 10060.2 | M52: 0.55034
A53: 44 | B53: BRITANNIA | C53: 2837.35 | D53: 2833.52 | E53: 2758.53 | F53: 2679.72 | G53: 2604.73 | H53: 2912.33 | I53: 2987.32 | J53: 3066.13 | K53: 2908.5 | L53: 2754.7 | M53: 10.11691
A54: 45 | B54: CESC | C54: 503.95 | D54: 510.82 | E54: 492.83 | F54: 481.72 | G54: 463.73 | H54: 521.93 | I54: 539.92 | J54: 551.03 | K54: 528.8 | L54: 499.7 | M54: 9.76738
A55: 46 | B55: CADILAHC | C55: 339.1 | D55: 342.65 | E55: 327.30 | F55: 315.50 | G55: 300.15 | H55: 354.45 | I55: 369.80 | J55: 381.60 | K55: 358 | L55: 330.85 | M55: 114.80952
A56: 47 | B56: CANBK | C56: 86.45 | D56: 88.10 | E56: 84.20 | F56: 81.95 | G56: 78.05 | H56: 90.35 | I56: 94.25 | J56: 96.50 | K56: 92 | L56: 85.85 | M56: 110.08091
A57: 48 | B57: CASTROLIND | C57: 113.2 | D57: 113.75 | E57: 110.75 | F57: 108.30 | G57: 105.30 | H57: 116.20 | I57: 119.20 | J57: 121.65 | K57: 116.75 | L57: 111.3 | M57: 17.3012
A58: 49 | B58: CHOLAFIN | C58: 153.65 | D58: 153.77 | E58: 144.88 | F58: 136.12 | G58: 127.23 | H58: 162.53 | I58: 171.42 | J58: 180.18 | K58: 162.65 | L58: 145 | M58: 59.59935
A59: 50 | B59: CIPLA | C59: 592.35 | D59: 594.98 | E59: 575.97 | F59: 559.58 | G59: 540.57 | H59: 611.37 | I59: 630.38 | J59: 646.77 | K59: 614 | L59: 578.6 | M59: 162.13849
A60: 51 | B60: CUB | C60: 129.25 | D60: 131.63 | E60: 124.32 | F60: 119.38 | G60: 112.07 | H60: 136.57 | I60: 143.88 | J60: 148.82 | K60: 138.95 | L60: 126.7 | M60: 18.55884
A61: 52 | B61: COALINDIA | C61: 146.85 | D61: 148.15 | E61: 144.70 | F61: 142.55 | G61: 139.10 | H61: 150.30 | I61: 153.75 | J61: 155.90 | K61: 151.6 | L61: 146 | M61: 104.87978
A62: 53 | B62: COLPAL | C62: 1388.25 | D62: 1389.22 | E62: 1356.43 | F62: 1324.62 | G62: 1291.83 | H62: 1421.03 | I62: 1453.82 | J62: 1485.63 | K62: 1422 | L62: 1357.4 | M62: 10.62751
A63: 54 | B63: CONCOR | C63: 383.55 | D63: 387.67 | E63: 376.53 | F63: 369.52 | G63: 358.38 | H63: 394.68 | I63: 405.82 | J63: 412.83 | K63: 398.8 | L63: 380.65 | M63: 17.24976
A64: 55 | B64: COROMANDEL | C64: 528.55 | D64: 527.50 | E64: 513.05 | F64: 497.55 | G64: 483.10 | H64: 543.00 | I64: 557.45 | J64: 572.95 | K64: 541.95 | L64: 512 | M64: 2.14723
A65: 56 | B65: CROMPTON | C65: 219.15 | D65: 216.83 | E65: 212.32 | F65: 205.48 | G65: 200.97 | H65: 223.67 | I65: 228.18 | J65: 235.02 | K65: 221.35 | L65: 210 | M65: 8.22043
A66: 57 | B66: CUMMINSIND | C66: 375.4 | D66: 374.52 | E66: 361.03 | F66: 346.67 | G66: 333.18 | H66: 388.88 | I66: 402.37 | J66: 416.73 | K66: 388 | L66: 360.15 | M66: 23.14627
A67: 58 | B67: DLF | C67: 140.3 | D67: 140.92 | E67: 137.18 | F67: 134.07 | G67: 130.33 | H67: 144.03 | I67: 147.77 | J67: 150.88 | K67: 144.65 | L67: 137.8 | M67: 98.21552
A68: 59 | B68: DABUR | C68: 502.85 | D68: 496.28 | E68: 486.57 | F68: 470.28 | G68: 460.57 | H68: 512.57 | I68: 522.28 | J68: 538.57 | K68: 506 | L68: 480 | M68: 43.43315
A69: 60 | B69: DALBHARAT | C69: 536.75 | D69: 534.33 | E69: 508.67 | F69: 480.58 | G69: 454.92 | H69: 562.42 | I69: 588.08 | J69: 616.17 | K69: 560 | L69: 506.25 | M69: 4.10481
A70: 61 | B70: DIVISLAB | C70: 2395.45 | D70: 2381.15 | E70: 2344.30 | F70: 2293.15 | G70: 2256.30 | H70: 2432.30 | I70: 2469.15 | J70: 2520.30 | K70: 2418 | L70: 2330 | M70: 11.36727
A71: 62 | B71: DRREDDY | C71: 3807.6 | D71: 3825.73 | E71: 3757.87 | F71: 3708.13 | G71: 3640.27 | H71: 3875.47 | I71: 3943.33 | J71: 3993.07 | K71: 3893.6 | L71: 3776 | M71: 17.25113
A72: 63 | B72: EDELWEISS | C72: 34.6 | D72: 34.90 | E72: 33.65 | F72: 32.70 | G72: 31.45 | H72: 35.85 | I72: 37.10 | J72: 38.05 | K72: 36.15 | L72: 33.95 | M72: 28.51266
A73: 64 | B73: EICHERMOT | C73: 13314.9 | D73: 13436.52 | E73: 13001.08 | F73: 12687.27 | G73: 12251.83 | H73: 13750.33 | I73: 14185.77 | J73: 14499.58 | K73: 13871.95 | L73: 13122.7 | M73: 2.75594
A74: 65 | B74: EMAMILTD | C74: 226.75 | D74: 227.75 | E74: 223.00 | F74: 219.25 | G74: 214.50 | H74: 231.50 | I74: 236.25 | J74: 240.00 | K74: 232.5 | L74: 224 | M74: 5.68662
A75: 66 | B75: ENDURANCE | C75: 595.25 | D75: 595.65 | E75: 586.30 | F75: 577.35 | G75: 568.00 | H75: 604.60 | I75: 613.95 | J75: 622.90 | K75: 605 | L75: 586.7 | M75: 2.55707
A76: 67 | B76: ENGINERSIN | C76: 67.05 | D76: 66.70 | E76: 65.45 | F76: 63.85 | G76: 62.60 | H76: 68.30 | I76: 69.55 | J76: 71.15 | K76: 67.95 | L76: 65.1 | M76: 11.34695
A77: 68 | B77: ESCORTS | C77: 714.7 | D77: 735.13 | E77: 677.62 | F77: 640.53 | G77: 583.02 | H77: 772.22 | I77: 829.73 | J77: 866.82 | K77: 792.65 | L77: 698.05 | M77: 67.83089
A78: 69 | B78: EXIDEIND | C78: 140.45 | D78: 142.22 | E78: 137.23 | F78: 134.02 | G78: 129.03 | H78: 145.43 | I78: 150.42 | J78: 153.63 | K78: 147.2 | L78: 139 | M78: 30.26934
A79: 70 | B79: FEDERALBNK | C79: 41.4 | D79: 42.07 | E79: 40.33 | F79: 39.27 | G79: 37.53 | H79: 43.13 | I79: 44.87 | J79: 45.93 | K79: 43.8 | L79: 41 | M79: 278.00697
A80: 71 | B80: FORTIS | C80: 121 | D80: 122.18 | E80: 118.92 | F80: 116.83 | G80: 113.57 | H80: 124.27 | I80: 127.53 | J80: 129.62 | K80: 125.45 | L80: 120.1 | M80: 17.43665
A81: 72 | B81: FCONSUMER | C81: 6.75 | D81: 6.65 | E81: 6.55 | F81: 6.35 | G81: 6.25 | H81: 6.85 | I81: 6.95 | J81: 7.15 | K81: 6.75 | L81: 6.45 | M81: 44.60063
A82: 73 | B82: FRETAIL | C82: 73 | D82: 72.47 | E82: 71.93 | F82: 70.87 | G82: 70.33 | H82: 73.53 | I82: 74.07 | J82: 75.13 | K82: 73 | L82: 71.4 | M82: 15.3697
A83: 74 | B83: GAIL | C83: 86.6 | D83: 87.57 | E83: 85.13 | F83: 83.67 | G83: 81.23 | H83: 89.03 | I83: 91.47 | J83: 92.93 | K83: 90 | L83: 86.1 | M83: 134.27323
A84: 75 | B84: GMRINFRA | C84: 17 | D84: 17.20 | E84: 16.65 | F84: 16.30 | G84: 15.75 | H84: 17.55 | I84: 18.10 | J84: 18.45 | K84: 17.75 | L84: 16.85 | M84: 324.27104
A85: 76 | B85: GICRE | C85: 124.25 | D85: 122.22 | E85: 120.03 | F85: 115.82 | G85: 113.63 | H85: 126.43 | I85: 128.62 | J85: 132.83 | K85: 124.4 | L85: 118 | M85: 2.34748
A86: 77 | B86: GLENMARK | C86: 319.75 | D86: 323.82 | E86: 305.13 | F86: 290.52 | G86: 271.83 | H86: 338.43 | I86: 357.12 | J86: 371.73 | K86: 342.5 | L86: 309.2 | M86: 217.89838
A87: 78 | B87: GODREJAGRO | C87: 385.75 | D87: 388.38 | E87: 361.77 | F87: 337.78 | G87: 311.17 | H87: 412.37 | I87: 438.98 | J87: 462.97 | K87: 415 | L87: 364.4 | M87: 2.82499
A88: 79 | B88: GODREJCP | C88: 571.65 | D88: 577.80 | E88: 556.70 | F88: 541.75 | G88: 520.65 | H88: 592.75 | I88: 613.85 | J88: 628.80 | K88: 598.9 | L88: 562.85 | M88: 27.78395
A89: 80 | B89: GODREJIND | C89: 273.1 | D89: 275.02 | E89: 270.08 | F89: 267.07 | G89: 262.13 | H89: 278.03 | I89: 282.97 | J89: 285.98 | K89: 279.95 | L89: 272 | M89: 4.01116
A90: 81 | B90: GODREJPROP | C90: 655.3 | D90: 659.07 | E90: 640.13 | F90: 624.97 | G90: 606.03 | H90: 674.23 | I90: 693.17 | J90: 708.33 | K90: 678 | L90: 643.9 | M90: 3.25354
A91: 82 | B91: GRAPHITE | C91: 178.9 | D91: 176.60 | E91: 174.30 | F91: 169.70 | G91: 167.40 | H91: 181.20 | I91: 183.50 | J91: 188.10 | K91: 178.9 | L91: 172 | M91: 3.98973
A92: 83 | B92: GRASIM | C92: 535.4 | D92: 546.13 | E92: 519.42 | F92: 503.43 | G92: 476.72 | H92: 562.12 | I92: 588.83 | J92: 604.82 | K92: 572.85 | L92: 530.15 | M92: 21.25336
A93: 84 | B93: GSPL | C93: 199.85 | D93: 196.12 | E93: 189.48 | F93: 179.12 | G93: 172.48 | H93: 206.48 | I93: 213.12 | J93: 223.48 | K93: 202.75 | L93: 185.75 | M93: 9.49026
A94: 85 | B94: HEG | C94: 710.9 | D94: 703.93 | E94: 696.97 | F94: 683.03 | G94: 676.07 | H94: 717.87 | I94: 724.83 | J94: 738.77 | K94: 710.9 | L94: 690 | M94: 1.67992
A95: 86 | B95: HCLTECH | C95: 478.75 | D95: 474.48 | E95: 466.97 | F95: 455.18 | G95: 447.67 | H95: 486.27 | I95: 493.78 | J95: 505.57 | K95: 482 | L95: 462.7 | M95: 63.33192
A96: 87 | B96: HDFCAMC | C96: 2616.1 | D96: 2637.00 | E96: 2564.50 | F96: 2512.90 | G96: 2440.40 | H96: 2688.60 | I96: 2761.10 | J96: 2812.70 | K96: 2709.5 | L96: 2585.4 | M96: 5.93405
A97: 88 | B97: HDFCBANK | C97: 863.3 | D97: 878.93 | E97: 827.37 | F97: 791.43 | G97: 739.87 | H97: 914.87 | I97: 966.43 | J97: 1002.37 | K97: 930.5 | L97: 843 | M97: 289.89523
A98: 89 | B98: HDFCLIFE | C98: 471.7 | D98: 476.30 | E98: 463.90 | F98: 456.10 | G98: 443.70 | H98: 484.10 | I98: 496.50 | J98: 504.30 | K98: 488.7 | L98: 468.5 | M98: 39.5183
A99: 90 | B99: HAVELLS | C99: 559.5 | D99: 558.80 | E99: 537.75 | F99: 516.00 | G99: 494.95 | H99: 580.55 | I99: 601.60 | J99: 623.35 | K99: 579.85 | L99: 537.05 | M99: 35.95791
A100: 91 | B100: HEROMOTOCO | C100: 1824.1 | D100: 1869.93 | E100: 1765.87 | F100: 1707.63 | G100: 1603.57 | H100: 1928.17 | I100: 2032.23 | J100: 2090.47 | K100: 1974 | L100: 1811.7 | M100: 15.3763
A101: 92 | B101: HEXAWARE | C101: 289.8 | D101: 289.20 | E101: 278.40 | F101: 267.00 | G101: 256.20 | H101: 300.60 | I101: 311.40 | J101: 322.80 | K101: 300 | L101: 277.8 | M101: 3.61292
A102: 93 | B102: HINDALCO | C102: 115.1 | D102: 117.63 | E102: 111.27 | F102: 107.43 | G102: 101.07 | H102: 121.47 | I102: 127.83 | J102: 131.67 | K102: 124 | L102: 113.8 | M102: 455.61435
A103: 94 | B103: HINDPETRO | C103: 208.45 | D103: 211.42 | E103: 202.83 | F103: 197.22 | G103: 188.63 | H103: 217.03 | I103: 225.62 | J103: 231.23 | K103: 220 | L103: 205.8 | M103: 74.86566
A104: 95 | B104: HINDUNILVR | C104: 2487.55 | D104: 2461.88 | E104: 2407.17 | F104: 2326.78 | G104: 2272.07 | H104: 2542.27 | I104: 2596.98 | J104: 2677.37 | K104: 2516.6 | L104: 2381.5 | M104: 294.85532
A105: 96 | B105: HINDZINC | C105: 170.4 | D105: 169.98 | E105: 166.42 | F105: 162.43 | G105: 158.87 | H105: 173.97 | I105: 177.53 | J105: 181.52 | K105: 173.55 | L105: 166 | M105: 6.02904
A106: 97 | B106: HUDCO | C106: 22.3 | D106: 22.52 | E106: 21.88 | F106: 21.47 | G106: 20.83 | H106: 22.93 | I106: 23.57 | J106: 23.98 | K106: 23.15 | L106: 22.1 | M106: 17.24172
A107: 98 | B107: HDFC | C107: 1596.3 | D107: 1630.40 | E107: 1550.80 | F107: 1505.30 | G107: 1425.70 | H107: 1675.90 | I107: 1755.50 | J107: 1801.00 | K107: 1710 | L107: 1584.9 | M107: 85.12332
A108: 99 | B108: ICICIBANK | C108: 327.35 | D108: 334.75 | E108: 317.60 | F108: 307.85 | G108: 290.70 | H108: 344.50 | I108: 361.65 | J108: 371.40 | K108: 351.9 | L108: 325 | M108: 491.34201
A109: 100 | B109: ICICIGI | C109: 1152.85 | D109: 1168.78 | E109: 1123.17 | F109: 1093.48 | G109: 1047.87 | H109: 1198.47 | I109: 1244.08 | J109: 1273.77 | K109: 1214.4 | L109: 1139.1 | M109: 7.61158
A110: 101 | B110: ICICIPRULI | C110: 328.95 | D110: 336.60 | E110: 317.60 | F110: 306.25 | G110: 287.25 | H110: 347.95 | I110: 366.95 | J110: 378.30 | K110: 355.6 | L110: 325.25 | M110: 28.74352
A111: 102 | B111: IDBI | C111: 20.55 | D111: 20.73 | E111: 20.27 | F111: 19.98 | G111: 19.52 | H111: 21.02 | I111: 21.48 | J111: 21.77 | K111: 21.2 | L111: 20.45 | M111: 14.57615
A112: 103 | B112: IDFCFIRSTB | C112: 22.6 | D112: 22.60 | E112: 22.05 | F112: 21.50 | G112: 20.95 | H112: 23.15 | I112: 23.70 | J112: 24.25 | K112: 23.15 | L112: 22.05 | M112: 313.76448
A113: 104 | B113: ITC | C113: 189.35 | D113: 188.60 | E113: 183.45 | F113: 177.55 | G113: 172.40 | H113: 194.50 | I113: 199.65 | J113: 205.55 | K113: 193.75 | L113: 182.7 | M113: 490.92959
A114: 105 | B114: IBULHSGFIN | C114: 91.75 | D114: 93.33 | E114: 88.92 | F114: 86.08 | G114: 81.67 | H114: 96.17 | I114: 100.58 | J114: 103.42 | K114: 97.75 | L114: 90.5 | M114: 247.67179
A115: 106 | B115: IBVENTURES | C115: 94.25 | D115: 96.02 | E115: 91.63 | F115: 89.02 | G115: 84.63 | H115: 98.63 | I115: 103.02 | J115: 105.63 | K115: 100.4 | L115: 93.4 | M115: 5.79104
A116: 107 | B116: INDIANB | C116: 45.85 | D116: 46.22 | E116: 44.93 | F116: 44.02 | G116: 42.73 | H116: 47.13 | I116: 48.42 | J116: 49.33 | K116: 47.5 | L116: 45.3 | M116: 13.7447
A117: 108 | B117: INDHOTEL | C117: 82.25 | D117: 79.75 | E117: 74.70 | F117: 67.15 | G117: 62.10 | H117: 87.30 | I117: 92.35 | J117: 99.90 | K117: 84.8 | L117: 72.2 | M117: 82.02964
A118: 109 | B118: IOC | C118: 83.2 | D118: 84.10 | E118: 81.90 | F118: 80.60 | G118: 78.40 | H118: 85.40 | I118: 87.60 | J118: 88.90 | K118: 86.3 | L118: 82.8 | M118: 136.61968
A119: 110 | B119: IGL | C119: 453.35 | D119: 455.40 | E119: 444.80 | F119: 436.25 | G119: 425.65 | H119: 463.95 | I119: 474.55 | J119: 483.10 | K119: 466 | L119: 446.85 | M119: 46.35232
A120: 111 | B120: INDUSINDBK | C120: 424.1 | D120: 427.72 | E120: 410.43 | F120: 396.77 | G120: 379.48 | H120: 441.38 | I120: 458.67 | J120: 472.33 | K120: 445 | L120: 414.05 | M120: 283.12005
A121: 112 | B121: NAUKRI | C121: 2361.95 | D121: 2321.98 | E121: 2225.97 | F121: 2089.98 | G121: 1993.97 | H121: 2457.97 | I121: 2553.98 | J121: 2689.97 | K121: 2418 | L121: 2186 | M121: 6.91806
A122: 113 | B122: INFY | C122: 639.05 | D122: 642.65 | E122: 632.00 | F122: 624.95 | G122: 614.30 | H122: 649.70 | I122: 660.35 | J122: 667.40 | K122: 653.3 | L122: 635.6 | M122: 119.63493
A123: 114 | B123: INDIGO | C123: 1007.55 | D123: 1014.52 | E123: 990.03 | F123: 972.52 | G123: 948.03 | H123: 1032.03 | I123: 1056.52 | J123: 1074.03 | K123: 1039 | L123: 997 | M123: 28.51947
A124: 115 | B124: IPCALAB | C124: 1518.55 | D124: 1535.15 | E124: 1483.40 | F124: 1448.25 | G124: 1396.50 | H124: 1570.30 | I124: 1622.05 | J124: 1657.20 | K124: 1586.9 | L124: 1500 | M124: 8.81932
A125: 116 | B125: JSWENERGY | C125: 40.6 | D125: 40.77 | E125: 39.68 | F125: 38.77 | G125: 37.68 | H125: 41.68 | I125: 42.77 | J125: 43.68 | K125: 41.85 | L125: 39.85 | M125: 31.59243
A126: 117 | B126: JSWSTEEL | C126: 171.4 | D126: 170.73 | E126: 166.52 | F126: 161.63 | G126: 157.42 | H126: 175.62 | I126: 179.83 | J126: 184.72 | K126: 174.95 | L126: 165.85 | M126: 176.16485
A127: 118 | B127: JINDALSTEL | C127: 88 | D127: 90.28 | E127: 84.72 | F127: 81.43 | G127: 75.87 | H127: 93.57 | I127: 99.13 | J127: 102.42 | K127: 95.85 | L127: 87 | M127: 331.51508
A128: 119 | B128: JUBLFOOD | C128: 1421.45 | D128: 1415.82 | E128: 1356.68 | F128: 1291.92 | G128: 1232.78 | H128: 1480.58 | I128: 1539.72 | J128: 1604.48 | K128: 1474.95 | L128: 1351.05 | M128: 19.38008
A129: 120 | B129: JUBILANT | C129: 342.2 | D129: 346.37 | E129: 331.83 | F129: 321.47 | G129: 306.93 | H129: 356.73 | I129: 371.27 | J129: 381.63 | K129: 360.9 | L129: 336 | M129: 3.2207
A130: 121 | B130: KOTAKBANK | C130: 1173.75 | D130: 1199.33 | E130: 1127.72 | F130: 1081.68 | G130: 1010.07 | H130: 1245.37 | I130: 1316.98 | J130: 1363.02 | K130: 1270.95 | L130: 1153.3 | M130: 90.45751
A131: 122 | B131: L&TFH | C131: 54.05 | D131: 54.57 | E131: 52.23 | F131: 50.42 | G131: 48.08 | H131: 56.38 | I131: 58.72 | J131: 60.53 | K131: 56.9 | L131: 52.75 | M131: 125.42359
A132: 123 | B132: LTTS | C132: 1214.85 | D132: 1204.28 | E132: 1168.57 | F132: 1122.28 | G132: 1086.57 | H132: 1250.57 | I132: 1286.28 | J132: 1332.57 | K132: 1240 | L132: 1158 | M132: 1.44427
A133: 124 | B133: LICHSGFIN | C133: 248.15 | D133: 253.28 | E133: 241.77 | F133: 235.38 | G133: 223.87 | H133: 259.67 | I133: 271.18 | J133: 277.57 | K133: 264.8 | L133: 246.9 | M133: 47.68725
A134: 125 | B134: LTI | C134: 1470.5 | D134: 1454.65 | E134: 1420.20 | F134: 1369.90 | G134: 1335.45 | H134: 1504.95 | I134: 1539.40 | J134: 1589.70 | K134: 1489.1 | L134: 1404.35 | M134: 1.46529
A135: 126 | B135: LT | C135: 880.15 | D135: 891.92 | E135: 857.23 | F135: 834.32 | G135: 799.63 | H135: 914.83 | I135: 949.52 | J135: 972.43 | K135: 926.6 | L135: 869 | M135: 104.35586
A136: 127 | B136: LUPIN | C136: 810.4 | D136: 818.58 | E136: 783.17 | F136: 755.93 | G136: 720.52 | H136: 845.82 | I136: 881.23 | J136: 908.47 | K136: 854 | L136: 791.35 | M136: 70.00858
A137: 128 | B137: MRF | C137: 57417.75 | D137: 57559.25 | E137: 56618.50 | F137: 55819.25 | G137: 54878.50 | H137: 58358.50 | I137: 59299.25 | J137: 60098.50 | K137: 58500 | L137: 56760 | M137: 0.17187
A138: 129 | B138: MGL | C138: 940.95 | D138: 945.20 | E138: 921.45 | F138: 901.95 | G138: 878.20 | H138: 964.70 | I138: 988.45 | J138: 1007.95 | K138: 968.95 | L138: 925.7 | M138: 8.6492
A139: 130 | B139: M&MFIN | C139: 155.75 | D139: 159.52 | E139: 150.43 | F139: 145.12 | G139: 136.03 | H139: 164.83 | I139: 173.92 | J139: 179.23 | K139: 168.6 | L139: 154.2 | M139: 58.75475
A140: 131 | B140: M&M | C140: 353.15 | D140: 360.78 | E140: 341.67 | F140: 330.18 | G140: 311.07 | H140: 372.27 | I140: 391.38 | J140: 402.87 | K140: 379.9 | L140: 349.3 | M140: 113.00959
A141: 132 | B141: MANAPPURAM | C141: 102.05 | D141: 104.18 | E141: 98.57 | F141: 95.08 | G141: 89.47 | H141: 107.67 | I141: 113.28 | J141: 116.77 | K141: 109.8 | L141: 100.7 | M141: 84.52762
A142: 133 | B142: MRPL | C142: 28 | D142: 27.93 | E142: 27.47 | F142: 26.93 | G142: 26.47 | H142: 28.47 | I142: 28.93 | J142: 29.47 | K142: 28.4 | L142: 27.4 | M142: 4.23742
A143: 134 | B143: MARICO | C143: 303.15 | D143: 301.30 | E143: 292.90 | F143: 282.65 | G143: 274.25 | H143: 311.55 | I143: 319.95 | J143: 330.20 | K143: 309.7 | L143: 291.05 | M143: 47.85567
A144: 135 | B144: MARUTI | C144: 5094.3 | D144: 5161.77 | E144: 4973.53 | F144: 4852.77 | G144: 4664.53 | H144: 5282.53 | I144: 5470.77 | J144: 5591.53 | K144: 5350 | L144: 5041 | M144: 20.94529
A145: 136 | B145: MFSL | C145: 395.9 | D145: 387.28 | E145: 361.62 | F145: 327.33 | G145: 301.67 | H145: 421.57 | I145: 447.23 | J145: 481.52 | K145: 412.95 | L145: 353 | M145: 49.90393
A146: 137 | B146: MINDTREE | C146: 771.9 | D146: 764.20 | E146: 740.55 | F146: 709.20 | G146: 685.55 | H146: 795.55 | I146: 819.20 | J146: 850.55 | K146: 787.85 | L146: 732.85 | M146: 8.2983
A147: 138 | B147: MOTHERSUMI | C147: 71.15 | D147: 70.23 | E147: 65.67 | F147: 60.18 | G147: 55.62 | H147: 75.72 | I147: 80.28 | J147: 85.77 | K147: 74.8 | L147: 64.75 | M147: 467.05442
A148: 139 | B148: MPHASIS | C148: 670.8 | D148: 677.18 | E148: 661.72 | F148: 652.63 | G148: 637.17 | H148: 686.27 | I148: 701.73 | J148: 710.82 | K148: 692.65 | L148: 668.1 | M148: 3.58945
A149: 140 | B149: MUTHOOTFIN | C149: 691.3 | D149: 702.20 | E149: 665.90 | F149: 640.50 | G149: 604.20 | H149: 727.60 | I149: 763.90 | J149: 789.30 | K149: 738.5 | L149: 676.8 | M149: 44.72814
A150: 141 | B150: NATCOPHARM | C150: 597.1 | D150: 609.20 | E150: 575.90 | F150: 554.70 | G150: 521.40 | H150: 630.40 | I150: 663.70 | J150: 684.90 | K150: 642.5 | L150: 588 | M150: 12.51999
A151: 142 | B151: NBCC | C151: 20.55 | D151: 20.62 | E151: 19.73 | F151: 18.92 | G151: 18.03 | H151: 21.43 | I151: 22.32 | J151: 23.13 | K151: 21.5 | L151: 19.8 | M151: 93.76377
A152: 143 | B152: NHPC | C152: 22.2 | D152: 22.48 | E152: 21.42 | F152: 20.63 | G152: 19.57 | H152: 23.27 | I152: 24.33 | J152: 25.12 | K152: 23.55 | L152: 21.7 | M152: 110.12665
A153: 144 | B153: NMDC | C153: 82.45 | D153: 83.50 | E153: 80.70 | F153: 78.95 | G153: 76.15 | H153: 85.25 | I153: 88.05 | J153: 89.80 | K153: 86.3 | L153: 81.75 | M153: 60.26142
A154: 145 | B154: NTPC | C154: 89.9 | D154: 90.93 | E154: 87.67 | F154: 85.43 | G154: 82.17 | H154: 93.17 | I154: 96.43 | J154: 98.67 | K154: 94.2 | L154: 88.7 | M154: 241.28026
A155: 146 | B155: NATIONALUM | C155: 30.25 | D155: 30.50 | E155: 29.60 | F155: 28.95 | G155: 28.05 | H155: 31.15 | I155: 32.05 | J155: 32.70 | K155: 31.4 | L155: 29.85 | M155: 109.38462
A156: 147 | B156: NESTLEIND | C156: 17325.9 | D156: 17124.67 | E156: 16858.33 | F156: 16390.77 | G156: 16124.43 | H156: 17592.23 | I156: 17858.57 | J156: 18326.13 | K156: 17391 | L156: 16657.1 | M156: 1.55579
A157: 148 | B157: NAM-INDIA | C157: 282.5 | D157: 288.22 | E157: 274.48 | F157: 266.47 | G157: 252.73 | H157: 296.23 | I157: 309.97 | J157: 317.98 | K157: 301.95 | L157: 280.2 | M157: 28.91412
A158: 149 | B158: OBEROIRLTY | C158: 310 | D158: 306.52 | E158: 297.48 | F158: 284.97 | G158: 275.93 | H158: 319.03 | I158: 328.07 | J158: 340.58 | K158: 315.55 | L158: 294 | M158: 8.32853
A159: 150 | B159: ONGC | C159: 74.35 | D159: 74.77 | E159: 73.08 | F159: 71.82 | G159: 70.13 | H159: 76.03 | I159: 77.72 | J159: 78.98 | K159: 76.45 | L159: 73.5 | M159: 223.11692
A160: 151 | B160: OIL | C160: 88.7 | D160: 88.68 | E160: 86.42 | F160: 84.13 | G160: 81.87 | H160: 90.97 | I160: 93.23 | J160: 95.52 | K160: 90.95 | L160: 86.4 | M160: 34.74252
A161: 152 | B161: OFSS | C161: 2239.55 | D161: 2223.18 | E161: 2166.37 | F161: 2093.18 | G161: 2036.37 | H161: 2296.37 | I161: 2353.18 | J161: 2426.37 | K161: 2280 | L161: 2150 | M161: 0.27387
A162: 153 | B162: PIIND | C162: 1401 | D162: 1399.00 | E162: 1378.00 | F162: 1355.00 | G162: 1334.00 | H162: 1422.00 | I162: 1443.00 | J162: 1466.00 | K162: 1420 | L162: 1376 | M162: 1.30885
A163: 154 | B163: PNBHOUSING | C163: 176.5 | D163: 175.35 | E163: 170.80 | F163: 165.10 | G163: 160.55 | H163: 181.05 | I163: 185.60 | J163: 191.30 | K163: 179.9 | L163: 169.65 | M163: 9.49782
A164: 155 | B164: PAGEIND | C164: 16840.9 | D164: 16808.63 | E164: 16547.27 | F164: 16253.63 | G164: 15992.27 | H164: 17102.27 | I164: 17363.63 | J164: 17657.27 | K164: 17070 | L164: 16515 | M164: 0.42728
A165: 156 | B165: PETRONET | C165: 210.05 | D165: 213.70 | E165: 205.00 | F165: 199.95 | G165: 191.25 | H165: 218.75 | I165: 227.45 | J165: 232.50 | K165: 222.4 | L165: 208.65 | M165: 40.72547
A166: 157 | B166: PFIZER | C166: 4428 | D166: 4501.75 | E166: 4334.50 | F166: 4241.00 | G166: 4073.75 | H166: 4595.25 | I166: 4762.50 | J166: 4856.00 | K166: 4669 | L166: 4408.25 | M166: 0.79737
A167: 158 | B167: PIDILITIND | C167: 1475 | D167: 1455.13 | E167: 1419.87 | F167: 1364.73 | G167: 1329.47 | H167: 1510.27 | I167: 1545.53 | J167: 1600.67 | K167: 1490.4 | L167: 1400 | M167: 17.06028
A168: 159 | B168: PEL | C168: 932.5 | D168: 950.93 | E168: 901.87 | F168: 871.23 | G168: 822.17 | H168: 981.57 | I168: 1030.63 | J168: 1061.27 | K168: 1000 | L168: 920.3 | M168: 23.20567
A169: 160 | B169: PFC | C169: 88.45 | D169: 88.98 | E169: 86.17 | F169: 83.88 | G169: 81.07 | H169: 91.27 | I169: 94.08 | J169: 96.37 | K169: 91.8 | L169: 86.7 | M169: 79.44539
A170: 161 | B170: POWERGRID | C170: 159.55 | D170: 160.63 | E170: 157.37 | F170: 155.18 | G170: 151.92 | H170: 162.82 | I170: 166.08 | J170: 168.27 | K170: 163.9 | L170: 158.45 | M170: 142.03445
A171: 162 | B171: PRESTIGE | C171: 174.3 | D171: 176.53 | E171: 170.07 | F171: 165.83 | G171: 159.37 | H171: 180.77 | I171: 187.23 | J171: 191.47 | K171: 183 | L171: 172.3 | M171: 5.33809
A172: 163 | B172: PGHH | C172: 11132.3 | D172: 11177.78 | E172: 10955.57 | F172: 10778.83 | G172: 10556.62 | H172: 11354.52 | I172: 11576.73 | J172: 11753.47 | K172: 11400 | L172: 11001.05 | M172: 0.06247
A173: 164 | B173: PNB | C173: 31.1 | D173: 31.43 | E173: 30.27 | F173: 29.43 | G173: 28.27 | H173: 32.27 | I173: 33.43 | J173: 34.27 | K173: 32.6 | L173: 30.6 | M173: 220.95563
A174: 165 | B174: QUESS | C174: 204.95 | D174: 209.32 | E174: 199.73 | F174: 194.52 | G174: 184.93 | H174: 214.53 | I174: 224.12 | J174: 229.33 | K174: 218.9 | L174: 204.1 | M174: 9.55826
A175: 166 | B175: RBLBANK | C175: 120.5 | D175: 122.13 | E175: 116.52 | F175: 112.53 | G175: 106.92 | H175: 126.12 | I175: 131.73 | J175: 135.72 | K175: 127.75 | L175: 118.15 | M175: 281.8617
A176: 167 | B176: RECLTD | C176: 90.35 | D176: 90.50 | E176: 87.55 | F176: 84.75 | G176: 81.80 | H176: 93.30 | I176: 96.25 | J176: 99.05 | K176: 93.45 | L176: 87.7 | M176: 79.56615
A177: 168 | B177: RAJESHEXPO | C177: 562.55 | D177: 572.53 | E177: 548.02 | F177: 533.48 | G177: 508.97 | H177: 587.07 | I177: 611.58 | J177: 626.12 | K177: 597.05 | L177: 558 | M177: 0.87795
A178: 169 | B178: RELIANCE | C178: 1149.85 | D178: 1176.28 | E178: 1116.57 | F178: 1083.28 | G178: 1023.57 | H178: 1209.57 | I178: 1269.28 | J178: 1302.57 | K178: 1236 | L178: 1143 | M178: 161.47959
A179: 170 | B179: SBILIFE | C179: 700.9 | D179: 706.98 | E179: 689.02 | F179: 677.13 | G179: 659.17 | H179: 718.87 | I179: 736.83 | J179: 748.72 | K179: 724.95 | L179: 695.1 | M179: 12.32607
A180: 171 | B180: SRF | C180: 3337.2 | D180: 3356.37 | E180: 3232.83 | F180: 3128.47 | G180: 3004.93 | H180: 3460.73 | I180: 3584.27 | J180: 3688.63 | K180: 3479.9 | L180: 3252 | M180: 3.9951
A181: 172 | B181: SHREECEM | C181: 18138.55 | D181: 18017.92 | E181: 17488.63 | F181: 16838.72 | G181: 16309.43 | H181: 18667.83 | I181: 19197.12 | J181: 19847.03 | K181: 18547.2 | L181: 17368 | M181: 1.25808
A182: 173 | B182: SRTRANSFIN | C182: 662.75 | D182: 670.10 | E182: 633.20 | F182: 603.65 | G182: 566.75 | H182: 699.65 | I182: 736.55 | J182: 766.10 | K182: 707 | L182: 640.55 | M182: 33.12255
A183: 174 | B183: SIEMENS | C183: 1193.25 | D183: 1210.57 | E183: 1167.68 | F183: 1142.12 | G183: 1099.23 | H183: 1236.13 | I183: 1279.02 | J183: 1304.58 | K183: 1253.45 | L183: 1185 | M183: 7.56827
A184: 175 | B184: SBIN | C184: 182.35 | D184: 184.82 | E184: 177.68 | F184: 173.02 | G184: 165.88 | H184: 189.48 | I184: 196.62 | J184: 201.28 | K184: 191.95 | L184: 180.15 | M184: 721.90294
A185: 176 | B185: SAIL | C185: 26.15 | D185: 26.37 | E185: 25.58 | F185: 25.02 | G185: 24.23 | H185: 26.93 | I185: 27.72 | J185: 28.28 | K185: 27.15 | L185: 25.8 | M185: 252.14418
A186: 177 | B186: STRTECH | C186: 79.8 | D186: 80.60 | E186: 77.20 | F186: 74.60 | G186: 71.20 | H186: 83.20 | I186: 86.60 | J186: 89.20 | K186: 84 | L186: 78 | M186: 21.14936
A187: 178 | B187: SUNPHARMA | C187: 449.2 | D187: 460.60 | E187: 432.70 | F187: 416.20 | G187: 388.30 | H187: 477.10 | I187: 505.00 | J187: 521.50 | K187: 488.5 | L187: 444.1 | M187: 325.08977
A188: 179 | B188: SUNTV | C188: 349.15 | D188: 349.55 | E188: 341.35 | F188: 333.55 | G188: 325.35 | H188: 357.35 | I188: 365.55 | J188: 373.35 | K188: 357.75 | L188: 341.75 | M188: 25.76147
A189: 180 | B189: SYNGENE | C189: 278.95 | D189: 285.62 | E189: 271.33 | F189: 263.72 | G189: 249.43 | H189: 293.23 | I189: 307.52 | J189: 315.13 | K189: 299.9 | L189: 278 | M189: 1.92441
A190: 181 | B190: TVSMOTOR | C190: 276.3 | D190: 282.93 | E190: 266.97 | F190: 257.63 | G190: 241.67 | H190: 292.27 | I190: 308.23 | J190: 317.57 | K190: 298.9 | L190: 273.6 | M190: 51.52327
A191: 182 | B191: TCS | C191: 1735.15 | D191: 1758.32 | E191: 1704.63 | F191: 1674.12 | G191: 1620.43 | H191: 1788.83 | I191: 1842.52 | J191: 1873.03 | K191: 1812 | L191: 1727.8 | M191: 47.61401
A192: 183 | B192: TATACONSUM | C192: 315.65 | D192: 314.47 | E192: 306.18 | F192: 296.72 | G192: 288.43 | H192: 323.93 | I192: 332.22 | J192: 341.68 | K192: 322.75 | L192: 305 | M192: 57.21837
A193: 184 | B193: TATAMTRDVR | C193: 36.35 | D193: 37.25 | E193: 35.10 | F193: 33.85 | G193: 31.70 | H193: 38.50 | I193: 40.65 | J193: 41.90 | K193: 39.4 | L193: 36 | M193: 65.07627
A194: 185 | B194: TATAMOTORS | C194: 72.9 | D194: 74.52 | E194: 70.33 | F194: 67.77 | G194: 63.58 | H194: 77.08 | I194: 81.27 | J194: 83.83 | K194: 78.7 | L194: 71.95 | M194: 811.26343
A195: 186 | B195: TATAPOWER | C195: 35.05 | D195: 35.70 | E195: 33.90 | F195: 32.75 | G195: 30.95 | H195: 36.85 | I195: 38.65 | J195: 39.80 | K195: 37.5 | L195: 34.55 | M195: 82.43453
A196: 187 | B196: TATASTEEL | C196: 285.15 | D196: 287.57 | E196: 279.48 | F196: 273.82 | G196: 265.73 | H196: 293.23 | I196: 301.32 | J196: 306.98 | K196: 295.65 | L196: 281.9 | M196: 209.91943
A197: 188 | B197: TECHM | C197: 538.65 | D197: 538.42 | E197: 528.23 | F197: 517.82 | G197: 507.63 | H197: 548.83 | I197: 559.02 | J197: 569.43 | K197: 548.6 | L197: 528 | M197: 63.163
A198: 189 | B198: NIACL | C198: 123.35 | D198: 125.12 | E198: 118.98 | F198: 114.62 | G198: 108.48 | H198: 129.48 | I198: 135.62 | J198: 139.98 | K198: 131.25 | L198: 120.75 | M198: 12.77852
A199: 190 | B199: RAMCOCEM | C199: 516.75 | D199: 523.12 | E199: 500.88 | F199: 485.02 | G199: 462.78 | H199: 538.98 | I199: 561.22 | J199: 577.08 | K199: 545.35 | L199: 507.25 | M199: 16.21621
A200: 191 | B200: TITAN | C200: 952.05 | D200: 959.75 | E200: 929.50 | F200: 906.95 | G200: 876.70 | H200: 982.30 | I200: 1012.55 | J200: 1035.10 | K200: 990 | L200: 937.2 | M200: 55.02744
A201: 192 | B201: TORNTPHARM | C201: 2296.45 | D201: 2338.52 | E201: 2208.08 | F201: 2119.72 | G201: 1989.28 | H201: 2426.88 | I201: 2557.32 | J201: 2645.68 | K201: 2468.95 | L201: 2250.15 | M201: 10.34987
A202: 193 | B202: TORNTPOWER | C202: 297.6 | D202: 300.97 | E202: 287.63 | F202: 277.67 | G202: 264.33 | H202: 310.93 | I202: 324.27 | J202: 334.23 | K202: 314.3 | L202: 291 | M202: 24.72284
A203: 194 | B203: UPL | C203: 350.55 | D203: 354.07 | E203: 326.38 | F203: 302.22 | G203: 274.53 | H203: 378.23 | I203: 405.92 | J203: 430.08 | K203: 381.75 | L203: 329.9 | M203: 222.50838
A204: 195 | B204: ULTRACEMCO | C204: 3600.15 | D204: 3601.88 | E204: 3529.77 | F204: 3459.38 | G204: 3387.27 | H204: 3672.27 | I204: 3744.38 | J204: 3814.77 | K204: 3674 | L204: 3531.5 | M204: 12.39945
A205: 196 | B205: UNIONBANK | C205: 28.95 | D205: 28.97 | E205: 28.33 | F205: 27.72 | G205: 27.08 | H205: 29.58 | I205: 30.22 | J205: 30.83 | K205: 29.6 | L205: 28.35 | M205: 40.88717
... 30 more rows

Sheet MidCap Intra
L5: Back To Main Page
A6: FOR INTRA DAY TRADING | K6: =Main!B10 -> 2020-04-16
A9: Sr.no | B9: Scrip | C9: CLOSE RATE | D9: Pivot Point | E9: Supports | H9: Resistances
C10: Point | E10: S1 | F10: S2 | G10: S3 | H10: R1 | I10: R2 | J10: R3 | K10: HIGH | L10: LOW | M10: Total Trade Quanity in Lakhs
A11: 1 | B11: 3MINDIA | C11: 18872.8 | D11: 18784.02 | E11: 18570.83 | F11: 18268.87 | G11: 18055.68 | H11: 19085.98 | I11: 19299.17 | J11: 19601.13 | K11: 18997.2 | L11: 18482.05 | M11: 0.19066
A12: 2 | B12: AARTIIND | C12: 912.35 | D12: 916.05 | E12: 893.30 | F12: 874.25 | G12: 851.50 | H12: 935.10 | I12: 957.85 | J12: 976.90 | K12: 938.8 | L12: 897 | M12: 4.31292
A13: 3 | B13: AAVAS | C13: 1230.85 | D13: 1211.60 | E13: 1192.25 | F13: 1153.65 | G13: 1134.30 | H13: 1250.20 | I13: 1269.55 | J13: 1308.15 | K13: 1230.95 | L13: 1173 | M13: 1.11977
A14: 4 | B14: ABBOTINDIA | C14: 17107.15 | D14: 17202.38 | E14: 16804.77 | F14: 16502.38 | G14: 16104.77 | H14: 17504.77 | I14: 17902.38 | J14: 18204.77 | K14: 17600 | L14: 16900 | M14: 0.35796
A15: 5 | B15: ABCAPITAL | C15: 48.05 | D15: 48.33 | E15: 45.77 | F15: 43.48 | G15: 40.92 | H15: 50.62 | I15: 53.18 | J15: 55.47 | K15: 50.9 | L15: 46.05 | M15: 26.6424
A16: 6 | B16: ABFRL | C16: 145.6 | D16: 147.20 | E16: 140.90 | F16: 136.20 | G16: 129.90 | H16: 151.90 | I16: 158.20 | J16: 162.90 | K16: 153.5 | L16: 142.5 | M16: 12.27603
A17: 7 | B17: ACC | C17: 1137.95 | D17: 1126.07 | E17: 1089.13 | F17: 1040.32 | G17: 1003.38 | H17: 1174.88 | I17: 1211.82 | J17: 1260.63 | K17: 1163 | L17: 1077.25 | M17: 29.31488
A18: 8 | B18: ADANIGAS | C18: 96.7 | D18: 97.55 | E18: 91.70 | F18: 86.70 | G18: 80.85 | H18: 102.55 | I18: 108.40 | J18: 113.40 | K18: 103.4 | L18: 92.55 | M18: 50.72647
A19: 9 | B19: ADANIGREEN | C19: 187.8 | D19: 187.58 | E19: 184.22 | F19: 180.63 | G19: 177.27 | H19: 191.17 | I19: 194.53 | J19: 198.12 | K19: 190.95 | L19: 184 | M19: 7.47409
A20: 10 | B20: ADANIPORTS | C20: 268.9 | D20: 271.10 | E20: 262.80 | F20: 256.70 | G20: 248.40 | H20: 277.20 | I20: 285.50 | J20: 291.60 | K20: 279.4 | L20: 265 | M20: 76.06729
A21: 11 | B21: ADANIPOWER | C21: 29.3 | D21: 29.83 | E21: 28.52 | F21: 27.73 | G21: 26.42 | H21: 30.62 | I21: 31.93 | J21: 32.72 | K21: 31.15 | L21: 29.05 | M21: 161.72034
A22: 12 | B22: ADANITRANS | C22: 203.8 | D22: 204.25 | E22: 199.55 | F22: 195.30 | G22: 190.60 | H22: 208.50 | I22: 213.20 | J22: 217.45 | K22: 208.95 | L22: 200 | M22: 0.95214
A23: 13 | B23: ADVENZYMES | C23: 142.15 | D23: 141.37 | E23: 137.83 | F23: 133.52 | G23: 129.98 | H23: 145.68 | I23: 149.22 | J23: 153.53 | K23: 144.9 | L23: 137.05 | M23: 0.74304
A24: 14 | B24: AEGISCHEM | C24: 161.1 | D24: 161.67 | E24: 155.33 | F24: 149.57 | G24: 143.23 | H24: 167.43 | I24: 173.77 | J24: 179.53 | K24: 168 | L24: 155.9 | M24: 1.36309
A25: 15 | B25: AFFLE | C25: 1219.45 | D25: 1219.45 | E25: 1219.45 | F25: 1219.45 | G25: 1219.45 | H25: 1219.45 | I25: 1219.45 | J25: 1219.45 | K25: 1219.45 | L25: 1219.45 | M25: 0.09205
A26: 16 | B26: AIAENG | C26: 1425.5 | D26: 1436.32 | E26: 1379.63 | F26: 1333.77 | G26: 1277.08 | H26: 1482.18 | I26: 1538.87 | J26: 1584.73 | K26: 1493 | L26: 1390.45 | M26: 1.54793
A27: 17 | B27: AJANTPHARM | C27: 1409.4 | D27: 1423.13 | E27: 1386.27 | F27: 1363.13 | G27: 1326.27 | H27: 1446.27 | I27: 1483.13 | J27: 1506.27 | K27: 1460 | L27: 1400 | M27: 1.73664
A28: 18 | B28: AKZOINDIA | C28: 2075.65 | D28: 2061.35 | E28: 2024.30 | F28: 1972.95 | G28: 1935.90 | H28: 2112.70 | I28: 2149.75 | J28: 2201.10 | K28: 2098.4 | L28: 2010 | M28: 0.16713
A29: 19 | B29: ALKEM | C29: 2686.85 | D29: 2723.60 | E29: 2637.25 | F29: 2587.65 | G29: 2501.30 | H29: 2773.20 | I29: 2859.55 | J29: 2909.15 | K29: 2809.95 | L29: 2674 | M29: 1.52184
A30: 20 | B30: ALLCARGO | C30: 72.2 | D30: 71.82 | E30: 69.13 | F30: 66.07 | G30: 63.38 | H30: 74.88 | I30: 77.57 | J30: 80.63 | K30: 74.5 | L30: 68.75 | M30: 2.27174
A31: 21 | B31: AMARAJABAT | C31: 511.2 | D31: 512.98 | E31: 497.32 | F31: 483.43 | G31: 467.77 | H31: 526.87 | I31: 542.53 | J31: 556.42 | K31: 528.65 | L31: 499.1 | M31: 9.48123
A32: 22 | B32: AMBER | C32: 1079.4 | D32: 1064.37 | E32: 1016.03 | F32: 952.67 | G32: 904.33 | H32: 1127.73 | I32: 1176.07 | J32: 1239.43 | K32: 1112.7 | L32: 1001 | M32: 1.86098
A33: 23 | B33: AMBUJACEM | C33: 168.55 | D33: 169.87 | E33: 165.78 | F33: 163.02 | G33: 158.93 | H33: 172.63 | I33: 176.72 | J33: 179.48 | K33: 173.95 | L33: 167.1 | M33: 99.09062
A34: 24 | B34: APLAPOLLO | C34: 1217.85 | D34: 1232.27 | E34: 1190.58 | F34: 1163.32 | G34: 1121.63 | H34: 1259.53 | I34: 1301.22 | J34: 1328.48 | K34: 1273.95 | L34: 1205 | M34: 0.40322
A35: 25 | B35: APLLTD | C35: 640.5 | D35: 657.83 | E35: 615.67 | F35: 590.83 | G35: 548.67 | H35: 682.67 | I35: 724.83 | J35: 749.67 | K35: 700 | L35: 633 | M35: 3.25017
A36: 26 | B36: APOLLOHOSP | C36: 1360.55 | D36: 1355.70 | E36: 1296.45 | F36: 1232.35 | G36: 1173.10 | H36: 1419.80 | I36: 1479.05 | J36: 1543.15 | K36: 1414.95 | L36: 1291.6 | M36: 22.7413
A37: 27 | B37: APOLLOTYRE | C37: 88.15 | D37: 88.02 | E37: 86.13 | F37: 84.12 | G37: 82.23 | H37: 90.03 | I37: 91.92 | J37: 93.93 | K37: 89.9 | L37: 86 | M37: 60.59059
A38: 28 | B38: ARVINDFASN | C38: 135.7 | D38: 137.57 | E38: 133.13 | F38: 130.57 | G38: 126.13 | H38: 140.13 | I38: 144.57 | J38: 147.13 | K38: 142 | L38: 135 | M38: 3.7045
A39: 29 | B39: ASAHIINDIA | C39: 158 | D39: 161.80 | E39: 149.80 | F39: 141.60 | G39: 129.60 | H39: 170.00 | I39: 182.00 | J39: 190.20 | K39: 173.8 | L39: 153.6 | M39: 0.12256
A40: 30 | B40: ASHOKA | C40: 51.75 | D40: 51.32 | E40: 47.43 | F40: 43.12 | G40: 39.23 | H40: 55.63 | I40: 59.52 | J40: 63.83 | K40: 55.2 | L40: 47 | M40: 13.66366
A41: 31 | B41: ASHOKLEY | C41: 46.7 | D41: 48.10 | E41: 44.90 | F41: 43.10 | G41: 39.90 | H41: 49.90 | I41: 53.10 | J41: 54.90 | K41: 51.3 | L41: 46.3 | M41: 603.09614
A42: 32 | B42: ASIANPAINT | C42: 1718.2 | D42: 1712.92 | E42: 1689.08 | F42: 1659.97 | G42: 1636.13 | H42: 1742.03 | I42: 1765.87 | J42: 1794.98 | K42: 1736.75 | L42: 1683.8 | M42: 25.0828
A43: 33 | B43: ASTERDM | C43: 101.2 | D43: 101.40 | E43: 99.80 | F43: 98.40 | G43: 96.80 | H43: 102.80 | I43: 104.40 | J43: 105.80 | K43: 103 | L43: 100 | M43: 0.94222
A44: 34 | B44: ASTRAL | C44: 909.15 | D44: 921.40 | E44: 890.80 | F44: 872.45 | G44: 841.85 | H44: 939.75 | I44: 970.35 | J44: 988.70 | K44: 952 | L44: 903.05 | M44: 0.87051
A45: 35 | B45: ASTRAZEN | C45: 2568.45 | D45: 2617.50 | E45: 2509.95 | F45: 2451.45 | G45: 2343.90 | H45: 2676.00 | I45: 2783.55 | J45: 2842.05 | K45: 2725.05 | L45: 2559 | M45: 0.27371
A46: 36 | B46: ATUL | C46: 4214.5 | D46: 4251.83 | E46: 4153.67 | F46: 4092.83 | G46: 3994.67 | H46: 4312.67 | I46: 4410.83 | J46: 4471.67 | K46: 4350 | L46: 4191 | M46: 0.32092
A47: 37 | B47: AUBANK | C47: 502.25 | D47: 500.75 | E47: 492.50 | F47: 482.75 | G47: 474.50 | H47: 510.50 | I47: 518.75 | J47: 528.50 | K47: 509 | L47: 491 | M47: 6.4816
A48: 38 | B48: AUROPHARMA | C48: 514.7 | D48: 516.32 | E48: 495.13 | F48: 475.57 | G48: 454.38 | H48: 535.88 | I48: 557.07 | J48: 576.63 | K48: 537.5 | L48: 496.75 | M48: 126.44934
A49: 39 | B49: AVANTIFEED | C49: 404.1 | D49: 404.02 | E49: 381.18 | F49: 358.27 | G49: 335.43 | H49: 426.93 | I49: 449.77 | J49: 472.68 | K49: 426.85 | L49: 381.1 | M49: 15.94691
A50: 40 | B50: AXISBANK | C50: 417.3 | D50: 427.13 | E50: 402.62 | F50: 387.93 | G50: 363.42 | H50: 441.82 | I50: 466.33 | J50: 481.02 | K50: 451.65 | L50: 412.45 | M50: 483.15084
A51: 41 | B51: BAJAJ-AUTO | C51: 2335.15 | D51: 2379.60 | E51: 2275.60 | F51: 2216.05 | G51: 2112.05 | H51: 2439.15 | I51: 2543.15 | J51: 2602.70 | K51: 2483.6 | L51: 2320.05 | M51: 9.8675
A52: 42 | B52: BAJAJCON | C52: 139.95 | D52: 140.43 | E52: 138.22 | F52: 136.48 | G52: 134.27 | H52: 142.17 | I52: 144.38 | J52: 146.12 | K52: 142.65 | L52: 138.7 | M52: 3.16025
A53: 43 | B53: BAJAJELEC | C53: 317.65 | D53: 319.58 | E53: 313.72 | F53: 309.78 | G53: 303.92 | H53: 323.52 | I53: 329.38 | J53: 333.32 | K53: 325.45 | L53: 315.65 | M53: 1.08187
A54: 44 | B54: BAJAJFINSV | C54: 4599.1 | D54: 4581.12 | E54: 4497.98 | F54: 4396.87 | G54: 4313.73 | H54: 4682.23 | I54: 4765.37 | J54: 4866.48 | K54: 4664.25 | L54: 4480 | M54: 9.83071
A55: 45 | B55: BAJAJHLDNG | C55: 2088.5 | D55: 2051.15 | E55: 1947.35 | F55: 1806.20 | G55: 1702.40 | H55: 2192.30 | I55: 2296.10 | J55: 2437.25 | K55: 2154.95 | L55: 1910 | M55: 0.34275
A56: 46 | B56: BAJFINANCE | C56: 2182.45 | D56: 2239.62 | E56: 2111.23 | F56: 2040.02 | G56: 1911.63 | H56: 2310.83 | I56: 2439.22 | J56: 2510.43 | K56: 2368 | L56: 2168.4 | M56: 93.33672
A57: 47 | B57: BALKRISIND | C57: 872.1 | D57: 877.32 | E57: 851.63 | F57: 831.17 | G57: 805.48 | H57: 897.78 | I57: 923.47 | J57: 943.93 | K57: 903 | L57: 856.85 | M57: 5.56182
A58: 48 | B58: BALMLAWRIE | C58: 100.5 | D58: 99.35 | E58: 91.20 | F58: 81.90 | G58: 73.75 | H58: 108.65 | I58: 116.80 | J58: 126.10 | K58: 107.5 | L58: 90.05 | M58: 14.14773
A59: 49 | B59: BALRAMCHIN | C59: 111.05 | D59: 112.80 | E59: 109.30 | F59: 107.55 | G59: 104.05 | H59: 114.55 | I59: 118.05 | J59: 119.80 | K59: 116.3 | L59: 111.05 | M59: 11.67401
A60: 50 | B60: BANDHANBNK | C60: 186.8 | D60: 194.70 | E60: 177.10 | F60: 167.40 | G60: 149.80 | H60: 204.40 | I60: 222.00 | J60: 231.70 | K60: 212.3 | L60: 185 | M60: 241.76595
A61: 51 | B61: BANKBARODA | C61: 48.95 | D61: 49.78 | E61: 47.67 | F61: 46.38 | G61: 44.27 | H61: 51.07 | I61: 53.18 | J61: 54.47 | K61: 51.9 | L61: 48.5 | M61: 202.43132
A62: 52 | B62: BANKINDIA | C62: 34.3 | D62: 34.23 | E62: 33.77 | F62: 33.23 | G62: 32.77 | H62: 34.77 | I62: 35.23 | J62: 35.77 | K62: 34.7 | L62: 33.7 | M62: 13.23418
A63: 53 | B63: BASF | C63: 1127.8 | D63: 1160.90 | E63: 1086.90 | F63: 1046.00 | G63: 972.00 | H63: 1201.80 | I63: 1275.80 | J63: 1316.70 | K63: 1234.9 | L63: 1120 | M63: 0.7069
A64: 54 | B64: BATAINDIA | C64: 1203.75 | D64: 1212.63 | E64: 1180.27 | F64: 1156.78 | G64: 1124.42 | H64: 1236.12 | I64: 1268.48 | J64: 1291.97 | K64: 1245 | L64: 1189.15 | M64: 10.88202
A65: 55 | B65: BAYERCROP | C65: 3794 | D65: 3844.25 | E65: 3696.25 | F65: 3598.50 | G65: 3450.50 | H65: 3942.00 | I65: 4090.00 | J65: 4187.75 | K65: 3992.25 | L65: 3746.5 | M65: 0.14325
A66: 56 | B66: BBTC | C66: 806.7 | D66: 817.27 | E66: 789.53 | F66: 772.37 | G66: 744.63 | H66: 834.43 | I66: 862.17 | J66: 879.33 | K66: 845 | L66: 800.1 | M66: 0.80149
A67: 57 | B67: BDL | C67: 222.95 | D67: 228.35 | E67: 215.70 | F67: 208.45 | G67: 195.80 | H67: 235.60 | I67: 248.25 | J67: 255.50 | K67: 241 | L67: 221.1 | M67: 0.6488
A68: 58 | B68: BEL | C68: 69.6 | D68: 70.58 | E68: 67.92 | F68: 66.23 | G68: 63.57 | H68: 72.27 | I68: 74.93 | J68: 76.62 | K68: 73.25 | L68: 68.9 | M68: 114.8631
A69: 59 | B69: BEML | C69: 603.1 | D69: 647.10 | E69: 538.25 | F69: 473.40 | G69: 364.55 | H69: 711.95 | I69: 820.80 | J69: 885.65 | K69: 755.95 | L69: 582.25 | M69: 33.01804
A70: 60 | B70: BERGEPAINT | C70: 512.65 | D70: 511.43 | E70: 498.92 | F70: 485.18 | G70: 472.67 | H70: 525.17 | I70: 537.68 | J70: 551.42 | K70: 523.95 | L70: 497.7 | M70: 24.18076
A71: 61 | B71: BHARATFORG | C71: 237.3 | D71: 241.78 | E71: 230.57 | F71: 223.83 | G71: 212.62 | H71: 248.52 | I71: 259.73 | J71: 266.47 | K71: 253 | L71: 235.05 | M71: 18.75218
A72: 62 | B72: BHARTIARTL | C72: 510.5 | D72: 517.17 | E72: 498.38 | F72: 486.27 | G72: 467.48 | H72: 529.28 | I72: 548.07 | J72: 560.18 | K72: 535.95 | L72: 505.05 | M72: 257.93155
A73: 63 | B73: BHEL | C73: 21.45 | D73: 21.97 | E73: 20.78 | F73: 20.12 | G73: 18.93 | H73: 22.63 | I73: 23.82 | J73: 24.48 | K73: 23.15 | L73: 21.3 | M73: 401.78521
A74: 64 | B74: BIOCON | C74: 336.85 | D74: 340.00 | E74: 327.00 | F74: 317.15 | G74: 304.15 | H74: 349.85 | I74: 362.85 | J74: 372.70 | K74: 353 | L74: 330.15 | M74: 84.36365
A75: 65 | B75: BIRLACORPN | C75: 429.05 | D75: 434.23 | E75: 415.32 | F75: 401.58 | G75: 382.67 | H75: 447.97 | I75: 466.88 | J75: 480.62 | K75: 453.15 | L75: 420.5 | M75: 1.8321
A76: 66 | B76: BLISSGVS | C76: 101.25 | D76: 102.05 | E76: 99.80 | F76: 98.35 | G76: 96.10 | H76: 103.50 | I76: 105.75 | J76: 107.20 | K76: 104.3 | L76: 100.6 | M76: 0.7433
A77: 67 | B77: BLUEDART | C77: 2102.75 | D77: 2109.33 | E77: 2049.67 | F77: 1996.58 | G77: 1936.92 | H77: 2162.42 | I77: 2222.08 | J77: 2275.17 | K77: 2169 | L77: 2056.25 | M77: 0.08261
A78: 68 | B78: BLUESTARCO | C78: 476.5 | D78: 484.03 | E78: 463.47 | F78: 450.43 | G78: 429.87 | H78: 497.07 | I78: 517.63 | J78: 530.67 | K78: 504.6 | L78: 471 | M78: 0.80642
A79: 69 | B79: BOMDYEING | C79: 50.65 | D79: 50.92 | E79: 49.33 | F79: 48.02 | G79: 46.43 | H79: 52.23 | I79: 53.82 | J79: 55.13 | K79: 52.5 | L79: 49.6 | M79: 11.57346
A80: 70 | B80: BOSCHLTD | C80: 10524.45 | D80: 10494.88 | E80: 10089.77 | F80: 9655.08 | G80: 9249.97 | H80: 10929.57 | I80: 11334.68 | J80: 11769.37 | K80: 10900 | L80: 10060.2 | M80: 0.55034
A81: 71 | B81: BPCL | C81: 353.85 | D81: 358.43 | E81: 346.52 | F81: 339.18 | G81: 327.27 | H81: 365.77 | I81: 377.68 | J81: 385.02 | K81: 370.35 | L81: 351.1 | M81: 62.99482
A82: 72 | B82: BRIGADE | C82: 137.4 | D82: 138.90 | E82: 126.50 | F82: 115.60 | G82: 103.20 | H82: 149.80 | I82: 162.20 | J82: 173.10 | K82: 151.3 | L82: 128 | M82: 3.27846
A83: 73 | B83: BRITANNIA | C83: 2837.35 | D83: 2833.52 | E83: 2758.53 | F83: 2679.72 | G83: 2604.73 | H83: 2912.33 | I83: 2987.32 | J83: 3066.13 | K83: 2908.5 | L83: 2754.7 | M83: 10.11691
A84: 74 | B84: BSE | C84: 336.55 | D84: 337.53 | E84: 330.07 | F84: 323.58 | G84: 316.12 | H84: 344.02 | I84: 351.48 | J84: 357.97 | K84: 345 | L84: 331.05 | M84: 2.6982
A85: 75 | B85: BSOFT | C85: 66.05 | D85: 66.70 | E85: 64.50 | F85: 62.95 | G85: 60.75 | H85: 68.25 | I85: 70.45 | J85: 72.00 | K85: 68.9 | L85: 65.15 | M85: 5.89846
A86: 76 | B86: CADILAHC | C86: 339.1 | D86: 342.65 | E86: 327.30 | F86: 315.50 | G86: 300.15 | H86: 354.45 | I86: 369.80 | J86: 381.60 | K86: 358 | L86: 330.85 | M86: 114.80952
A87: 77 | B87: CANBK | C87: 86.45 | D87: 88.10 | E87: 84.20 | F87: 81.95 | G87: 78.05 | H87: 90.35 | I87: 94.25 | J87: 96.50 | K87: 92 | L87: 85.85 | M87: 110.08091
A88: 78 | B88: CANFINHOME | C88: 270.15 | D88: 271.37 | E88: 264.78 | F88: 259.42 | G88: 252.83 | H88: 276.73 | I88: 283.32 | J88: 288.68 | K88: 277.95 | L88: 266 | M88: 2.83528
A89: 79 | B89: CAPLIPOINT | C89: 333.55 | D89: 326.77 | E89: 316.78 | F89: 300.02 | G89: 290.03 | H89: 343.53 | I89: 353.52 | J89: 370.28 | K89: 336.75 | L89: 310 | M89: 2.61444
A90: 80 | B90: CARBORUNIV | C90: 216.4 | D90: 219.88 | E90: 210.52 | F90: 204.63 | G90: 195.27 | H90: 225.77 | I90: 235.13 | J90: 241.02 | K90: 229.25 | L90: 214 | M90: 0.93268
A91: 81 | B91: CARERATING | C91: 413.95 | D91: 416.32 | E91: 405.88 | F91: 397.82 | G91: 387.38 | H91: 424.38 | I91: 434.82 | J91: 442.88 | K91: 426.75 | L91: 408.25 | M91: 6.2681
A92: 82 | B92: CASTROLIND | C92: 113.2 | D92: 113.75 | E92: 110.75 | F92: 108.30 | G92: 105.30 | H92: 116.20 | I92: 119.20 | J92: 121.65 | K92: 116.75 | L92: 111.3 | M92: 17.3012
A93: 83 | B93: CCL | C93: 185.65 | D93: 188.45 | E93: 182.00 | F93: 178.35 | G93: 171.90 | H93: 192.10 | I93: 198.55 | J93: 202.20 | K93: 194.9 | L93: 184.8 | M93: 1.44372
A94: 84 | B94: CDSL | C94: 217.8 | D94: 220.37 | E94: 213.63 | F94: 209.47 | G94: 202.73 | H94: 224.53 | I94: 231.27 | J94: 235.43 | K94: 227.1 | L94: 216.2 | M94: 4.36359
A95: 85 | B95: CEATLTD | C95: 779.5 | D95: 793.13 | E95: 742.37 | F95: 705.23 | G95: 654.47 | H95: 830.27 | I95: 881.03 | J95: 918.17 | K95: 843.9 | L95: 756 | M95: 2.14367
A96: 86 | B96: CENTRALBK | C96: 12.65 | D96: 12.72 | E96: 12.43 | F96: 12.22 | G96: 11.93 | H96: 12.93 | I96: 13.22 | J96: 13.43 | K96: 13 | L96: 12.5 | M96: 6.90172
A97: 87 | B97: CENTURYPLY | C97: 111 | D97: 110.77 | E97: 108.13 | F97: 105.27 | G97: 102.63 | H97: 113.63 | I97: 116.27 | J97: 119.13 | K97: 113.4 | L97: 107.9 | M97: 1.58576
A98: 88 | B98: CERA | C98: 2287.5 | D98: 2268.98 | E98: 2237.97 | F98: 2188.43 | G98: 2157.42 | H98: 2318.52 | I98: 2349.53 | J98: 2399.07 | K98: 2300 | L98: 2219.45 | M98: 0.04469
A99: 89 | B99: CESC | C99: 503.95 | D99: 510.82 | E99: 492.83 | F99: 481.72 | G99: 463.73 | H99: 521.93 | I99: 539.92 | J99: 551.03 | K99: 528.8 | L99: 499.7 | M99: 9.76738
A100: 90 | B100: CGCL | C100: 119.55 | D100: 119.45 | E100: 117.95 | F100: 116.35 | G100: 114.85 | H100: 121.05 | I100: 122.55 | J100: 124.15 | K100: 120.95 | L100: 117.85 | M100: 0.37345
A101: 91 | B101: CHALET | C101: 179.15 | D101: 176.42 | E101: 169.83 | F101: 160.52 | G101: 153.93 | H101: 185.73 | I101: 192.32 | J101: 201.63 | K101: 183 | L101: 167.1 | M101: 0.21443
A102: 92 | B102: CHAMBLFERT | C102: 128.95 | D102: 129.68 | E102: 121.37 | F102: 113.78 | G102: 105.47 | H102: 137.27 | I102: 145.58 | J102: 153.17 | K102: 138 | L102: 122.1 | M102: 25.74308
A103: 93 | B103: CHENNPETRO | C103: 63.05 | D103: 63.43 | E103: 61.87 | F103: 60.68 | G103: 59.12 | H103: 64.62 | I103: 66.18 | J103: 67.37 | K103: 65 | L103: 62.25 | M103: 4.31504
A104: 94 | B104: CHOLAFIN | C104: 153.65 | D104: 153.77 | E104: 144.88 | F104: 136.12 | G104: 127.23 | H104: 162.53 | I104: 171.42 | J104: 180.18 | K104: 162.65 | L104: 145 | M104: 59.59935
A105: 95 | B105: CHOLAHLDNG | C105: 277.1 | D105: 282.55 | E105: 268.10 | F105: 259.10 | G105: 244.65 | H105: 291.55 | I105: 306.00 | J105: 315.00 | K105: 297 | L105: 273.55 | M105: 0.66503
A106: 96 | B106: CIPLA | C106: 592.35 | D106: 594.98 | E106: 575.97 | F106: 559.58 | G106: 540.57 | H106: 611.37 | I106: 630.38 | J106: 646.77 | K106: 614 | L106: 578.6 | M106: 162.13849
A107: 97 | B107: COALINDIA | C107: 146.85 | D107: 148.15 | E107: 144.70 | F107: 142.55 | G107: 139.10 | H107: 150.30 | I107: 153.75 | J107: 155.90 | K107: 151.6 | L107: 146 | M107: 104.87978
A108: 98 | B108: COCHINSHIP | C108: 256.4 | D108: 257.65 | E108: 253.20 | F108: 250.00 | G108: 245.55 | H108: 260.85 | I108: 265.30 | J108: 268.50 | K108: 262.1 | L108: 254.45 | M108: 1.26931
A109: 99 | B109: COLPAL | C109: 1388.25 | D109: 1389.22 | E109: 1356.43 | F109: 1324.62 | G109: 1291.83 | H109: 1421.03 | I109: 1453.82 | J109: 1485.63 | K109: 1422 | L109: 1357.4 | M109: 10.62751
A110: 100 | B110: CONCOR | C110: 383.55 | D110: 387.67 | E110: 376.53 | F110: 369.52 | G110: 358.38 | H110: 394.68 | I110: 405.82 | J110: 412.83 | K110: 398.8 | L110: 380.65 | M110: 17.24976
A111: 101 | B111: COROMANDEL | C111: 528.55 | D111: 527.50 | E111: 513.05 | F111: 497.55 | G111: 483.10 | H111: 543.00 | I111: 557.45 | J111: 572.95 | K111: 541.95 | L111: 512 | M111: 2.14723
A112: 102 | B112: CREDITACC | C112: 344.9 | D112: 346.32 | E112: 330.73 | F112: 316.57 | G112: 300.98 | H112: 360.48 | I112: 376.07 | J112: 390.23 | K112: 361.9 | L112: 332.15 | M112: 1.16568
A113: 103 | B113: CRISIL | C113: 1393.55 | D113: 1409.20 | E113: 1343.40 | F113: 1293.25 | G113: 1227.45 | H113: 1459.35 | I113: 1525.15 | J113: 1575.30 | K113: 1475 | L113: 1359.05 | M113: 0.36006
A114: 104 | B114: CROMPTON | C114: 219.15 | D114: 216.83 | E114: 212.32 | F114: 205.48 | G114: 200.97 | H114: 223.67 | I114: 228.18 | J114: 235.02 | K114: 221.35 | L114: 210 | M114: 8.22043
A115: 105 | B115: CUB | C115: 129.25 | D115: 131.63 | E115: 124.32 | F115: 119.38 | G115: 112.07 | H115: 136.57 | I115: 143.88 | J115: 148.82 | K115: 138.95 | L115: 126.7 | M115: 18.55884
A116: 106 | B116: CUMMINSIND | C116: 375.4 | D116: 374.52 | E116: 361.03 | F116: 346.67 | G116: 333.18 | H116: 388.88 | I116: 402.37 | J116: 416.73 | K116: 388 | L116: 360.15 | M116: 23.14627
A117: 107 | B117: CYIENT | C117: 225.1 | D117: 226.20 | E117: 221.40 | F117: 217.70 | G117: 212.90 | H117: 229.90 | I117: 234.70 | J117: 238.40 | K117: 231 | L117: 222.5 | M117: 8.89065
A118: 108 | B118: DABUR | C118: 502.85 | D118: 496.28 | E118: 486.57 | F118: 470.28 | G118: 460.57 | H118: 512.57 | I118: 522.28 | J118: 538.57 | K118: 506 | L118: 480 | M118: 43.43315
A119: 109 | B119: DALBHARAT | C119: 536.75 | D119: 534.33 | E119: 508.67 | F119: 480.58 | G119: 454.92 | H119: 562.42 | I119: 588.08 | J119: 616.17 | K119: 560 | L119: 506.25 | M119: 4.10481
A120: 110 | B120: DBCORP | C120: 82.4 | D120: 84.05 | E120: 80.35 | F120: 78.30 | G120: 74.60 | H120: 86.10 | I120: 89.80 | J120: 91.85 | K120: 87.75 | L120: 82 | M120: 1.73635
A121: 111 | B121: DBL | C121: 259.9 | D121: 248.52 | E121: 232.93 | F121: 205.97 | G121: 190.38 | H121: 275.48 | I121: 291.07 | J121: 318.03 | K121: 264.1 | L121: 221.55 | M121: 11.63425
A122: 112 | B122: DCAL | C122: 74.85 | D122: 74.85 | E122: 74.85 | F122: 74.85 | G122: 74.85 | H122: 74.85 | I122: 74.85 | J122: 74.85 | K122: 74.85 | L122: 74.85 | M122: 0.12817
A123: 113 | B123: DCBBANK | C123: 86.6 | D123: 85.87 | E123: 84.23 | F123: 81.87 | G123: 80.23 | H123: 88.23 | I123: 89.87 | J123: 92.23 | K123: 87.5 | L123: 83.5 | M123: 6.69292
A124: 114 | B124: DCMSHRIRAM | C124: 227.25 | D124: 229.18 | E124: 223.37 | F124: 219.48 | G124: 213.67 | H124: 233.07 | I124: 238.88 | J124: 242.77 | K124: 235 | L124: 225.3 | M124: 0.90591
A125: 115 | B125: DEEPAKNTR | C125: 446.85 | D125: 453.38 | E125: 429.47 | F125: 412.08 | G125: 388.17 | H125: 470.77 | I125: 494.68 | J125: 512.07 | K125: 477.3 | L125: 436 | M125: 7.1431
A126: 116 | B126: DELTACORP | C126: 67.7 | D126: 68.70 | E126: 65.40 | F126: 63.10 | G126: 59.80 | H126: 71.00 | I126: 74.30 | J126: 76.60 | K126: 72 | L126: 66.4 | M126: 27.67563
A127: 117 | B127: DHFL | C127: 11.35 | D127: 11.22 | E127: 11.08 | F127: 10.82 | G127: 10.68 | H127: 11.48 | I127: 11.62 | J127: 11.88 | K127: 11.35 | L127: 10.95 | M127: 17.63153
A128: 118 | B128: DISHTV | C128: 4.5 | D128: 4.63 | E128: 4.37 | F128: 4.23 | G128: 3.97 | H128: 4.77 | I128: 5.03 | J128: 5.17 | K128: 4.9 | L128: 4.5 | M128: 96.83739
A129: 119 | B129: DIVISLAB | C129: 2395.45 | D129: 2381.15 | E129: 2344.30 | F129: 2293.15 | G129: 2256.30 | H129: 2432.30 | I129: 2469.15 | J129: 2520.30 | K129: 2418 | L129: 2330 | M129: 11.36727
A130: 120 | B130: DIXON | C130: 3699.3 | D130: 3738.43 | E130: 3601.87 | F130: 3504.43 | G130: 3367.87 | H130: 3835.87 | I130: 3972.43 | J130: 4069.87 | K130: 3875 | L130: 3641 | M130: 0.2841
A131: 121 | B131: DLF | C131: 140.3 | D131: 140.92 | E131: 137.18 | F131: 134.07 | G131: 130.33 | H131: 144.03 | I131: 147.77 | J131: 150.88 | K131: 144.65 | L131: 137.8 | M131: 98.21552
A132: 122 | B132: DMART | C132: 2180.9 | D132: 2220.10 | E132: 2120.20 | F132: 2059.50 | G132: 1959.60 | H132: 2280.80 | I132: 2380.70 | J132: 2441.40 | K132: 2320 | L132: 2159.4 | M132: 6.34856
A133: 123 | B133: DRREDDY | C133: 3807.6 | D133: 3825.73 | E133: 3757.87 | F133: 3708.13 | G133: 3640.27 | H133: 3875.47 | I133: 3943.33 | J133: 3993.07 | K133: 3893.6 | L133: 3776 | M133: 17.25113
A134: 124 | B134: ECLERX | C134: 446.55 | D134: 441.52 | E134: 415.03 | F134: 383.52 | G134: 357.03 | H134: 473.03 | I134: 499.52 | J134: 531.03 | K134: 468 | L134: 410 | M134: 1.57103
A135: 125 | B135: EDELWEISS | C135: 34.6 | D135: 34.90 | E135: 33.65 | F135: 32.70 | G135: 31.45 | H135: 35.85 | I135: 37.10 | J135: 38.05 | K135: 36.15 | L135: 33.95 | M135: 28.51266
A136: 126 | B136: EICHERMOT | C136: 13314.9 | D136: 13436.52 | E136: 13001.08 | F136: 12687.27 | G136: 12251.83 | H136: 13750.33 | I136: 14185.77 | J136: 14499.58 | K136: 13871.95 | L136: 13122.7 | M136: 2.75594
A137: 127 | B137: EIDPARRY | C137: 133.45 | D137: 136.08 | E137: 129.47 | F137: 125.48 | G137: 118.87 | H137: 140.07 | I137: 146.68 | J137: 150.67 | K137: 142.7 | L137: 132.1 | M137: 1.22692
A138: 128 | B138: EIHOTEL | C138: 75.95 | D138: 75.18 | E138: 73.02 | F138: 70.08 | G138: 67.92 | H138: 78.12 | I138: 80.28 | J138: 83.22 | K138: 77.35 | L138: 72.25 | M138: 2.38358
A139: 129 | B139: ELGIEQUIP | C139: 134.5 | D139: 132.90 | E139: 128.60 | F139: 122.70 | G139: 118.40 | H139: 138.80 | I139: 143.10 | J139: 149.00 | K139: 137.2 | L139: 127 | M139: 33.45466
A140: 130 | B140: EMAMILTD | C140: 226.75 | D140: 227.75 | E140: 223.00 | F140: 219.25 | G140: 214.50 | H140: 231.50 | I140: 236.25 | J140: 240.00 | K140: 232.5 | L140: 224 | M140: 5.68662
A141: 131 | B141: ENDURANCE | C141: 595.25 | D141: 595.65 | E141: 586.30 | F141: 577.35 | G141: 568.00 | H141: 604.60 | I141: 613.95 | J141: 622.90 | K141: 605 | L141: 586.7 | M141: 2.55707
A142: 132 | B142: ENGINERSIN | C142: 67.05 | D142: 66.70 | E142: 65.45 | F142: 63.85 | G142: 62.60 | H142: 68.30 | I142: 69.55 | J142: 71.15 | K142: 67.95 | L142: 65.1 | M142: 11.34695
A143: 133 | B143: EQUITAS | C143: 38.9 | D143: 40.33 | E143: 37.17 | F143: 35.43 | G143: 32.27 | H143: 42.07 | I143: 45.23 | J143: 46.97 | K143: 43.5 | L143: 38.6 | M143: 138.37992
A144: 134 | B144: ERIS | C144: 499.5 | D144: 497.42 | E144: 467.03 | F144: 434.57 | G144: 404.18 | H144: 529.88 | I144: 560.27 | J144: 592.73 | K144: 527.8 | L144: 464.95 | M144: 2.32689
A145: 135 | B145: ESCORTS | C145: 714.7 | D145: 735.13 | E145: 677.62 | F145: 640.53 | G145: 583.02 | H145: 772.22 | I145: 829.73 | J145: 866.82 | K145: 792.65 | L145: 698.05 | M145: 67.83089
A146: 136 | B146: ESSELPACK | C146: 165.5 | D146: 166.82 | E146: 163.13 | F146: 160.77 | G146: 157.08 | H146: 169.18 | I146: 172.87 | J146: 175.23 | K146: 170.5 | L146: 164.45 | M146: 0.7863
A147: 137 | B147: EXIDEIND | C147: 140.45 | D147: 142.22 | E147: 137.23 | F147: 134.02 | G147: 129.03 | H147: 145.43 | I147: 150.42 | J147: 153.63 | K147: 147.2 | L147: 139 | M147: 30.26934
A148: 138 | B148: FCONSUMER | C148: 6.75 | D148: 6.65 | E148: 6.55 | F148: 6.35 | G148: 6.25 | H148: 6.85 | I148: 6.95 | J148: 7.15 | K148: 6.75 | L148: 6.45 | M148: 44.60063
A149: 139 | B149: FDC | C149: 241.05 | D149: 240.68 | E149: 233.37 | F149: 225.68 | G149: 218.37 | H149: 248.37 | I149: 255.68 | J149: 263.37 | K149: 248 | L149: 233 | M149: 6.81312
A150: 140 | B150: FEDERALBNK | C150: 41.4 | D150: 42.07 | E150: 40.33 | F150: 39.27 | G150: 37.53 | H150: 43.13 | I150: 44.87 | J150: 45.93 | K150: 43.8 | L150: 41 | M150: 278.00697
A151: 141 | B151: FINCABLES | C151: 240.4 | D151: 239.98 | E151: 234.42 | F151: 228.43 | G151: 222.87 | H151: 245.97 | I151: 251.53 | J151: 257.52 | K151: 245.55 | L151: 234 | M151: 1.17275
A152: 142 | B152: FINEORG | C152: 2060.8 | D152: 2091.93 | E152: 2018.87 | F152: 1976.93 | G152: 1903.87 | H152: 2133.87 | I152: 2206.93 | J152: 2248.87 | K152: 2165 | L152: 2050 | M152: 0.06743
A153: 143 | B153: FINPIPE | C153: 424.6 | D153: 421.55 | E153: 414.10 | F153: 403.60 | G153: 396.15 | H153: 432.05 | I153: 439.50 | J153: 450.00 | K153: 429 | L153: 411.05 | M153: 0.67191
A154: 144 | B154: FLFL | C154: 111 | D154: 110.00 | E154: 109.00 | F154: 107.00 | G154: 106.00 | H154: 112.00 | I154: 113.00 | J154: 115.00 | K154: 111 | L154: 108 | M154: 0.20391
A155: 145 | B155: FMGOETZE | C155: 332 | D155: 335.00 | E155: 325.00 | F155: 318.00 | G155: 308.00 | H155: 342.00 | I155: 352.00 | J155: 359.00 | K155: 345 | L155: 328 | M155: 0.01516
A156: 146 | B156: FORTIS | C156: 121 | D156: 122.18 | E156: 118.92 | F156: 116.83 | G156: 113.57 | H156: 124.27 | I156: 127.53 | J156: 129.62 | K156: 125.45 | L156: 120.1 | M156: 17.43665
A157: 147 | B157: FRETAIL | C157: 73 | D157: 72.47 | E157: 71.93 | F157: 70.87 | G157: 70.33 | H157: 73.53 | I157: 74.07 | J157: 75.13 | K157: 73 | L157: 71.4 | M157: 15.3697
A158: 148 | B158: FSL | C158: 34.85 | D158: 34.45 | E158: 33.40 | F158: 31.95 | G158: 30.90 | H158: 35.90 | I158: 36.95 | J158: 38.40 | K158: 35.5 | L158: 33 | M158: 15.23893
A159: 149 | B159: GAIL | C159: 86.6 | D159: 87.57 | E159: 85.13 | F159: 83.67 | G159: 81.23 | H159: 89.03 | I159: 91.47 | J159: 92.93 | K159: 90 | L159: 86.1 | M159: 134.27323
A160: 150 | B160: GALAXYSURF | C160: 1287.8 | D160: 1283.78 | E160: 1253.57 | F160: 1219.33 | G160: 1189.12 | H160: 1318.02 | I160: 1348.23 | J160: 1382.47 | K160: 1314 | L160: 1249.55 | M160: 0.29745
A161: 151 | B161: GARFIBRES | C161: 1185.15 | D161: 1195.17 | E161: 1146.33 | F161: 1107.52 | G161: 1058.68 | H161: 1233.98 | I161: 1282.82 | J161: 1321.63 | K161: 1244 | L161: 1156.35 | M161: 0.10961
A162: 152 | B162: GAYAPROJ | C162: 8.85 | D162: 9.10 | E162: 8.60 | F162: 8.35 | G162: 7.85 | H162: 9.35 | I162: 9.85 | J162: 10.10 | K162: 9.6 | L162: 8.85 | M162: 4.098
A163: 153 | B163: GEPIL | C163: 449.25 | D163: 446.77 | E163: 441.53 | F163: 433.82 | G163: 428.58 | H163: 454.48 | I163: 459.72 | J163: 467.43 | K163: 452 | L163: 439.05 | M163: 0.57783
A164: 154 | B164: GESHIP | C164: 192.4 | D164: 194.85 | E164: 185.70 | F164: 179.00 | G164: 169.85 | H164: 201.55 | I164: 210.70 | J164: 217.40 | K164: 204 | L164: 188.15 | M164: 0.96168
A165: 155 | B165: GET&D | C165: 85.4 | D165: 86.28 | E165: 83.12 | F165: 80.83 | G165: 77.67 | H165: 88.57 | I165: 91.73 | J165: 94.02 | K165: 89.45 | L165: 84 | M165: 0.45095
A166: 156 | B166: GHCL | C166: 112.3 | D166: 112.22 | E166: 109.18 | F166: 106.07 | G166: 103.03 | H166: 115.33 | I166: 118.37 | J166: 121.48 | K166: 115.25 | L166: 109.1 | M166: 2.54573
A167: 157 | B167: GICRE | C167: 124.25 | D167: 122.22 | E167: 120.03 | F167: 115.82 | G167: 113.63 | H167: 126.43 | I167: 128.62 | J167: 132.83 | K167: 124.4 | L167: 118 | M167: 2.34748
A168: 158 | B168: GILLETTE | C168: 5338.05 | D168: 5367.02 | E168: 5236.03 | F168: 5134.02 | G168: 5003.03 | H168: 5469.03 | I168: 5600.02 | J168: 5702.03 | K168: 5498 | L168: 5265 | M168: 0.05103
A169: 159 | B169: GLAXO | C169: 1476.85 | D169: 1494.87 | E169: 1445.73 | F169: 1414.62 | G169: 1365.48 | H169: 1525.98 | I169: 1575.12 | J169: 1606.23 | K169: 1544 | L169: 1463.75 | M169: 1.65735
A170: 160 | B170: GLENMARK | C170: 319.75 | D170: 323.82 | E170: 305.13 | F170: 290.52 | G170: 271.83 | H170: 338.43 | I170: 357.12 | J170: 371.73 | K170: 342.5 | L170: 309.2 | M170: 217.89838
A171: 161 | B171: GMDCLTD | C171: 38.35 | D171: 39.00 | E171: 37.20 | F171: 36.05 | G171: 34.25 | H171: 40.15 | I171: 41.95 | J171: 43.10 | K171: 40.8 | L171: 37.85 | M171: 12.89088
A172: 162 | B172: GMRINFRA | C172: 17 | D172: 17.20 | E172: 16.65 | F172: 16.30 | G172: 15.75 | H172: 17.55 | I172: 18.10 | J172: 18.45 | K172: 17.75 | L172: 16.85 | M172: 324.27104
A173: 163 | B173: GNFC | C173: 139.25 | D173: 139.32 | E173: 133.73 | F173: 128.22 | G173: 122.63 | H173: 144.83 | I173: 150.42 | J173: 155.93 | K173: 144.9 | L173: 133.8 | M173: 21.85051
A174: 164 | B174: GODFRYPHLP | C174: 997.45 | D174: 1008.82 | E174: 976.63 | F174: 955.82 | G174: 923.63 | H174: 1029.63 | I174: 1061.82 | J174: 1082.63 | K174: 1041 | L174: 988 | M174: 1.11589
A175: 165 | B175: GODREJAGRO | C175: 385.75 | D175: 388.38 | E175: 361.77 | F175: 337.78 | G175: 311.17 | H175: 412.37 | I175: 438.98 | J175: 462.97 | K175: 415 | L175: 364.4 | M175: 2.82499
A176: 166 | B176: GODREJCP | C176: 571.65 | D176: 577.80 | E176: 556.70 | F176: 541.75 | G176: 520.65 | H176: 592.75 | I176: 613.85 | J176: 628.80 | K176: 598.9 | L176: 562.85 | M176: 27.78395
A177: 167 | B177: GODREJIND | C177: 273.1 | D177: 275.02 | E177: 270.08 | F177: 267.07 | G177: 262.13 | H177: 278.03 | I177: 282.97 | J177: 285.98 | K177: 279.95 | L177: 272 | M177: 4.01116
A178: 168 | B178: GODREJPROP | C178: 655.3 | D178: 659.07 | E178: 640.13 | F178: 624.97 | G178: 606.03 | H178: 674.23 | I178: 693.17 | J178: 708.33 | K178: 678 | L178: 643.9 | M178: 3.25354
A179: 169 | B179: GPPL | C179: 55.95 | D179: 55.95 | E179: 55.00 | F179: 54.05 | G179: 53.10 | H179: 56.90 | I179: 57.85 | J179: 58.80 | K179: 56.9 | L179: 55 | M179: 3.91979
A180: 170 | B180: GRANULES | C180: 167.85 | D180: 170.25 | E180: 162.60 | F180: 157.35 | G180: 149.70 | H180: 175.50 | I180: 183.15 | J180: 188.40 | K180: 177.9 | L180: 165 | M180: 19.8799
A181: 171 | B181: GRAPHITE | C181: 178.9 | D181: 176.60 | E181: 174.30 | F181: 169.70 | G181: 167.40 | H181: 181.20 | I181: 183.50 | J181: 188.10 | K181: 178.9 | L181: 172 | M181: 3.98973
A182: 172 | B182: GRASIM | C182: 535.4 | D182: 546.13 | E182: 519.42 | F182: 503.43 | G182: 476.72 | H182: 562.12 | I182: 588.83 | J182: 604.82 | K182: 572.85 | L182: 530.15 | M182: 21.25336
A183: 173 | B183: GREAVESCOT | C183: 82.6 | D183: 81.43 | E183: 78.37 | F183: 74.13 | G183: 71.07 | H183: 85.67 | I183: 88.73 | J183: 92.97 | K183: 84.5 | L183: 77.2 | M183: 8.72147
A184: 174 | B184: GRINDWELL | C184: 458.9 | D184: 455.23 | E184: 447.72 | F184: 436.53 | G184: 429.02 | H184: 466.42 | I184: 473.93 | J184: 485.12 | K184: 462.75 | L184: 444.05 | M184: 0.06987
A185: 175 | B185: GSFC | C185: 43.95 | D185: 44.28 | E185: 42.27 | F185: 40.58 | G185: 38.57 | H185: 45.97 | I185: 47.98 | J185: 49.67 | K185: 46.3 | L185: 42.6 | M185: 13.79326
A186: 176 | B186: GSPL | C186: 199.85 | D186: 196.12 | E186: 189.48 | F186: 179.12 | G186: 172.48 | H186: 206.48 | I186: 213.12 | J186: 223.48 | K186: 202.75 | L186: 185.75 | M186: 9.49026
A187: 177 | B187: GUJALKALI | C187: 309.4 | D187: 311.60 | E187: 304.80 | F187: 300.20 | G187: 293.40 | H187: 316.20 | I187: 323.00 | J187: 327.60 | K187: 318.4 | L187: 307 | M187: 0.66395
A188: 178 | B188: GUJGASLTD | C188: 248.05 | D188: 245.98 | E188: 237.97 | F188: 227.88 | G188: 219.87 | H188: 256.07 | I188: 264.08 | J188: 274.17 | K188: 254 | L188: 235.9 | M188: 17.10438
A189: 179 | B189: GULFOILLUB | C189: 590.6 | D189: 596.87 | E189: 573.78 | F189: 556.97 | G189: 533.88 | H189: 613.68 | I189: 636.77 | J189: 653.58 | K189: 619.95 | L189: 580.05 | M189: 0.51032
A190: 180 | B190: HAL | C190: 555.55 | D190: 560.93 | E190: 546.27 | F190: 536.98 | G190: 522.32 | H190: 570.22 | I190: 584.88 | J190: 594.17 | K190: 575.6 | L190: 551.65 | M190: 0.39636
A191: 181 | B191: HATSUN | C191: 503.9 | D191: 503.17 | E191: 486.33 | F191: 468.77 | G191: 451.93 | H191: 520.73 | I191: 537.57 | J191: 555.13 | K191: 520 | L191: 485.6 | M191: 0.09052
A192: 182 | B192: HAVELLS | C192: 559.5 | D192: 558.80 | E192: 537.75 | F192: 516.00 | G192: 494.95 | H192: 580.55 | I192: 601.60 | J192: 623.35 | K192: 579.85 | L192: 537.05 | M192: 35.95791
A193: 183 | B193: HCLTECH | C193: 478.75 | D193: 474.48 | E193: 466.97 | F193: 455.18 | G193: 447.67 | H193: 486.27 | I193: 493.78 | J193: 505.57 | K193: 482 | L193: 462.7 | M193: 63.33192
A194: 184 | B194: HDFC | C194: 1596.3 | D194: 1630.40 | E194: 1550.80 | F194: 1505.30 | G194: 1425.70 | H194: 1675.90 | I194: 1755.50 | J194: 1801.00 | K194: 1710 | L194: 1584.9 | M194: 85.12332
A195: 185 | B195: HDFCAMC | C195: 2616.1 | D195: 2637.00 | E195: 2564.50 | F195: 2512.90 | G195: 2440.40 | H195: 2688.60 | I195: 2761.10 | J195: 2812.70 | K195: 2709.5 | L195: 2585.4 | M195: 5.93405
A196: 186 | B196: HDFCBANK | C196: 863.3 | D196: 878.93 | E196: 827.37 | F196: 791.43 | G196: 739.87 | H196: 914.87 | I196: 966.43 | J196: 1002.37 | K196: 930.5 | L196: 843 | M196: 289.89523
A197: 187 | B197: HDFCLIFE | C197: 471.7 | D197: 476.30 | E197: 463.90 | F197: 456.10 | G197: 443.70 | H197: 484.10 | I197: 496.50 | J197: 504.30 | K197: 488.7 | L197: 468.5 | M197: 39.5183
A198: 188 | B198: HEG | C198: 710.9 | D198: 703.93 | E198: 696.97 | F198: 683.03 | G198: 676.07 | H198: 717.87 | I198: 724.83 | J198: 738.77 | K198: 710.9 | L198: 690 | M198: 1.67992
A199: 189 | B199: HEIDELBERG | C199: 150.55 | D199: 152.18 | E199: 148.37 | F199: 146.18 | G199: 142.37 | H199: 154.37 | I199: 158.18 | J199: 160.37 | K199: 156 | L199: 150 | M199: 7.31257
A200: 190 | B200: HERITGFOOD | C200: 289.35 | D200: 289.23 | E200: 289.12 | F200: 288.88 | G200: 288.77 | H200: 289.47 | I200: 289.58 | J200: 289.82 | K200: 289.35 | L200: 289 | M200: 0.3325
A201: 191 | B201: HEROMOTOCO | C201: 1824.1 | D201: 1869.93 | E201: 1765.87 | F201: 1707.63 | G201: 1603.57 | H201: 1928.17 | I201: 2032.23 | J201: 2090.47 | K201: 1974 | L201: 1811.7 | M201: 15.3763
A202: 192 | B202: HEXAWARE | C202: 289.8 | D202: 289.20 | E202: 278.40 | F202: 267.00 | G202: 256.20 | H202: 300.60 | I202: 311.40 | J202: 322.80 | K202: 300 | L202: 277.8 | M202: 3.61292
A203: 193 | B203: HFCL | C203: 11.35 | D203: 11.60 | E203: 11.00 | F203: 10.65 | G203: 10.05 | H203: 11.95 | I203: 12.55 | J203: 12.90 | K203: 12.2 | L203: 11.25 | M203: 21.07692
A204: 194 | B204: HIMATSEIDE | C204: 59.95 | D204: 60.73 | E204: 58.22 | F204: 56.48 | G204: 53.97 | H204: 62.47 | I204: 64.98 | J204: 66.72 | K204: 63.25 | L204: 59 | M204: 1.42324
A205: 195 | B205: HINDALCO | C205: 115.1 | D205: 117.63 | E205: 111.27 | F205: 107.43 | G205: 101.07 | H205: 121.47 | I205: 127.83 | J205: 131.67 | K205: 124 | L205: 113.8 | M205: 455.61435
A206: 196 | B206: HINDCOPPER | C206: 25.7 | D206: 26.05 | E206: 24.85 | F206: 24.00 | G206: 22.80 | H206: 26.90 | I206: 28.10 | J206: 28.95 | K206: 27.25 | L206: 25.2 | M206: 10.84057
... 321 more rows

Sheet Bulk Deals
E6: Back To Main Page
A7: Subject : | B7: BULK DEAL | D7: =Main!B10 -> 2020-04-16
A9: Date | B9: Scrip code | C9: Scrip Name | D9: Client Name | E9: Buy / Sell | F9: Quantity Traded | G9: Trade Price / Wt.Avg.trade price | H9: Exchange
A10: 2020-04-15 | B10: 543193 | C10: DJML | D10: DHANANJAYSUBHASHGOEL | E10: SELL | F10: 30,000 | G10: 20.05 | H10: BSE
A11: 2020-04-15 | B11: 543193 | C11: DJML | D11: ANSHUGOEL | E11: SELL | F11: 30,000 | G11: 20.02 | H11: BSE
A12: 2020-04-15 | B12: 542650 | C12: METROPOLIS | D12: CA LOTUS INVESTMENTS | E12: SELL | F12: 3,276,366 | G12: 1152.64 | H12: BSE
A13: 2020-04-15 | B13: 542650 | C13: METROPOLIS | D13: MARWADI SHARES AND FINANCE LIMITED | E13: BUY | F13: 326,833 | G13: 1189.97 | H13: BSE
A14: 2020-04-15 | B14: 542650 | C14: METROPOLIS | D14: MARWADI SHARES AND FINANCE LIMITED | E14: SELL | F14: 17,216 | G14: 1205.6 | H14: BSE
A15: 2020-04-15 | B15: 542650 | C15: METROPOLIS | D15: SMALLCAP WORLD FUND INC | E15: BUY | F15: 1,000,000 | G15: 1152.5 | H15: BSE
A16: 2020-04-15 | B16: 542650 | C16: METROPOLIS | D16: CA LOTUS INVESTMENTS | E16: SELL | F16: 3,275,000 | G16: 1160.64 | H16: BSE
A17: 2020-04-15 | B17: 542650 | C17: METROPOLIS | D17: MILLENNIUM STOCK BROKING PVT LTD | E17: BUY | F17: 362,957 | G17: 1193.08 | H17: BSE
A18: 2020-04-15 | B18: 542650 | C18: METROPOLIS | D18: MILLENNIUM STOCK BROKING PVT LTD | E18: SELL | F18: 30,879 | G18: 1199.32 | H18: BSE
A19: 2020-04-15 | B19: 503100 | C19: PHOENIXLTD | D19: SCHRODER INTL. SEL FD (SICAV) A/C SCHRODER INTL. SEL FD EMRG ASIA | E19: BUY | F19: 2,659,865 | G19: 512.54 | H19: BSE
A20: 2020-04-15 | B20: 503100 | C20: PHOENIXLTD | D20: NORDEA 1 SICAV - EMERGING STARS EQUITY FUND | E20: SELL | F20: 2,106,033 | G20: 512.54 | H20: BSE
A21: 2020-04-15 | B21: CARERATING | C21: CARE Ratings Ltd | D21: FPA FUNDS TRUST FPA INTERNATIONAL VALUE FUND | E21: BUY | F21: 518,883 | G21: 412.3 | H21: NSE
A22: 2020-04-15 | B22: DEEPIND | C22: Deep Industries Ltd | D22: ANTARA INDIA EVERGREEN FUND LTD | E22: BUY | F22: 211,313 | G22: 60.5 | H22: NSE
A23: 2020-04-15 | B23: ELGIEQUIP | C23: Elgi Equipments Ltd | D23: SBI MUTUAL FUND | E23: BUY | F23: 3,300,000 | G23: 134.5 | H23: NSE
A24: 2020-04-15 | B24: EQUITAS | C24: Equitas Holdings Limited | D24: TOWER RESEARCH CAPITAL MARKETS INDIA PRIVATE LIMITED | E24: BUY | F24: 1,732,528 | G24: 40.7 | H24: NSE
A25: 2020-04-15 | B25: EQUITAS | C25: Equitas Holdings Limited | D25: AGRO TRADE SOLUTIONS | E25: BUY | F25: 2,179,468 | G25: 40.36 | H25: NSE
A26: 2020-04-15 | B26: IBULHSGFIN | C26: Indiabulls Hsg Fin Ltd | D26: TOWER RESEARCH CAPITAL MARKETS INDIA PRIVATE LIMITED | E26: BUY | F26: 3,259,414 | G26: 94.78 | H26: NSE
A27: 2020-04-15 | B27: IBULHSGFIN | C27: Indiabulls Hsg Fin Ltd | D27: AGRO TRADE SOLUTIONS | E27: BUY | F27: 3,004,257 | G27: 94.54 | H27: NSE
A28: 2020-04-15 | B28: IDEA | C28: Vodafone Idea Limited | D28: SHARE INDIA SECURITIES LIMITED | E28: BUY | F28: 153,290,482 | G28: 4.32 | H28: NSE
A29: 2020-04-15 | B29: INDUSINDBK | C29: IndusInd Bank Ltd. | D29: GOLDMAN SACHS (SINGAPORE) PTE.- ODI | E29: BUY | F29: 4,100,000 | G29: 430.3 | H29: NSE
A30: 2020-04-15 | B30: JUSTDIAL | C30: Justdial Ltd. | D30: HRTI PRIVATE LIMITED | E30: BUY | F30: 714,835 | G30: 329.17 | H30: NSE
A31: 2020-04-15 | B31: JUSTDIAL | C31: Justdial Ltd. | D31: SHARE INDIA SECURITIES LIMITED | E31: BUY | F31: 377,229 | G31: 330.09 | H31: NSE
A32: 2020-04-15 | B32: JUSTDIAL | C32: Justdial Ltd. | D32: AGRO TRADE SOLUTIONS | E32: BUY | F32: 349,701 | G32: 332.46 | H32: NSE
A33: 2020-04-15 | B33: MANGLMCEM | C33: Mangalam Cement Ltd | D33: SHAH SHREYANSBHAI SHANTILAL | E33: BUY | F33: 162,365 | G33: 150.19 | H33: NSE
A34: 2020-04-15 | B34: METROPOLIS | C34: Metropolis Healthcare Ltd | D34: MILLENNIUM STOCK BROKING PVT LTD | E34: BUY | F34: 28,363 | G34: 1197.66 | H34: NSE
A35: 2020-04-15 | B35: METROPOLIS | C35: Metropolis Healthcare Ltd | D35: MARWADI SHARES AND FINANCE LTD. | E35: BUY | F35: 18,176 | G35: 1205.7 | H35: NSE
A36: 2020-04-15 | B36: NCC | C36: NCC Limited | D36: HRTI PRIVATE LIMITED | E36: BUY | F36: 4,020,268 | G36: 25.92 | H36: NSE
A37: 2020-04-15 | B37: NCC | C37: NCC Limited | D37: TOWER RESEARCH CAPITAL MARKETS INDIA PRIVATE LIMITED | E37: BUY | F37: 6,539,870 | G37: 26.02 | H37: NSE
A38: 2020-04-15 | B38: PPL | C38: Prakash Pipes Limited | D38: HEMANT GUPTA | E38: BUY | F38: 179,055 | G38: 30.85 | H38: NSE
A39: 2020-04-15 | B39: RELCAPITAL | C39: Reliance Capital Limited | D39: PARTH INFIN BROKERS PVT LTD | E39: BUY | F39: 3,117,956 | G39: 4.73 | H39: NSE
A40: 2020-04-15 | B40: RELCAPITAL | C40: Reliance Capital Limited | D40: SHAH CHETAN RASIKLAL | E40: BUY | F40: 2,500,000 | G40: 4.4 | H40: NSE
A41: 2020-04-15 | B41: RELCAPITAL | C41: Reliance Capital Limited | D41: VORA PRITESH PRAVINCHANDRA (HUF) | E41: BUY | F41: 825,000 | G41: 4.49 | H41: NSE
A42: 2020-04-15 | B42: RELCAPITAL | C42: Reliance Capital Limited | D42: TANISH TRADEFIN LLP | E42: BUY | F42: 605,856 | G42: 4.72 | H42: NSE
A43: 2020-04-15 | B43: RELCAPITAL | C43: Reliance Capital Limited | D43: SETU SECURITIES PVT LTD | E43: BUY | F43: 2,586,497 | G43: 4.56 | H43: NSE
A44: 2020-04-15 | B44: RELCAPITAL | C44: Reliance Capital Limited | D44: ALPHA LEON ENTERPRISES LLP | E44: BUY | F44: 10,636,377 | G44: 4.57 | H44: NSE
A45: 2020-04-15 | B45: CARERATING | C45: CARE Ratings Ltd | D45: BAOBAB GLOBAL FUND LTD | E45: SELL | F45: 495,187 | G45: 412.31 | H45: NSE
A46: 2020-04-15 | B46: DEEPIND | C46: Deep Industries Ltd | D46: PLUTUS TERRA INDIA FUND | E46: SELL | F46: 211,313 | G46: 60.5 | H46: NSE
A47: 2020-04-15 | B47: ELGIEQUIP | C47: Elgi Equipments Ltd | D47: SBI MUTUAL FUND | E47: SELL | F47: 3,300,000 | G47: 134.5 | H47: NSE
A48: 2020-04-15 | B48: EQUITAS | C48: Equitas Holdings Limited | D48: AGRO TRADE SOLUTIONS | E48: SELL | F48: 2,363,468 | G48: 40.41 | H48: NSE
A49: 2020-04-15 | B49: EQUITAS | C49: Equitas Holdings Limited | D49: TOWER RESEARCH CAPITAL MARKETS INDIA PRIVATE LIMITED | E49: SELL | F49: 1,732,528 | G49: 40.6 | H49: NSE
A50: 2020-04-15 | B50: HIL | C50: HIL Limited | D50: PATTABIRAMAN R | E50: SELL | F50: 40,000 | G50: 814.77 | H50: NSE
A51: 2020-04-15 | B51: IBULHSGFIN | C51: Indiabulls Hsg Fin Ltd | D51: AGRO TRADE SOLUTIONS | E51: SELL | F51: 2,921,457 | G51: 94.88 | H51: NSE
A52: 2020-04-15 | B52: IBULHSGFIN | C52: Indiabulls Hsg Fin Ltd | D52: TOWER RESEARCH CAPITAL MARKETS INDIA PRIVATE LIMITED | E52: SELL | F52: 3,170,736 | G52: 94.87 | H52: NSE
A53: 2020-04-15 | B53: IDEA | C53: Vodafone Idea Limited | D53: SHARE INDIA SECURITIES LIMITED | E53: SELL | F53: 153,387,043 | G53: 4.34 | H53: NSE
A54: 2020-04-15 | B54: JUSTDIAL | C54: Justdial Ltd. | D54: AGRO TRADE SOLUTIONS | E54: SELL | F54: 274,701 | G54: 332.41 | H54: NSE
A55: 2020-04-15 | B55: JUSTDIAL | C55: Justdial Ltd. | D55: HRTI PRIVATE LIMITED | E55: SELL | F55: 714,835 | G55: 328.62 | H55: NSE
A56: 2020-04-15 | B56: JUSTDIAL | C56: Justdial Ltd. | D56: SHARE INDIA SECURITIES LIMITED | E56: SELL | F56: 377,229 | G56: 330.5 | H56: NSE
A57: 2020-04-15 | B57: METROPOLIS | C57: Metropolis Healthcare Ltd | D57: MARWADI SHARES AND FINANCE LTD. | E57: SELL | F57: 327,793 | G57: 1193.27 | H57: NSE
A58: 2020-04-15 | B58: METROPOLIS | C58: Metropolis Healthcare Ltd | D58: MILLENNIUM STOCK BROKING PVT LTD | E58: SELL | F58: 360,441 | G58: 1195.18 | H58: NSE
A59: 2020-04-15 | B59: NCC | C59: NCC Limited | D59: HRTI PRIVATE LIMITED | E59: SELL | F59: 4,020,268 | G59: 26.01 | H59: NSE
A60: 2020-04-15 | B60: NCC | C60: NCC Limited | D60: TOWER RESEARCH CAPITAL MARKETS INDIA PRIVATE LIMITED | E60: SELL | F60: 6,153,288 | G60: 26.02 | H60: NSE
A61: 2020-04-15 | B61: RELCAPITAL | C61: Reliance Capital Limited | D61: TANISH TRADEFIN LLP | E61: SELL | F61: 1,588,926 | G61: 4.63 | H61: NSE
A62: 2020-04-15 | B62: RELCAPITAL | C62: Reliance Capital Limited | D62: SETU SECURITIES PVT LTD | E62: SELL | F62: 2,586,497 | G62: 4.42 | H62: NSE
A63: 2020-04-15 | B63: RELCAPITAL | C63: Reliance Capital Limited | D63: AXIS TRUSTEE SERVICES LIMITED | E63: SELL | F63: 17,767,115 | G63: 4.55 | H63: NSE
A64: 2020-04-15 | B64: RELCAPITAL | C64: Reliance Capital Limited | D64: ALPHA LEON ENTERPRISES LLP | E64: SELL | F64: 8,766,779 | G64: 4.58 | H64: NSE
A65: 2020-04-15 | B65: RELCAPITAL | C65: Reliance Capital Limited | D65: VORA PRITESH PRAVINCHANDRA (HUF) | E65: SELL | F65: 2,130,000 | G65: 4.61 | H65: NSE
A66: 2020-04-15 | B66: RELCAPITAL | C66: Reliance Capital Limited | D66: PARTH INFIN BROKERS PVT LTD | E66: SELL | F66: 3,117,958 | G66: 4.59 | H66: NSE
A67: 2020-04-15 | B67: RHFL | C67: Reliance Home Finance Ltd | D67: AXIS TRUSTEE SERVICES LIMITED | E67: SELL | F67: 3,892,616 | G67: 0.75 | H67: NSE

Sheet Call Tracker (Equity & F&O)
M5: Back To Main Page
A6: Retail Research Technical Calls & Fundamental Performance Report for the month of April-2020
M7: =Main!B10 -> 2020-04-16
B8: Positional Call
A9: Sr.no | B9: Date | D9: Company | E9: Rec | F9: Rec Price | G9: Stop Loss*** | H9: Call Closed At | I9: Target | J9: Remark | K9: Profit / Loss per Share | L9: Gain / Loss % | M9: Status | N9: Closed Date | O9: NSE Closed Price
A10: 1 | B10: 2020-03-27 | D10: ULTRACEMCO | E10: Buy | F10: 3175 | G10: 2940 | H10: 3295 | I10: 3400-3500 | J10: Profit of Rs.120/- | K10: =H10-F10 -> 120 | L10: =K10/F10 -> 3.78% | M10: Successful | N10: 2020-04-07 | R10: H
A11: 2 | B11: 2020-03-31 | D11: ZEEL | E11: Buy | F11: 125.5 | G11: 118 | H11: 132 | I11: 135-140 | J11: Profit of Rs.6.5/- | K11: =H11-F11 -> 6.5 | L11: =K11/F11 -> 5.18% | M11: Successful | N11: 2020-04-07 | R11: N
A12: 3 | B12: 2020-04-01 | D12: HCLTECH | E12: Buy | F12: 423.5 | G12: 395 | H12: 442 | I12: 460-480 | J12: Profit of Rs.18.5/- | K12: 18.5 | L12: 4.37% | M12: Successful | N12: 2020-04-07 | R12: H
A13: 4 | B13: 2020-04-01 | D13: ASIANPAINT | E13: Buy | F13: 1635 | G13: 1540 | H13: 1530 | I13: 1820-1850 | J13: Loss of Rs.105/- | K13: =H13-F13 -> -105 | L13: =K13/F13 -> -6.42% | M13: Unsuccessful | N13: 2020-04-03 | R13: N
A14: 5 | B14: 2020-04-01 | D14: APOLLOHOSP | E14: Buy | F14: 1105 | G14: 1040 | H14: 1145 | I14: 1250 | J14: Profit of Rs.40/- | K14: =H14-F14 -> 40 | L14: =K14/F14 -> 3.62% | M14: Successful | N14: 2020-04-03 | R14: H
A15: 6 | B15: 2020-04-03 | D15: PIDILITIND | E15: Buy | F15: 1255 | G15: 1170 | H15: 1302.5 | I15: 1400-1420 | J15: Profit of Rs.47.5/- | K15: 47.5 | L15: 3.78% | M15: Successful | N15: 2020-04-07 | R15: H
A16: 7 | B16: 2020-04-07 | D16: DABUR | E16: Buy | F16: 436 | G16: 410 | H16: 450 | I16: 470-480 | J16: Profit of Rs.14/- | K16: =H16-F16 -> 14 | L16: =K16/F16 -> 3.21% | M16: Successful | N16: 2020-04-07 | R16: N
A17: 8 | B17: 2020-04-07 | D17: MINDTREE | E17: Buy | F17: 740 | G17: 696 | H17: 777.5 | I17: 830-840 | J17: Profit of Rs.37.50/- | K17: 37.5 | L17: 5.07% | M17: Successful | N17: 2020-04-08 | R17: N
A18: 9 | B18: 2020-04-07 | D18: KEC | E18: Buy | F18: 158 | G18: 148 | H18: 167.5 | I18: 175-180 | J18: Profit of Rs.9.50/- | K18: =H18-F18 -> 9.5 | L18: =K18/F18 -> 6.01% | M18: Successful | N18: 2020-04-15 | R18: H
A19: 10 | B19: 2020-04-08 | D19: APOLLOHOSP | E19: Buy | F19: 1220 | G19: 1140 | H19: 1275 | I19: 1350-1380 | J19: Profit of Rs.55/- | K19: =H19-F19 -> 55 | L19: =K19/F19 -> 4.51% | M19: Successful | N19: 2020-04-08 | R19: N
A20: 11 | B20: 2020-04-08 | D20: NIITTECH | E20: Buy | F20: 1080 | G20: 1015 | H20: 1135 | I20: 1200-1250 | J20: Profit of Rs.55/- | K20: =H20-F20 -> 55 | L20: =K20/F20 -> 5.09% | M20: Successful | N20: 2020-04-08 | R20: H
A21: 12 | B21: 2020-04-08 | D21: TCS | E21: Buy | F21: 1730 | G21: 1640 | H21: 1795 | I21: 1850-1900 | J21: Profit of Rs.65/- | K21: =H21-F21 -> 65 | L21: 3.76% | M21: Successful | N21: 2020-04-15 | R21: N
A22: 13 | B22: 2020-04-08 | D22: UBL | E22: Buy | F22: 910 | G22: 860 | H22: 947.5 | I22: 990-1000 | J22: Profit of Rs.37.50/- | K22: =H22-F22 -> 37.5 | L22: =K22/F22 -> 4.12% | M22: Successful | N22: 2020-04-09 | R22: N
A23: 14 | B23: 2020-04-08 | D23: GODREJIND | E23: Buy | F23: 277-281 | G23: 258 | I23: 310-320 | J23: Open | R23: H
A24: 15 | B24: 2020-04-08 | D24: MINDTREE | E24: Buy | F24: 732.5 | G24: 689 | H24: 760 | I24: 830-840 | J24: Profit of Rs.27.50/- | K24: =H24-F24 -> 27.5 | L24: =K24/F24 -> 3.75% | M24: Successful | N24: 2020-04-15 | R24: N
A25: 16 | B25: 2020-04-09 | D25: RELIANCE | E25: Buy | F25: 1190-1210 | G25: 1130 | I25: 1340-1360 | J25: Open | R25: N
A26: 17 | B26: 2020-04-13 | D26: MINDTREE | E26: Buy | F26: 722.5 | G26: 682 | H26: 752.5 | I26: 820-830 | J26: Profit of Rs.30/- | K26: =H26-F26 -> 30 | L26: =K26/F26 -> 4.15% | M26: Successful | N26: 2020-04-15 | R26: N
A27: 18 | B27: 2020-04-13 | D27: HCLTECH | E27: Buy | F27: 457.5 | G27: 415 | H27: 476.5 | I27: 520-540 | J27: Profit of Rs.19/- | K27: =H27-F27 -> 19 | L27: =K27/F27 -> 4.15% | M27: Successful | N27: 2020-04-15 | R27: H
A28: 19 | B28: 2020-04-15 | D28: FINPIPE | E28: Buy | F28: 415-420 | G28: 390 | I28: 460-480 | J28: Open | R28: H
A29: 20 | B29: 2020-04-15 | D29: ICICIPRULI | E29: Buy | F29: 330-335 | G29: 310 | I29: 360-370 | J29: Open | R29: N
A33: CLBS = Closing Basis ***
A34: Dividend adjusted <> | F34: Reinitiated $
A35: Part book {} | F35: Revised stoploss #
B37: Momentum Call
A38: Sr.no | B38: Date | D38: Company | E38: Rec | F38: Rec Price | G38: Stop Loss | H38: Call Closed At | I38: Target | J38: Remark | K38: Profit / Loss per Share/Lot | L38: Gain / Loss % | M38: Gain / Loss per Lot | N38: Lot | O38: Status | P38: Closed Date
A39: 1 | B39: 2020-04-01 | D39: HDFCBANK | E39: Buy | F39: 842.5 | G39: 805 | H39: 832.5 | I39: 890-900 | J39: Loss of Rs.10/- | K39: =H39-F39 -> -10 | L39: =K39/F39 -> -1.19% | O39: Unsuccessful | P39: 2020-04-01 | R39: N
A40: 2 | B40: 2020-04-01 | D40: ICICIBANK | E40: Buy | F40: 317.5 | G40: 308 | H40: 312 | I40: 325-330 | J40: Loss of Rs. 5.5/- | K40: =H40-F40 -> -5.5 | L40: =K40/F40 -> -1.73% | O40: Unsuccessful | P40: 2020-04-01 | R40: H
A41: 3 | B41: 2020-04-01 | D41: TATASTEEL | E41: Buy | F41: 259 | G41: 249 | H41: 262.5 | I41: 275-280 | J41: Profit of Rs.3.5/- | K41: =H41-F41 -> 3.5 | L41: =K41/F41 -> 1.35% | O41: Successful | P41: 2020-04-01 | R41: H
A42: 4 | B42: 2020-04-03 | D42: TATASTEEL | E42: Buy | F42: 257 | G42: 248 | H42: 265.5 | I42: 275-280 | J42: Profit of Rs.8.5/- | K42: =H42-F42 -> 8.5 | L42: =K42/F42 -> 3.31% | O42: Successful | P42: 2020-04-07 | R42: H
A43: 5 | B43: 2020-04-03 | D43: EXIDEIND | E43: Buy | F43: 129.5 | G43: 125 | H43: 132.25 | I43: 140 | J43: Profit of Rs.2.75/- | K43: =H43-F43 -> 2.75 | L43: =K43/F43 -> 2.12% | O43: Successful | P43: 2020-04-03 | R43: N
A44: 6 | B44: 2020-04-03 | D44: AMBUJACEM | E44: Sell | F44: 154.5 | G44: 158.5 | H44: 154.5 | I44: 146-144 | J44: Neutral | K44: =H44-F44 -> 0 | L44: =K44/F44 -> 0.00% | O44: Neutral | P44: 2020-04-07 | R44: H
A45: 7 | B45: 2020-04-07 | D45: HDFC | E45: Buy | F45: 1525 | G45: 1470 | H45: 1550 | I45: 1580-1600 | J45: Profit of Rs.25/- | K45: =H45-F45 -> 25 | L45: =K45/F45 -> 1.64% | O45: Successful | P45: 2020-04-07 | R45: H
A46: 8 | B46: 2020-04-07 | D46: MOIL | E46: Buy | F46: 105 | G46: 102 | H46: 107 | I46: 114 | J46: Profit of Rs.2/- | K46: 2 | L46: 1.90% | O46: Successful | P46: 2020-04-08 | R46: N
A47: 9 | B47: 2020-04-08 | D47: RELIANCE | E47: Buy | F47: 1177.5 | G47: 1140 | H47: 1225 | I47: 1240-1260 | J47: Profit of Rs.47.5/- | K47: =H47-F47 -> 47.5 | L47: =K47/F47 -> 4.03% | O47: Successful | P47: 2020-04-08 | R47: H
A48: 10 | B48: 2020-04-08 | D48: NESTLEIND | E48: Buy | F48: 16600 | G48: 16000 | H48: 17000 | I48: 17500-17600 | J48: Profit of Rs.400/- | K48: =H48-F48 -> 400 | L48: =K48/F48 -> 2.41% | O48: Successful | P48: 2020-04-08 | R48: H
A49: 11 | B49: 2020-04-08 | D49: BANDHANBANK | E49: Sell | F49: 196 | G49: 205 | H49: 189 | I49: 182-180 | J49: Profit of Rs.7/- | K49: =F49-H49 -> 7 | L49: 3.57% | O49: Successful | P49: 2020-04-08 | R49: H
A50: 12 | B50: 2020-04-08 | D50: BRITANNIA | E50: Buy | F50: 2775 | G50: 2670 | H50: 2845 | I50: 2950-3000 | J50: Profit of Rs.70/- | K50: =H50-F50 -> 70 | L50: 2.52% | O50: Successful | P50: 2020-04-09 | R50: H
A51: 13 | B51: 2020-04-09 | D51: ICICIPRULI | E51: Buy | F51: 336.5 | G51: 322 | H51: 343 | I51: 360-365 | J51: Profit of Rs.6.5/- | K51: 6.5 | L51: 1.93% | O51: Successful | P51: 2020-04-09 | R51: N
A52: 14 | B52: 2020-04-09 | D52: BRITANNIA | E52: Buy | F52: 2740 | G52: 2650 | H52: 2795 | I52: 2850-2900 | J52: Profit of Rs.55/- | K52: =H52-F52 -> 55 | L52: =K52/F52 -> 2.01% | O52: Successful | P52: 2020-04-09 | R52: H
A53: 15 | B53: 2020-04-09 | D53: DABUR | E53: Buy | F53: 487.5 | G53: 475 | H53: 499 | I53: 520 | J53: Profit of Rs.11.5/- | K53: 11.5 | L53: 2.36% | O53: Successful | P53: 2020-04-15 | R53: H
A54: 16 | B54: 2020-04-13 | D54: BRITANNIA | E54: Buy | F54: 2730 | G54: 2630 | H54: 2780 | I54: 2850-2880 | J54: Profit of Rs.50/- | K54: =H54-F54 -> 50 | L54: =K54/F54 -> 1.83% | O54: Successful | P54: 2020-04-13 | R54: H
A55: 17 | B55: 2020-04-13 | D55: BRITANNIA | E55: Buy | F55: 2727.5 | G55: 2630 | H55: 2790 | I55: 2850-2880 | J55: Profit of Rs.62.5/- | K55: 62.5 | L55: 2.29% | O55: Successful | P55: 2020-04-15 | R55: H
A56: 18 | B56: 2020-04-13 | D56: AMBUJACEM | E56: Sell | F56: 166 | G56: 173 | H56: 172 | I56: 158-155 | J56: Loss of Rs. 6/- | K56: =F56-H56 -> -6 | L56: -3.61% | O56: Unsuccessful | P56: 2020-04-15 | R56: H
A57: 19 | B57: 2020-04-13 | D57: MUTHOOTFIN | E57: Buy | F57: 742 | G57: 710 | H57: 750 | I57: 800 | J57: Profit of Rs.8/- | K57: =H57-F57 -> 8 | L57: =K57/F57 -> 1.08% | O57: Successful | P57: 2020-04-13 | R57: N
A58: 20 | B58: 2020-04-15 | D58: HINDUNILVR | E58: Sell | F58: 2405 | G58: 2465 | H58: 2465 | I58: 2300-2280 | J58: Loss of Rs. 60/- | K58: =F58-H58 -> -60 | L58: -2.49% | O58: Unsuccessful | P58: 2020-04-15 | R58: H
A59: 21 | B59: 2020-04-15 | D59: SBIN | E59: Buy | F59: 189.5 | G59: 183 | H59: 183 | I59: 200-205 | J59: Loss of Rs. 6.5/- | K59: =H59-F59 -> -6.5 | L59: =K59/F59 -> -3.43% | O59: Unsuccessful | P59: 2020-04-15 | R59: N
A60: 22 | B60: 2020-04-15 | D60: BAJAJ-AUTO | E60: Sell | F60: 2470 | G60: 2555 | H60: 2420 | I60: 2350-2300 | J60: Profit of Rs. 50/- | K60: =F60-H60 -> 50 | L60: 2.02% | O60: Successful | P60: 2020-04-15 | R60: H
A61: 23 | B61: 2020-04-15 | D61: HDFCBANK | E61: Buy | F61: 897 | G61: 875 | H61: 870 | J61: Loss of Rs. 27/- | K61: =H61-F61 -> -27 | L61: =K61/F61 -> -3.01% | O61: Unsuccessful | P61: 2020-04-15 | R61: H
A63: CLBS = Closing Basis ***
A64: Dividend adjusted <> | F64: Reinitiated $
F65: Revised stoploss #
A67: Master Trade High Risk
A68: Sr.no | B68: Date | D68: Company | E68: Rec | F68: Rec Price | G68: Stop Loss | H68: Call Closed At | I68: Target | J68: Remark | K68: Profit / Loss per share | L68: Gain / Loss per Lot | M68: Lot | N68: Status | O68: Closed Date
A69: 1 | B69: 2020-04-09 | D69: NIFTY APR FUT | E69: Sell | F69: 9000 | G69: 9220 | H69: 8910 | I69: 8700-8600 | J69: Profit of Rs.75/- | K69: 90 | L69: =75*75 -> 5625 | M69: 75 | N69: Successful | O69: 2020-04-09 | R69: H
D70: 30-APRIL 8600 PE | E70: Buy | F70: 285 | H70: 300 | K70: -15 | R70: H
A71: 2 | B71: 2020-04-09 | D71: NIFTY MAR FUT | E71: Buy | F71: 9020 | G71: 9220 | H71: 9100 | I71: 8700-8600 | J71: Loss of Rs.40/- | K71: -80 | L71: =-(40*75) -> -3000 | M71: 75 | N71: Unsuccessful | O71: 2020-04-09 | R71: H
D72: NIFTY 26 MARCH 11500 CE | E72: Sell | F72: 272.5 | H72: 232.5 | K72: =F72-H72 -> 40 | R72: H
A76: Master Trade Medium Risk
A77: Sr.no | B77: Date | D77: Company | E77: Rec | F77: Rec Price | G77: Stop Loss | H77: Call Closed At | I77: Target | J77: Remark | K77: Profit/ Loss per lot | L77: Gain / Loss per Lot | M77: Lot | N77: Status | O77: Closed Date
A78: 1 | B78: 2020-04-01 | D78: NIFTY 01-APR 8500 CE | E78: Buy | F78: 40 | H78: 0 | I78: 100 | J78: Loss of Rs.40/- | K78: =L78*M78 -> -3000 | L78: =H78-F78 -> -40 | M78: 75 | N78: Unsuccessful | O78: 2020-04-01 | R78: N
A79: 2 | B79: 2020-04-08 | D79: NIFTY 8900 PE 9-APR | E79: Buy | F79: 102.5 | H79: 132.5 | I79: 200-220 | J79: Profit of Rs.30/- | K79: 2250 | L79: 30 | M79: 75 | N79: Successful | O79: 2020-04-08 | R79: A
A80: 3 | B80: 2020-04-09 | D80: NIFTY 8900 PE 9-APR | E80: Buy | F80: 52.5 | H80: 72.5 | I80: 110 | J80: Profit of Rs.20/- | K80: 1500 | L80: 20 | M80: 75 | N80: Successful | O80: 2020-04-09 | R80: A
A81: 4 | B81: 2020-04-09 | D81: HEROMOTOCO 1800 PE APR | E81: Buy | F81: 62.5 | G81: 37 | H81: 72.5 | I81: 100-120 | J81: Profit of Rs.10/- | K81: 2000 | L81: 10 | M81: 200 | N81: Successful | O81: 2020-04-13 | R81: H
A82: 5 | B82: 2020-04-13 | D82: HEROMOTOCO 1800 PE APR | E82: Buy | F82: 62 | G82: 37 | H82: 71 | I82: 100-120 | J82: Profit of Rs.9/- | K82: 1800 | L82: 9 | M82: 200 | N82: Successful | O82: 2020-04-13 | R82: H
A83: 6 | B83: 2020-04-15 | D83: BAJAJ-AUTO 2200 PE APR | E83: Buy | F83: 44.5 | G83: 24 | H83: 53.5 | I83: 70-80 | J83: Profit of Rs.9/- | K83: 2250 | L83: 9 | M83: 250 | N83: Successful | O83: 2020-04-15 | R83: H
A86: Techno -Funda (positional)
A87: Sr.no | B87: Date | D87: Company | E87: Rec | F87: Rec Price | G87: Stop Loss*** | H87: Call Closed At | I87: Target | J87: Remark | K87: Profit / Loss per Share | L87: Gain / Loss % | M87: Status | N87: Closed Date | O87: NSE Closed Price
A89: CLBS = Closing Basis *** | F89: Reinitiated $
A90: Dividend adjusted <> | F90: Revised stoploss #
B95: Investment Idea
A96: Sr.no | B96: Date | D96: Company | E96: Rec | F96: Rec Price | G96: Point of Review | H96: Close Rate | I96: Target | J96: Remark | K96: Profit / Loss per Share | L96: Gain / Loss % | M96: Status | N96: Closed Date
A97: 1 | B97: 2013-11-01 | D97: L&T Finance Holding | E97: Accu | F97: 82.00 | G97: - | H97: 100 | I97: 100.00 | J97: Target Achieved | K97: =H97-F97 -> 18.00 | L97: =K97/F97 -> 21.95% | M97: Successful | N97: 2016-10-14
A98: 2 | B98: 2014-06-04 | D98: Finolex Inds | E98: Buy | F98: 257.00 | G98: - | H98: 300 | I98: 300.00 | J98: Target Achieved | K98: 43.00 | L98: 16.73% | M98: Successful | N98: 2014-07-02
A99: 3 | B99: 2014-07-08 | D99: JK Cement | E99: Buy | F99: 393.00 | G99: - | H99: 468 | I99: 468.00 | J99: Target Achieved | K99: 75.00 | L99: 19.08% | M99: Successful | N99: 2014-08-12
A100: 4 | B100: 2014-08-06 | D100: Finolex Cables | E100: Buy | F100: 205.00 | G100: - | H100: 275 | I100: 250.00 | J100: Target Achieved | K100: 70.00 | L100: 34.15% | M100: Successful | N100: 2014-11-19
A101: 5 | B101: 2014-09-04 | D101: Exide Inds | E101: Buy | F101: 162.00 | G101: - | H101: 190 | I101: 190.00 | J101: Target Achieved | K101: 28.00 | L101: 17.28% | M101: Successful | N101: 2015-01-02
A102: 6 | B102: 2014-09-04 | D102: Deepak Nitrite | E102: Buy | F102: 75.00 | G102: - | H102: 91.5 | I102: 95-100 | J102: Profit of Rs.16.50/- | K102: 16.50 | L102: 22.00% | M102: Successful | N102: 2014-11-11
A103: 7 | B103: 2014-10-01 | D103: Mercks | E103: Buy | F103: 850.00 | G103: - | H103: 982.5 | I103: 1050.00 | J103: Profit of Rs.132.50/- | K103: 132.50 | L103: 15.59% | M103: Successful | N103: 2015-02-04
A104: 8 | B104: 2014-10-01 | D104: Grindwell Norton | E104: Buy | F104: 475.00 | G104: - | H104: 515 | I104: 600.00 | J104: Profit of Rs.40/- | K104: 40.00 | L104: 8.42% | M104: Successful | N104: 2014-10-27
A105: 9 | B105: 2014-10-01 | D105: Snowman Logistics | E105: Buy | F105: 86.00 | G105: - | H105: 99 | I105: 140.00 | J105: Profit of Rs.13.00/- | K105: 13.00 | L105: 15.12% | M105: Successful | N105: 2014-10-27
A106: 10 | B106: 2014-10-14 | D106: Birla Corp | E106: Buy | F106: 496.60 | G106: - | H106: 621 | I106: 580.00 | J106: Target Achieved | K106: 124.40 | L106: 25.05% | M106: Successful | N106: 2016-08-23
A107: 11 | B107: 2014-10-14 | D107: Ultratech Cem | E107: Buy | F107: 2481.90 | G107: - | H107: 2840 | I107: 2870.00 | J107: Profit of Rs.358.10/- | K107: 358.10 | L107: 14.43% | M107: Successful | N107: 2015-01-13
A108: 12 | B108: 2014-10-16 | D108: Sintex Inds | E108: Buy | F108: 84.50 | G108: - | H108: 93 | I108: 110.00 | J108: Profit of Rs.8.50/- | K108: 8.50 | L108: 10.06% | M108: Successful | N108: 2014-10-27
A109: 13 | B109: 2014-10-16 | D109: HSIL | E109: Buy | F109: 401.00 | G109: - | H109: 428 | I109: 450.00 | J109: Profit of Rs.27.00/- | K109: 27.00 | L109: 6.73% | M109: Successful | N109: 2015-01-16
A110: 14 | B110: 2014-10-16 | D110: Eveready Inds | E110: Buy | F110: 101.00 | G110: - | H110: 112 | I110: 120.00 | J110: Profit of Rs.11.00/- | K110: 11.00 | L110: 10.89% | M110: Successful | N110: 2014-10-27
A111: 15 | B111: 2014-11-11 | D111: Pennar Inds | E111: Buy | F111: 59.00 | G111: - | H111: 76 | I111: 76.00 | J111: Target Achieved | K111: 17.00 | L111: 28.81% | M111: Successful | N111: 2017-10-24
A112: 16 | B112: 2014-11-11 | D112: Snowman Logistics | E112: Buy | F112: 99.00 | G112: - | H112: 120 | I112: 120.00 | J112: Profit of Rs.21/- | K112: 21.00 | L112: 21.21% | M112: Successful | N112: 2014-11-17
A113: 17 | B113: 2014-11-13 | D113: Dharamsi Morarji Chem | E113: Buy | F113: 22.00 | G113: - | H113: 33.55 | I113: 32.00 | J113: Profit of Rs 11.55/- | K113: 11.55 | L113: 52.50% | M113: Successful | N113: 2015-07-03
A114: 18 | B114: 2014-12-03 | D114: Tatachem | E114: Buy | F114: 440.00 | G114: - | H114: 520 | I114: 520.00 | J114: Profit of Rs 80.00/- | K114: 80.00 | L114: 18.18% | M114: Successful | N114: 2015-07-23
A115: 19 | B115: 2014-12-03 | D115: Advanta | E115: Buy | F115: 360.00 | G115: - | H115: 427 | I115: 425.00 | J115: Profit of Rs.67.00/- | K115: 67.00 | L115: 18.61% | M115: Successful | N115: 2015-02-23
A116: 20 | B116: 2015-01-08 | D116: GDL | E116: Buy | F116: 360.00 | G116: - | H116: 455 | I116: 420.00 | J116: Profit of Rs.95.00/- | K116: 95.00 | L116: 26.39% | M116: Successful | N116: 2015-01-20
A117: 21 | B117: 2015-01-08 | D117: NRB Bearing | E117: Buy | F117: 130.00 | H117: 175.5 | I117: 165.00 | J117: Profit of Rs 45.50/- | K117: 45.50 | L117: 35.00% | M117: Successful | N117: 2017-12-19
A118: 22 | B118: 2015-02-05 | D118: GSFC | E118: Accu | F118: 98.00 | H118: 120 | I118: 120.00 | J118: Target Achieved | K118: 22.00 | L118: 22.45% | M118: Successful | N118: 2017-01-18
A119: 23 | B119: 2015-02-05 | D119: Sundrmfast | E119: Accu | F119: 196.00 | H119: 262 | I119: 255.00 | J119: Target Achieved | K119: 66.00 | L119: 33.67% | M119: Successful | N119: 2016-08-17
A120: 24 | B120: 2015-03-04 | D120: GPPL | E120: Accu | F120: 235 | H120: 77.00 | I120: 280-285 | J120: Loss of Rs.158/- | K120: -158.00 | L120: -67.23% | M120: Unsuccessful | N120: 2019-02-26
A121: 25 | B121: 2015-03-04 | D121: ORIENTCEM | E121: Accu | F121: 185.00 | H121: 224 | I121: 220-225 | J121: Target Achieved | K121: 39.00 | L121: 21.08% | M121: Successful | N121: 2016-10-04
A122: 26 | B122: 2015-03-27 | D122: PFS | E122: Accu | F122: 49.5 | H122: 15.85 | I122: 67.00 | J122: Loss of Rs.33.65/- | K122: -33.65 | L122: -68% | M122: Unsuccessful | N122: 2019-06-11
A123: 27 | B123: 2015-03-30 | D123: Walchandnagar Ind Ltd | E123: Accu | F123: 183.50 | H123: 219 | I123: 218.00 | J123: Profit of Rs.35.50/- | K123: 35.50 | L123: 19.35% | M123: Successful | N123: 2015-04-09
A124: 28 | B124: 2015-04-20 | D124: Kalpataru Power Transmission Ltd | E124: Accu | F124: =(227+237)/2 -> 232.00 | H124: 298 | I124: 298.00 | J124: Target Achieved | K124: 66.00 | L124: 28.45% | M124: Successful | N124: 2017-03-29
A125: 29 | B125: 2015-05-04 | D125: Mastek Ltd | E125: Buy | F125: 385.00 | H125: =212.5+331 -> 543.5 | I125: 510.00 | J125: Profit of Rs 158.50/- | K125: 158.50 | L125: 41.17% | M125: Successful | N125: 2015-08-19
A126: 30 | B126: 2015-05-04 | D126: Suprajit Eng | E126: Buy | F126: 115.50 | H126: 146 | I126: 142.00 | J126: Profit of Rs 30.50/- | K126: 30.50 | L126: 26.41% | M126: Successful | N126: 2015-07-17
A127: 31 | B127: 2015-05-27 | D127: TCI | E127: Buy | F127: 237.50 | H127: 279.5 | I127: 278.00 | J127: Target Achieved | K127: 42.00 | L127: 17.68% | M127: Successful | N127: 2015-08-06
A128: 32 | B128: 2015-06-19 | D128: HSIL | E128: Accu | F128: 340.00 | H128: 448 | I128: 448.00 | J128: Target Achieved | K128: 108.00 | L128: 31.76% | M128: Successful | N128: 2017-10-10
A129: 33 | B129: 2015-07-06 | D129: Capital First | E129: Accu | F129: 390.00 | H129: 460 | I129: 460.00 | J129: Target Achieved | K129: =H129-F129 -> 70.00 | L129: =K129/F129 -> 17.95% | M129: Successful | N129: 2016-04-18
A130: 34 | B130: 2015-07-10 | D130: Dolphin OffShore | E130: Accu | F130: 122.5 | H130: 61.00 | I130: 172.00 | J130: Loss of Rs.61.50/- | K130: -61.50 | L130: -50.20% | M130: Unsuccessful | N130: 2018-08-21
A131: 35 | B131: 2015-08-03 | D131: Allcargo logistics | E131: Accu | F131: 297.50 | H131: 350 | I131: 360.00 | J131: Profit of Rs 52.50/- | K131: 52.50 | L131: 17.65% | M131: Successful | N131: 2015-08-16
A132: 36 | B132: 2015-08-03 | D132: Camline Fine | E132: Accu | F132: 115.50 | H132: 149 | I132: 140.00 | J132: Profit of Rs 33.50/- | K132: 33.50 | L132: 29.00% | M132: Successful | N132: 2017-01-05
A133: 37 | B133: 2015-09-04 | D133: TCI | E133: Accu | F133: 226.00 | H133: 292 | I133: 292.00 | J133: Target Achieved | K133: 66.00 | L133: 29.20% | M133: Successful | N133: 2015-10-09
A134: 38 | B134: 2015-09-07 | D134: Kalpataru Power Transmission Ltd | E134: Accu | F134: 232.50 | H134: 312.5 | I134: 310.00 | J134: Target Achieved | K134: 80.00 | L134: 34.41% | M134: Successful | N134: 2017-03-29
A135: 39 | B135: 2015-09-21 | D135: LLOYD ELECTRIC & ENG LTD | E135: Accu | F135: 196.50 | H135: 238 | I135: 238.00 | J135: Target Achieved | K135: 41.50 | L135: 21.12% | M135: Successful | N135: 2015-10-14
A136: 40 | B136: 2015-09-24 | D136: L&T Finance Holding | E136: Accu | F136: 65.00 | H136: 82 | I136: 82.00 | J136: Target Achieved | K136: 17.00 | L136: 26.15% | M136: Successful | N136: 2016-07-27
A137: 41 | B137: 2015-10-14 | D137: KEC International ltd | E137: Accu | F137: 144.00 | H137: 182.5 | I137: 181.00 | J137: Target Achieved | K137: 38.50 | L137: 26.74% | M137: Successful | N137: 2017-03-23
A138: 42 | B138: 2015-10-14 | D138: Gruh Finance | E138: Accu | F138: 264.00 | H138: 311 | I138: 311.00 | J138: Target Achieved | K138: 47.00 | L138: 17.80% | M138: Successful | N138: 2016-08-22
A139: 43 | B139: 2015-11-10 | D139: Pidilitind | E139: Buy | F139: 549.50 | H139: 630 | I139: 630.00 | J139: Target Achieved | K139: 80.50 | L139: 14.65% | M139: Successful | N139: 2016-02-19
A140: 44 | B140: 2015-12-04 | D140: Zensar Technology | E140: Accu | F140: 1027.50 | H140: 1315 | I140: 1250.00 | J140: Target Achieved | K140: 287.50 | L140: 27.98% | M140: Successful | N140: 2018-05-24
A141: 45 | B141: 2015-12-29 | D141: Vinati Organics Ltd | E141: Accu | F141: 465.00 | H141: 540 | I141: 540.00 | J141: Target Achieved | K141: 75.00 | L141: 16.13% | M141: Successful | N141: 2016-06-09
A142: 46 | B142: 2016-01-11 | D142: GSFC | E142: Buy | F142: 81.00 | H142: 110 | I142: 110.00 | J142: Target Achieved | K142: 29.00 | L142: 35.80% | M142: Successful | N142: 2017-01-10
A143: 47 | B143: 2016-01-13 | D143: SSWL | E143: Buy | F143: 417.50 | H143: 547 | I143: 535.00 | J143: Target Achieved | K143: 129.50 | L143: 31.02% | M143: Successful | N143: 2016-07-27
A144: 48 | B144: 2016-02-08 | D144: Persistent System Ltd | E144: Accu | F144: 650.00 | H144: 800 | I144: 800.00 | J144: Target Achieved | K144: 150.00 | L144: 23.08% | M144: Successful | N144: 2018-02-23
A145: 49 | B145: 2016-03-04 | D145: UPL | E145: Accu | F145: 437.50 | H145: 504.5 | I145: 522.00 | J145: Profit of Rs.67/- | K145: 67.00 | L145: 15.31% | M145: Successful | N145: 2016-04-20
A146: 50 | B146: 2016-03-09 | D146: Ashoka Buildcon Ltd | E146: Accu | F146: 189.50 | H146: 218 | I146: 218.00 | J146: Target Achieved | K146: 28.50 | L146: 15.04% | M146: Successful | N146: 2017-10-26
A147: 51 | B147: 2016-04-11 | D147: PTC INDIA FIN SERV LTD | E147: Accu | F147: 36.5 | H147: 15.85 | I147: 60.00 | J147: Loss of Rs.20.65/- | K147: -20.65 | L147: -56.58% | M147: Unsuccessful | N147: 2019-06-11
A148: 52 | B148: 2016-04-12 | D148: CAMLINFINE $ | E148: Accu | F148: 93.00 | H148: 149 | I148: 140.00 | J148: Profit of Rs 56/- | K148: 56.00 | L148: 60.22% | M148: Successful | N148: 2017-01-05
A149: 53 | B149: 2016-04-12 | D149: Greaves Cotton Ltd. | E149: Accu | F149: 130.00 | H149: 150 | I149: 150-155 | J149: Target Achieved | K149: 20.00 | L149: 15.38% | M149: Successful | N149: 2016-07-13
A150: 54 | B150: 2016-04-13 | D150: DHFL | E150: Accu | F150: 196.00 | H150: 299 | I150: 299.00 | J150: Target Achieved | K150: 103.00 | L150: 52.55% | M150: Successful | N150: 2016-09-07
A151: 55 | B151: 2016-04-13 | D151: Magma | E151: Accu | F151: 88.00 | H151: 103 | I151: 103.00 | J151: Target Achieved | K151: 15.00 | L151: 17.05% | M151: Successful | N151: 2016-06-09
A152: 56 | B152: 2016-05-02 | D152: KEC International ltd $ | E152: Accu | F152: 127.50 | H152: 148 | I152: 148-150 | J152: Target Achieved | K152: =H152-F152 -> 20.50 | L152: =K152/F152 -> 16.08% | M152: Successful | N152: 2016-07-13
A153: 57 | B153: 2016-05-03 | D153: Mindtree | E153: Accu | F153: 675.00 | H153: 815 | I153: 790-800 | J153: Target Achieved | K153: =H153-F153 -> 140.00 | L153: =K153/F153 -> 20.74% | M153: Successful | N153: 2018-02-23
A154: 58 | B154: 2016-06-01 | D154: Atulauto | E154: Accu | F154: 500 | H154: 232.50 | I154: 565-570 | J154: Loss of Rs.267.50 /- | K154: =H154-F154 -> -267.50 | L154: =K154/F154 -> -53.50% | M154: Unsuccessful | N154: 2019-09-27
A155: 59 | B155: 2016-06-06 | D155: TRITURBINE | E155: Accu | F155: 110.00 | H155: 126.5 | I155: 125.00 | J155: Profit of Rs.16.50/- | K155: =H155-F155 -> 16.50 | L155: =K155/F155 -> 15.00% | M155: Successful | N155: 2016-07-01
A156: 60 | B156: 2016-06-17 | D156: Pennar Industries Ltd | E156: Accu | F156: 44.00 | H156: 69.5 | I156: 69.50 | J156: Profit of Rs.25.50/- | K156: =H156-F156 -> 25.50 | L156: =K156/F156 -> 57.95% | M156: Successful | N156: 2017-08-30
A157: 61 | B157: 2016-06-28 | D157: EVEREADY | E157: Accu | F157: 262.50 | H157: 340 | I157: 333.00 | J157: Profit of Rs.77.50/- | K157: 77.50 | L157: 29.52% | M157: Successful | N157: 2017-10-09
A158: 62 | B158: 2016-06-28 | D158: FIEMIND | E158: Accu | F158: 840.00 | H158: 1230 | I158: 1230.00 | J158: Target Achieved | K158: 390.00 | L158: 46.43% | M158: Successful | N158: 2016-10-06
A159: 63 | B159: 2016-07-05 | D159: Bajaj Corp Ltd | E159: Accu | F159: 395 | H159: =(468.5+342.5)/2 -> 405.50 | I159: 510.00 | J159: Profit of Rs.10.50/- | K159: =H159-F159 -> 10.50 | L159: =K159/F159 -> 3% | M159: Neutral | N159: 2019-05-21
A160: 64 | B160: 2016-08-02 | D160: GPPL $ | E160: Buy | F160: =169.5-12.8 -> 156.7 | H160: 77.00 | I160: 198-200 | J160: Loss of Rs.79.7/- | K160: -79.70 | L160: -50.86% | M160: Unsuccessful | N160: 2019-02-26
A161: 65 | B161: 2016-08-04 | D161: WONDERLA HOLIDAYS LTD | E161: Accu | F161: 400 | H161: 305.00 | I161: 475.00 | J161: Loss of Rs.95/- | K161: -95.00 | L161: -23.75% | M161: Unsuccessful | N161: 2019-05-21
A162: 66 | B162: 2016-08-11 | D162: CAMLINFINE | E162: Accu | F162: 86.50 | H162: 130 | I162: 130.00 | J162: Profit of Rs.43.50/- | K162: 43.50 | L162: 50.29% | M162: Successful | N162: 2017-12-22
A163: 67 | B163: 2016-08-18 | D163: GRANULES | E163: Accu | F163: 133.5 | H163: 126.50 | I163: 178.00 | J163: Exit | K163: -7.00 | L163: -5.24% | M163: Unsuccessful | N163: 2016-09-02
A164: 68 | B164: 2016-08-31 | D164: VA TECH WABAG | E164: Accu | F164: 560.00 | H164: 725 | I164: 725.00 | J164: Target Achieved | K164: 165.00 | L164: 29.46% | M164: Successful | N164: 2016-03-27
A165: 69 | B165: 2016-09-01 | D165: SKIPPER LIMITED | E165: Accu | F165: 160.50 | H165: 210 | I165: 210.00 | J165: Target Achieved | K165: 49.50 | L165: 30.84% | M165: Successful | N165: 2017-05-16
A166: 70 | B166: 2016-10-03 | D166: IFBIND | E166: Accu | F166: 430.00 | H166: 596 | I166: 575.00 | J166: Profit of Rs.166/- | K166: 166.00 | L166: 38.60% | M166: Successful | N166: 2017-02-03
A167: 71 | B167: 2016-10-14 | D167: ASIANTILES | E167: Accu | F167: 280.00 | H167: 345 | I167: 345.00 | J167: Target Achieved | K167: =H167-F167 -> 65.00 | L167: =K167/F167 -> 23.21% | M167: Successful | N167: 2017-03-20
A168: 72 | B168: 2016-10-14 | D168: DEEPIND | E168: Accu | F168: 245.00 | H168: 325.5 | I168: 330.00 | J168: Profit of Rs.80.5/- | K168: 80.50 | L168: =K168/F168 -> 32.86% | M168: Successful | N168: 2017-02-03
A169: 73 | B169: 2016-10-17 | D169: DCBBANK | E169: Accu | F169: 125.00 | H169: 160 | I169: 160.00 | J169: Target Achieved | K169: 35.00 | L169: 28.00% | M169: Successful | N169: 2017-03-09
A170: 74 | B170: 2016-10-17 | D170: ORIENTREF | E170: Accu | F170: 114.00 | H170: 145 | I170: 145.00 | J170: Target Achieved | K170: 31.00 | L170: =K170/F170 -> 27.19% | M170: Successful | N170: 2017-05-04
A171: 75 | B171: 2016-10-17 | D171: GANECOS | E171: Accu | F171: 212.00 | H171: 280 | I171: 276.00 | J171: Profit of Rs.68/- | K171: 68.00 | L171: =K171/F171 -> 32.08% | M171: Successful | N171: 2017-05-03
A172: 76 | B172: 2016-11-04 | D172: NBCC | E172: Accu | F172: 155.00 | H172: 210 | I172: 210.00 | J172: Profit of Rs.55/- | K172: 55.00 | L172: =K172/F172 -> 35.48% | M172: Successful | N172: 2017-07-28
A173: 77 | B173: 2016-12-06 | D173: PRECAM | E173: Accu | F173: 150.5 | H173: 72.50 | I173: 174.00 | J173: Loss of Rs.78/- | K173: -78.00 | L173: -51.83% | M173: Unsuccessful | N173: 2018-08-21
A174: 78 | B174: 2016-12-08 | D174: INFRATEL | E174: Accu | F174: 380.00 | H174: 478 | I174: 468.00 | J174: Target Achieved | K174: =H174-F174 -> 98.00 | L174: =K174/F174 -> 25.79% | M174: Successful | N174: 2017-10-17
A175: 79 | B175: 2016-12-30 | D175: GODREJPROP | E175: Accu | F175: 305.00 | H175: 375 | I175: 375.00 | J175: Target Achieved | K175: =H175-F175 -> 70.00 | L175: =K175/F175 -> 22.95% | M175: Successful | N175: 2017-02-02
A176: 80 | B176: 2017-01-04 | D176: DEEPAKNTR | E176: Accu | F176: 99.50 | H176: 158 | I176: 158.00 | J176: Target Achieved | K176: =H176-F176 -> 58.50 | L176: =K176/F176 -> 58.79% | M176: Successful | N176: 2017-06-12
A177: 81 | B177: 2017-01-04 | D177: DEEPAKNTR | E177: Accu | F177: 99.50 | H177: 158 | I177: 158.00 | J177: Target Achieved | K177: 58.50 | L177: 58.79% | M177: Successful | N177: 2017-06-12
A178: 82 | B178: 2017-02-20 | D178: RECLTD | E178: Accu | F178: 140.50 | H178: 220 | I178: 220.00 | J178: Target Achieved | K178: =H178-F178 -> 79.50 | L178: =K178/F178 -> 56.58% | M178: Successful | N178: 2017-05-09
A179: 83 | B179: 2017-02-20 | D179: SUBROS | E179: Accu | F179: 202.50 | H179: 234 | I179: 234.00 | J179: Target Achieved | K179: 31.50 | L179: 15.56% | M179: Successful | N179: 2017-04-11
A180: 84 | B180: 2017-03-24 | D180: VRLLOG | E180: Accu | F180: 300.50 | H180: 417.5 | I180: 420.00 | J180: Profit of Rs.117/- | K180: =H180-F180 -> 117.00 | L180: =K180/F180 -> 38.94% | M180: Successful | N180: 2017-12-01
A181: 85 | B181: 2017-03-24 | D181: FIEMIND | E181: Accu | F181: 850.00 | H181: 1042.5 | I181: 1023.00 | J181: Profit of Rs 192.50/- | K181: 192.50 | L181: 22.65% | M181: Successful | N181: 2017-04-05
A182: 86 | B182: 2017-04-05 | D182: RATNAMANI | E182: Accu | F182: 785.00 | H182: 930 | I182: 920.00 | J182: Profit of Rs.145/- | K182: =H182-F182 -> 145.00 | L182: =K182/F182 -> 18.47% | M182: Successful | N182: 2017-08-29
A183: 87 | B183: 2017-04-06 | D183: ZEEMEDIA | E183: Accu | F183: 40 | H183: 13.10 | I183: 60.00 | J183: Loss of Rs.26.9/- | K183: -26.90 | L183: -67.25% | M183: Unsuccessful | N183: 2018-02-07
A184: 88 | B184: 2017-04-12 | D184: DABUR | E184: Accu | F184: 289.50 | H184: 354 | I184: 360.00 | J184: Profit of Rs.64.5/- | K184: =H184-F184 -> 64.50 | L184: =K184/F184 -> 22.28% | M184: Successful | N184: 2017-11-01
A185: 89 | B185: 2017-04-20 | D185: KPRMILL | E185: Accu | F185: 700.00 | H185: 840 | I185: 840.00 | J185: Profit of Rs.140/- | K185: 140.00 | L185: 20.00% | M185: Successful | N185: 2017-06-07
A186: 90 | B186: 2017-06-01 | D186: ESSELPACK | E186: Accu | F186: 130.00 | H186: 144.25 | I186: 170.00 | J186: Profit of Rs.14.25/- | K186: 14.25 | L186: 10.96% | M186: Successful | N186: 2019-07-29
A187: 91 | B187: 2017-06-15 | D187: KEI | E187: Accu | F187: 214.50 | H187: 262 | I187: 262.00 | J187: Profit of Rs.47.5/- | K187: 47.50 | L187: 22.14% | M187: Successful | N187: 2017-08-30
A188: 92 | B188: 2017-07-17 | D188: MAYURUNIQ | E188: Accu | F188: 370.00 | H188: 447.5 | I188: 450.00 | J188: Target Achieved | K188: 77.50 | L188: 20.95% | M188: Successful | N188: 2017-10-27
A189: 93 | B189: 2017-07-27 | D189: RAMCOCEM | E189: Accu | F189: 657.50 | H189: 825 | I189: 820.00 | J189: Target Achieved | K189: 167.50 | L189: 25.48% | M189: Successful | N189: 2017-12-21
A190: 94 | B190: 2017-08-17 | D190: FINPIPE | E190: Accu | F190: 605.00 | H190: 750 | I190: 750.00 | J190: Profit of Rs.145/- | K190: 145.00 | L190: 23.97% | M190: Successful | N190: 2017-10-19
A191: 95 | B191: 2017-09-01 | D191: SHK | E191: Accu | F191: 255 | H191: 217.25 | I191: 320.00 | J191: Loss of Rs.37.75/- | K191: -37.75 | L191: -15% | M191: Unsuccessful | N191: 2019-07-15
A192: 96 | B192: 2017-09-19 | D192: SKIPPER | E192: Accu | F192: 215.00 | H192: 258 | I192: 258.00 | J192: Target Achieved | K192: 43.00 | L192: 20.00% | M192: Successful | N192: 2017-11-01
A193: 97 | B193: 2017-09-19 | D193: SKIPPER | E193: Accu | F193: 215.00 | H193: 258 | I193: 258.00 | J193: Target Achieved | K193: 43.00 | L193: 20.00% | M193: Successful | N193: 2017-11-01
A194: 98 | B194: 2017-09-20 | D194: CAMLINFINE$ | E194: Accu | F194: 75.00 | H194: 90 | I194: 90.00 | J194: Profit of Rs.15.00/- | K194: =H194-F194 -> 15.00 | L194: =K194/F194 -> 20.00% | M194: Successful | N194: 2017-10-11
A195: 99 | B195: 2017-10-03 | D195: GNA | E195: Accu | F195: 315.00 | H195: 392 | I195: 384.00 | J195: Profit of Rs.77/- | K195: 77.00 | L195: 24.44% | M195: Successful | N195: 2017-10-09
A196: 100 | B196: 2017-10-05 | D196: NOCIL | E196: Accu | F196: 145.00 | H196: 179 | I196: 180.00 | J196: Profit of Rs.34/- | K196: 34.00 | L196: 23.45% | M196: Successful | N196: 2017-10-17
A197: 101 | B197: 2017-10-06 | D197: CENTURYPLY | E197: Accu | F197: 256.00 | H197: 323 | I197: 320.00 | J197: Target Achieved | K197: 67.00 | L197: 26.17% | M197: Successful | N197: 2017-11-28
A198: 102 | B198: 2017-10-09 | D198: EIHOTEL | E198: Accu | F198: 137.50 | H198: 184 | I198: 183.00 | J198: Profit of Rs.46.5/- | K198: 46.50 | L198: 33.82% | M198: Successful | N198: 2018-01-08
A199: 103 | B199: 2017-10-10 | D199: NRBBEARING | E199: Accu | F199: 125.50 | H199: 158 | I199: 155.00 | J199: Profit of Rs.32.5/- | K199: 32.50 | L199: 25.90% | M199: Successful | N199: 2017-11-28
A200: 104 | B200: 2017-10-10 | D200: BOROSIL | E200: Accu | F200: 895.00 | H200: 1122.5 | I200: 1078.00 | J200: Profit of Rs.227.5/- | K200: 227.50 | L200: 25.42% | M200: Successful | N200: 2018-01-17
A201: 105 | B201: 2017-10-12 | D201: CYIENT | E201: Accu | F201: 525.00 | H201: 629 | I201: 629.00 | J201: Target Achieved | K201: 104.00 | L201: 19.81% | M201: Successful | N201: 2018-01-19
A202: 106 | B202: 2017-11-07 | D202: HATSUN | E202: Accu | F202: 740.00 | H202: 892.5 | I202: 900.00 | J202: Profit of Rs.152.5/- | K202: =H202-F202 -> 152.50 | L202: =K202/F202 -> 20.61% | M202: Successful | N202: 2017-11-13
A203: 107 | B203: 2017-12-04 | D203: SANGHIIND | E203: Accu | F203: 118.50 | H203: 143.5 | I203: 145.00 | J203: Profit of Rs.25/- | K203: =H203-F203 -> 25.00 | L203: =K203/F203 -> 21.10% | M203: Successful | N203: 2017-12-28
A204: 108 | B204: 2017-12-21 | D204: KAJARIACER | E204: Accu | F204: 715 | H204: 500.00 | I204: 872.00 | J204: Loss of Rs.215/- | K204: =H204-F204 -> -215.00 | L204: =K204/F204 -> -30.07% | M204: Unsuccessful | N204: 2019-07-24
A205: 109 | B205: 2017-12-29 | D205: GNA | E205: Accu | F205: 435.00 | H205: 542.5 | I205: 539.00 | J205: Target Achieved | K205: 107.50 | L205: 24.71% | M205: Successful | N205: 2018-04-16
A206: 110 | B206: 2017-12-29 | D206: ZENSARTECH | E206: Accu | F206: 885.00 | H206: 1090 | I206: 1084.00 | J206: Target Achieved | K206: 205.00 | L206: 23.16% | M206: Successful | N206: 2018-04-23
A207: 111 | B207: 2018-04-02 | D207: EVERESTIND | E207: Accu | F207: 478.50 | H207: 442 | I207: 613.00 | J207: Loss of Rs.36.50 /- | K207: =H207-F207 -> -36.50 | L207: =K207/F207 -> -7.63% | M207: Unsuccessful | N207: 2019-10-24
A208: 112 | B208: 2018-04-04 | D208: GPPL$ | E208: Accu | F208: =141.5-7.3 -> 134.2 | H208: 77.00 | I208: 180.00 | J208: Loss of Rs.57.2/- | K208: =H208-F208 -> -57.20 | L208: =K208/F208 -> -42.62% | M208: Unsuccessful | N208: 2019-02-26
A209: 113 | B209: 2018-04-19 | D209: MANPASAND | E209: Accu | F209: 430 | H209: 220.00 | I209: 537.00 | J209: Loss of Rs.210/- | K209: =H209-F209 -> -210.00 | L209: =K209/F209 -> -48.84% | M209: Unsuccessful | N209: 2018-06-01
A210: 114 | B210: 2018-04-30 | D210: HEIDELBERG | E210: Accu | F210: 153.50 | H210: 196.00 | I210: 196.00 | J210: Profit of Rs.42.50/- | K210: =H210-F210 -> 42.50 | L210: =K210/F210 -> 28% | M210: Successful | N210: 2019-05-20
A211: 115 | B211: 2018-07-25 | D211: ZEEMEDIA | E211: Accu | F211: 27.5 | H211: 13.10 | I211: 60.00 | J211: Loss of Rs.14.40/- | K211: -14.40 | L211: -52.36% | M211: Unsuccessful | N211: 2018-02-07
A212: 116 | B212: 2018-08-06 | D212: GABRIEL | E212: Accu | F212: 148.5 | H212: 102 | I212: 182.00 | J212: Loss of Rs.46.50/- | K212: =H212-F212 -> -46.50 | L212: =K212/F212 -> -31.31% | M212: Unsuccessful | N212: 2019-07-15
A213: 117 | B213: 2018-08-23 | D213: INDIANHUME | E213: Accu | F213: 285 | H213: 355 | I213: 364.00 | J213: Profit of Rs.70/- | K213: 70.00 | L213: 24.56% | M213: Successful | N213: 2018-12-21
A214: 118 | B214: 2018-08-29 | D214: GRINDWELL | E214: Accu | F214: 525 | H214: 585 | I214: 635.00 | J214: Profit of Rs.60- | K214: =H214-F214 -> 60.00 | L214: =K214/F214 -> 11.43% | M214: Successful | N214: 2019-07-16
A215: 119 | B215: 2018-10-22 | D215: FINPIPE | E215: Accu | F215: 475 | H215: 574 | I215: 570.00 | J215: Target Achieved | K215: 99.00 | L215: 20.84% | M215: Successful | N215: 2018-10-30
A216: 120 | B216: 2018-10-24 | D216: GULFOILLUB | E216: Accu | F216: 707.5 | H216: 872 | I216: 872.00 | J216: Target Achieved | K216: 164.50 | L216: 23.25% | M216: Successful | N216: 2019-01-17
A217: 121 | B217: 2018-10-25 | D217: DBCORP | E217: Accu | F217: 162 | H217: 204 | I217: 209.00 | J217: Profit of Rs.42/- | K217: 42.00 | L217: 25.93% | M217: Successful | N217: 2019-03-15
A218: 122 | B218: 2018-10-26 | D218: RITES | E218: Accu | F218: 240 | H218: 297 | I218: 297.00 | J218: Target Achieved | K218: 57.00 | L218: 23.75% | M218: Successful | N218: 2018-11-13
A219: 123 | B219: 2018-12-05 | D219: BRIGADE | E219: Accu | F219: 202.5 | H219: 255 | I219: 252.00 | J219: Target Achieved | K219: 52.50 | L219: 25.93% | M219: Successful | N219: 2019-03-18
A220: 124 | B220: 2018-12-31 | D220: JKCEMENT | E220: Accu | F220: 710 | H220: 866 | I220: 866.00 | J220: Target Achieved | K220: 156.00 | L220: 21.97% | M220: Successful | N220: 2019-03-29
... 29 more rows

Sheet Sheet2 (hidden)
A1: SYMBOL | B1: SERIES | C1: OPEN | D1: HIGH | E1: LOW | F1: CLOSE | G1: LAST | H1: PREVCLOSE | I1: TOTTRDQTY | J1: TOTTRDVAL | K1: TIMESTAMP | L1: TOTALTRADES | M1: ISIN | N1: ISIN
A2: 20MICRONS | B2: EQ | C2: 27.9 | D2: 29 | E2: 25.9 | F2: 26.2 | G2: 25.9 | H2: 27.5 | I2: 80527 | J2: 2193820.55 | K2: 2020-04-08 | L2: 1099 | M2: INE144J01027
A3: 21STCENMGM | B3: EQ | C3: 10.15 | D3: 10.5 | E3: 10.1 | F3: 10.4 | G3: 10.5 | H3: 10.3 | I3: 3205 | J3: 32728.25 | K3: 2020-04-08 | L3: 28 | M3: INE253B01015
A4: 3IINFOTECH | B4: EQ | C4: 1.35 | D4: 1.35 | E4: 1.2 | F4: 1.25 | G4: 1.25 | H4: 1.35 | I4: 2793301 | J4: 3578364.95 | K4: 2020-04-08 | L4: 46535 | M4: INE748C01020
A5: 3MINDIA | B5: EQ | C5: 18950 | D5: 19170 | E5: 18155.05 | F5: 18318.2 | G5: 18270 | H5: 18755.7 | I5: 9926 | J5: 183605811.2 | K5: 2020-04-08 | L5: 4453 | M5: INE470A01017
A6: 3PLAND | B6: EQ | C6: 3.7 | D6: 3.85 | E6: 3.7 | F6: 3.85 | G6: 3.85 | H6: 3.7 | I6: 406 | J6: 1557.85 | K6: 2020-04-08 | L6: 9 | M6: INE105C01023
A7: 5PAISA | B7: EQ | C7: 119.95 | D7: 134 | E7: 115 | F7: 123.35 | G7: 120.5 | H7: 116.4 | I7: 6500 | J7: 793277.05 | K7: 2020-04-08 | L7: 265 | M7: INE618L01018
A8: 63MOONS | B8: EQ | C8: 50.7 | D8: 55.45 | E8: 50.7 | F8: 53.7 | G8: 53.55 | H8: 50.7 | I8: 72221 | J8: 3890984.7 | K8: 2020-04-08 | L8: 3078 | M8: INE111B01023
A9: A2ZINFRA | B9: EQ | C9: 3.15 | D9: 3.25 | E9: 3.1 | F9: 3.15 | G9: 3.15 | H9: 3.15 | I9: 116011 | J9: 367778.85 | K9: 2020-04-08 | L9: 227 | M9: INE619I01012
A10: AARTIDRUGS | B10: EQ | C10: 627 | D10: 669.3 | E10: 605 | F10: 631.6 | G10: 625 | H10: 607.85 | I10: 75970 | J10: 48223549.15 | K10: 2020-04-08 | L10: 5720 | M10: INE767A01016
A11: AARTIIND | B11: EQ | C11: 839.95 | D11: 909.8 | E11: 818 | F11: 854.9 | G11: 864 | H11: 830.7 | I11: 477805 | J11: 419092386.9 | K11: 2020-04-08 | L11: 50045 | M11: INE769A01020
A12: AARVEEDEN | B12: EQ | C12: 8.95 | D12: 9.25 | E12: 7.85 | F12: 8.35 | G12: 8.45 | H12: 8.1 | I12: 9251 | J12: 77100.1 | K12: 2020-04-08 | L12: 94 | M12: INE273D01019
A13: AAVAS | B13: EQ | C13: 1101 | D13: 1183 | E13: 1101 | F13: 1135.2 | G13: 1137 | H13: 1142.35 | I13: 24179 | J13: 28073100.85 | K13: 2020-04-08 | L13: 3631 | M13: INE216P01012
A14: ABAN | B14: EQ | C14: 15.7 | D14: 16.2 | E14: 15.7 | F14: 16.2 | G14: 16.2 | H14: 15.45 | I14: 37609 | J14: 608439.6 | K14: 2020-04-08 | L14: 288 | M14: INE421A01028
A15: ABB | B15: EQ | C15: 935 | D15: 965 | E15: 910 | F15: 930.7 | G15: 928 | H15: 931.35 | I15: 87757 | J15: 82358527.9 | K15: 2020-04-08 | L15: 4699 | M15: INE117A01022
A16: ABBOTINDIA | B16: EQ | C16: 16799.45 | D16: 18250 | E16: 16750 | F16: 17481.1 | G16: 17488 | H16: 16699.7 | I16: 57991 | J16: 1023745502 | K16: 2020-04-08 | L16: 21022 | M16: INE358A01014
A17: ABCAPITAL | B17: EQ | C17: 45 | D17: 47.9 | E17: 44.25 | F17: 45.6 | G17: 45.7 | H17: 45.1 | I17: 1253267 | J17: 57952493.6 | K17: 2020-04-08 | L17: 7317 | M17: INE674K01013
A18: ABFRL | B18: EQ | C18: 148 | D18: 152.8 | E18: 146.75 | F18: 149 | G18: 148 | H18: 149.85 | I18: 416099 | J18: 62371769.1 | K18: 2020-04-08 | L18: 10148 | M18: INE647O01011
A19: ABSLNN50ET | B19: EQ | C19: 244 | D19: 248 | E19: 210 | F19: 235 | G19: 235 | H19: 244 | I19: 56 | J19: 12779.4 | K19: 2020-04-08 | L19: 13 | M19: INF209KB1B87
A20: ACC | B20: EQ | C20: 1000 | D20: 1029.9 | E20: 941.25 | F20: 956.05 | G20: 958 | H20: 1009.95 | I20: 2153627 | J20: 2101320389 | K20: 2020-04-08 | L20: 79728 | M20: INE012A01025
A21: ACCELYA | B21: EQ | C21: 874.3 | D21: 886 | E21: 862 | F21: 880.45 | G21: 879.95 | H21: 874.3 | I21: 10865 | J21: 9557704.55 | K21: 2020-04-08 | L21: 923 | M21: INE793A01012
A22: ACE | B22: EQ | C22: 32.75 | D22: 35.2 | E22: 32.55 | F22: 33.25 | G22: 33.35 | H22: 32.95 | I22: 244708 | J22: 8296578.4 | K22: 2020-04-08 | L22: 2925 | M22: INE731H01025
A23: ADANIENT | B23: EQ | C23: 136.85 | D23: 147.15 | E23: 134.9 | F23: 138.1 | G23: 137.5 | H23: 138.15 | I23: 3237290 | J23: 456492273.1 | K23: 2020-04-08 | L23: 23696 | M23: INE423A01024
A24: ADANIGAS | B24: EQ | C24: 93.9 | D24: 96.35 | E24: 90.5 | F24: 90.8 | G24: 90.65 | H24: 94 | I24: 1888606 | J24: 176837924.4 | K24: 2020-04-08 | L24: 14517 | M24: INE399L01023
A25: ADANIGREEN | B25: EQ | C25: 166.85 | D25: 166.85 | E25: 162 | F25: 166.45 | G25: 166.85 | H25: 158.95 | I25: 702014 | J25: 116248737 | K25: 2020-04-08 | L25: 10187 | M25: INE364U01010
A26: ADANIPORTS | B26: EQ | C26: 248 | D26: 255.85 | E26: 242.75 | F26: 250.85 | G26: 249.7 | H26: 248.1 | I26: 6897883 | J26: 1724830525 | K26: 2020-04-08 | L26: 81499 | M26: INE742F01042
A27: ADANIPOWER | B27: EQ | C27: 28.65 | D27: 31.15 | E27: 27.5 | F27: 28.95 | G27: 28.85 | H27: 28.8 | I27: 12308064 | J27: 361987996.9 | K27: 2020-04-08 | L27: 23153 | M27: INE814H01011
A28: ADANITRANS | B28: EQ | C28: 196.65 | D28: 202 | E28: 190 | F28: 193.65 | G28: 193.5 | H28: 198.3 | I28: 306320 | J28: 59783940.3 | K28: 2020-04-08 | L28: 4236 | M28: INE931S01010
A29: ADFFOODS | B29: EQ | C29: 187.85 | D29: 192.25 | E29: 184 | F29: 187.7 | G29: 187.3 | H29: 183.1 | I29: 22107 | J29: 4185556.05 | K29: 2020-04-08 | L29: 773 | M29: INE982B01019
A30: ADHUNIKIND | B30: EQ | C30: 13.3 | D30: 13.3 | E30: 13.3 | F30: 13.3 | G30: 13.3 | H30: 12.7 | I30: 5518 | J30: 73389.4 | K30: 2020-04-08 | L30: 21 | M30: INE452L01012
A31: ADLABS | B31: EQ | C31: 2.75 | D31: 2.85 | E31: 2.75 | F31: 2.85 | G31: 2.85 | H31: 2.75 | I31: 19360 | J31: 54965.35 | K31: 2020-04-08 | L31: 72 | M31: INE172N01012
A32: ADORWELD | B32: EQ | C32: 195.7 | D32: 201.9 | E32: 193.95 | F32: 195.1 | G32: 194.45 | H32: 196.75 | I32: 1438 | J32: 283768.75 | K32: 2020-04-08 | L32: 94 | M32: INE045A01017
A33: ADROITINFO | B33: EQ | C33: 5.5 | D33: 5.7 | E33: 5.45 | F33: 5.7 | G33: 5.7 | H33: 5.7 | I33: 691 | J33: 3857 | K33: 2020-04-08 | L33: 25 | M33: INE737B01033
A34: ADSL | B34: EQ | C34: 13.05 | D34: 13.2 | E34: 12.4 | F34: 12.5 | G34: 12.45 | H34: 12.7 | I34: 16203 | J34: 205559.25 | K34: 2020-04-08 | L34: 143 | M34: INE102I01027
A35: ADVANIHOTR | B35: EQ | C35: 30.1 | D35: 33 | E35: 30.1 | F35: 31.8 | G35: 31.5 | H35: 30.65 | I35: 5340 | J35: 169948.95 | K35: 2020-04-08 | L35: 193 | M35: INE199C01026
A36: ADVENZYMES | B36: EQ | C36: 140.2 | D36: 146.55 | E36: 137.95 | F36: 139.2 | G36: 139.75 | H36: 136.55 | I36: 77441 | J36: 11046136.15 | K36: 2020-04-08 | L36: 1990 | M36: INE837H01020
A37: AEGISCHEM | B37: EQ | C37: 150 | D37: 158.5 | E37: 147.1 | F37: 156.35 | G37: 156.05 | H37: 144.1 | I37: 175470 | J37: 27041093.9 | K37: 2020-04-08 | L37: 4268 | M37: INE208C01025
A38: AFFLE | B38: BE | C38: 1050 | D38: 1053.45 | E38: 1030 | F38: 1053.45 | G38: 1053.45 | H38: 1003.3 | I38: 8191 | J38: 8619737.5 | K38: 2020-04-08 | L38: 470 | M38: INE00WC01019
A39: AGARIND | B39: EQ | C39: 49.8 | D39: 52.85 | E39: 49.05 | F39: 52.25 | G39: 52.5 | H39: 49.95 | I39: 7826 | J39: 404450.25 | K39: 2020-04-08 | L39: 207 | M39: INE204E01012
A40: AGCNET | B40: BE | C40: 224.35 | D40: 235.55 | E40: 213.25 | F40: 234.7 | G40: 235.55 | H40: 224.35 | I40: 2524 | J40: 573063 | K40: 2020-04-08 | L40: 70 | M40: INE676A01019
A41: AGRITECH | B41: EQ | C41: 23.95 | D41: 23.95 | E41: 23.95 | F41: 23.95 | G41: 23.95 | H41: 22.85 | I41: 504 | J41: 12070.8 | K41: 2020-04-08 | L41: 18 | M41: INE449G01018
A42: AGROPHOS | B42: EQ | C42: 5.7 | D42: 5.7 | E42: 5.2 | F42: 5.7 | G42: 5.7 | H42: 5.45 | I42: 40596 | J42: 227201.55 | K42: 2020-04-08 | L42: 340 | M42: INE740V01019
A43: AHLEAST | B43: EQ | C43: 133.15 | D43: 141.85 | E43: 128.15 | F43: 131.55 | G43: 128.35 | H43: 131.5 | I43: 3303 | J43: 439718.1 | K43: 2020-04-08 | L43: 350 | M43: INE926K01017
A44: AHLUCONT | B44: EQ | C44: 145.95 | D44: 148 | E44: 136 | F44: 146.3 | G44: 148 | H44: 144.1 | I44: 153910 | J44: 21077811.2 | K44: 2020-04-08 | L44: 995 | M44: INE758C01029
A45: AHLWEST | B45: EQ | C45: 289.9 | D45: 289.9 | E45: 270.95 | F45: 275 | G45: 275 | H45: 277 | I45: 238 | J45: 67030 | K45: 2020-04-08 | L45: 91 | M45: INE915K01010
A46: AIAENG | B46: EQ | C46: 1259.45 | D46: 1291 | E46: 1229 | F46: 1255.85 | G46: 1268 | H46: 1249.9 | I46: 73842 | J46: 92756824.05 | K46: 2020-04-08 | L46: 10503 | M46: INE212H01026
A47: AIONJSW | B47: EQ | C47: 10.9 | D47: 11.1 | E47: 10.2 | F47: 11.1 | G47: 11.1 | H47: 10.6 | I47: 90347 | J47: 996144.95 | K47: 2020-04-08 | L47: 180 | M47: INE743C01021
A48: AIRAN | B48: EQ | C48: 9.8 | D48: 10.3 | E48: 9.75 | F48: 9.8 | G48: 9.75 | H48: 9.85 | I48: 1826 | J48: 18127.1 | K48: 2020-04-08 | L48: 25 | M48: INE645W01026
A49: AJANTPHARM | B49: EQ | C49: 1325.75 | D49: 1450 | E49: 1325 | F49: 1367.5 | G49: 1363 | H49: 1340.2 | I49: 166582 | J49: 233126032.5 | K49: 2020-04-08 | L49: 8748 | M49: INE031B01049
A50: AJMERA | B50: EQ | C50: 64.95 | D50: 70.5 | E50: 64.6 | F50: 68.4 | G50: 69.9 | H50: 64.65 | I50: 31766 | J50: 2167947.5 | K50: 2020-04-08 | L50: 909 | M50: INE298G01027
A51: AKASH | B51: BE | C51: 90 | D51: 90 | E51: 90 | F51: 90 | G51: 90 | H51: 90.95 | I51: 500 | J51: 45000 | K51: 2020-04-08 | L51: 1 | M51: INE737W01013
A52: AKSHARCHEM | B52: EQ | C52: 174.75 | D52: 177.6 | E52: 165.3 | F52: 169.7 | G52: 167.15 | H52: 165.25 | I52: 3130 | J52: 531878.25 | K52: 2020-04-08 | L52: 293 | M52: INE542B01011
A53: AKSHOPTFBR | B53: EQ | C53: 3.6 | D53: 3.6 | E53: 3.6 | F53: 3.6 | G53: 3.6 | H53: 3.45 | I53: 27750 | J53: 99900 | K53: 2020-04-08 | L53: 45 | M53: INE523B01011
A54: AKZOINDIA | B54: EQ | C54: 2084.95 | D54: 2133 | E54: 2030 | F54: 2047.9 | G54: 2040 | H54: 2086.75 | I54: 12835 | J54: 26789836.95 | K54: 2020-04-08 | L54: 2242 | M54: INE133A01011
A55: ALANKIT | B55: EQ | C55: 12.9 | D55: 12.9 | E55: 12.9 | F55: 12.9 | G55: 12.9 | H55: 12.3 | I55: 14247 | J55: 183786.3 | K55: 2020-04-08 | L55: 75 | M55: INE914E01040
A56: ALBERTDAVD | B56: EQ | C56: 338.8 | D56: 364.75 | E56: 338.8 | F56: 353.15 | G56: 352 | H56: 341.15 | I56: 24334 | J56: 8579416.55 | K56: 2020-04-08 | L56: 1220 | M56: INE155C01010
A57: ALCHEM | B57: BE | C57: 1.4 | D57: 1.4 | E57: 1.4 | F57: 1.4 | G57: 1.4 | H57: 1.35 | I57: 8608 | J57: 12051.2 | K57: 2020-04-08 | L57: 18 | M57: INE964B01033
A58: ALEMBICLTD | B58: EQ | C58: 43.7 | D58: 48.05 | E58: 39.7 | F58: 45.05 | G58: 45.5 | H58: 42.15 | I58: 695128 | J58: 31779132.75 | K58: 2020-04-08 | L58: 6991 | M58: INE426A01027
A59: ALICON | B59: EQ | C59: 195.95 | D59: 196 | E59: 181.05 | F59: 184.75 | G59: 184 | H59: 189.25 | I59: 3909 | J59: 722322.5 | K59: 2020-04-08 | L59: 123 | M59: INE062D01024
A60: ALKALI | B60: EQ | C60: 29.95 | D60: 31.75 | E60: 29.65 | F60: 31.75 | G60: 31.75 | H60: 28.9 | I60: 9346 | J60: 289594.95 | K60: 2020-04-08 | L60: 349 | M60: INE773I01017
A61: ALKEM | B61: EQ | C61: 2360 | D61: 2736.5 | E61: 2326.2 | F61: 2671.15 | G61: 2639 | H61: 2324.05 | I61: 371259 | J61: 967330461.6 | K61: 2020-04-08 | L61: 44106 | M61: INE540L01014
A62: ALKYLAMINE | B62: EQ | C62: 1236.6 | D62: 1398 | E62: 1222.2 | F62: 1334.05 | G62: 1334 | H62: 1232.45 | I62: 41501 | J62: 55061848.25 | K62: 2020-04-08 | L62: 3832 | M62: INE150B01021
A63: ALLCARGO | B63: EQ | C63: 63.05 | D63: 65.85 | E63: 63 | F63: 65.7 | G63: 65.85 | H63: 59.9 | I63: 300794 | J63: 19569467.05 | K63: 2020-04-08 | L63: 3098 | M63: INE418H01029
A64: ALLSEC | B64: EQ | C64: 131.7 | D64: 131.9 | E64: 129.35 | F64: 131.9 | G64: 131.9 | H64: 125.65 | I64: 1335 | J64: 175836.2 | K64: 2020-04-08 | L64: 37 | M64: INE835G01018
A65: ALOKINDS | B65: EQ | C65: 4.7 | D65: 4.7 | E65: 4.7 | F65: 4.7 | G65: 4.7 | H65: 4.5 | I65: 1698707 | J65: 7983922.9 | K65: 2020-04-08 | L65: 397 | M65: INE270A01029
A66: ALPA | B66: EQ | C66: 18.55 | D66: 20.15 | E66: 17.8 | F66: 20.15 | G66: 20.15 | H66: 16.8 | I66: 131233 | J66: 2593665.9 | K66: 2020-04-08 | L66: 858 | M66: INE385I01010
A67: ALPHAGEO | B67: EQ | C67: 126 | D67: 137.5 | E67: 126 | F67: 134.45 | G67: 133.3 | H67: 129.7 | I67: 22258 | J67: 2986986.5 | K67: 2020-04-08 | L67: 783 | M67: INE137C01018
A68: ALPSINDUS | B68: EQ | C68: 0.65 | D68: 0.75 | E68: 0.65 | F68: 0.75 | G68: 0.7 | H68: 0.7 | I68: 25369 | J68: 18108.8 | K68: 2020-04-08 | L68: 33 | M68: INE093B01015
A69: AMARAJABAT | B69: EQ | C69: 501.1 | D69: 513.65 | E69: 488.45 | F69: 502.05 | G69: 504.9 | H69: 501.1 | I69: 755312 | J69: 378881689.9 | K69: 2020-04-08 | L69: 18162 | M69: INE885A01032
A70: AMBER | B70: EQ | C70: 1189.9 | D70: 1199 | E70: 1072 | F70: 1108.05 | G70: 1109.25 | H70: 1189.9 | I70: 93512 | J70: 105805912.2 | K70: 2020-04-08 | L70: 14252 | M70: INE371P01015
A71: AMBIKCO | B71: EQ | C71: 539.25 | D71: 559 | E71: 531.05 | F71: 545.2 | G71: 536.4 | H71: 537.25 | I71: 3988 | J71: 2168349.4 | K71: 2020-04-08 | L71: 406 | M71: INE540G01014
A72: AMBUJACEM | B72: EQ | C72: 158.5 | D72: 159.5 | E72: 148.2 | F72: 149.7 | G72: 149.55 | H72: 159 | I72: 10421438 | J72: 1597618498 | K72: 2020-04-08 | L72: 84074 | M72: INE079A01024
A73: AMDIND | B73: EQ | C73: 9.9 | D73: 10.5 | E73: 9.5 | F73: 9.8 | G73: 9.55 | H73: 10 | I73: 17757 | J73: 177659.15 | K73: 2020-04-08 | L73: 707 | M73: INE005I01014
A74: AMJLAND | B74: EQ | C74: 14.3 | D74: 14.95 | E74: 13.7 | F74: 14 | G74: 14 | H74: 14.25 | I74: 12523 | J74: 176065.3 | K74: 2020-04-08 | L74: 106 | M74: INE606A01024
A75: AMRUTANJAN | B75: EQ | C75: 326 | D75: 352 | E75: 320.1 | F75: 345.45 | G75: 344.3 | H75: 324 | I75: 278725 | J75: 95586275.35 | K75: 2020-04-08 | L75: 9075 | M75: INE098F01031
A76: ANANTRAJ | B76: EQ | C76: 19.55 | D76: 20.15 | E76: 18.6 | F76: 18.75 | G76: 18.8 | H76: 19.55 | I76: 184694 | J76: 3509270.8 | K76: 2020-04-08 | L76: 1012 | M76: INE242C01024
A77: ANDHRACEMT | B77: EQ | C77: 1.8 | D77: 1.9 | E77: 1.7 | F77: 1.85 | G77: 1.9 | H77: 1.75 | I77: 105618 | J77: 196578.05 | K77: 2020-04-08 | L77: 227 | M77: INE666E01012
A78: ANDHRAPAP | B78: EQ | C78: 148.55 | D78: 148.55 | E78: 147 | F78: 148.55 | G78: 148.55 | H78: 141.5 | I78: 2622 | J78: 389210.05 | K78: 2020-04-08 | L78: 70 | M78: INE435A01028
A79: ANDHRSUGAR | B79: EQ | C79: 206.95 | D79: 212 | E79: 195 | F79: 206.05 | G79: 205.85 | H79: 203.55 | I79: 35494 | J79: 7286675.25 | K79: 2020-04-08 | L79: 1328 | M79: INE715B01013
A80: ANIKINDS | B80: EQ | C80: 7.25 | D80: 7.25 | E80: 6.65 | F80: 6.8 | G80: 6.8 | H80: 6.95 | I80: 4994 | J80: 34701.65 | K80: 2020-04-08 | L80: 35 | M80: INE087B01017
A81: ANKITMETAL | B81: EQ | C81: 0.4 | D81: 0.45 | E81: 0.35 | F81: 0.45 | G81: 0.45 | H81: 0.4 | I81: 64810 | J81: 27213.05 | K81: 2020-04-08 | L81: 29 | M81: INE106I01010
A82: ANSALAPI | B82: EQ | C82: 3.65 | D82: 3.8 | E82: 3.65 | F82: 3.8 | G82: 3.8 | H82: 3.65 | I82: 3974 | J82: 15023.75 | K82: 2020-04-08 | L82: 28 | M82: INE436A01026
A83: ANSALHSG | B83: EQ | C83: 3 | D83: 3 | E83: 2.8 | F83: 2.9 | G83: 2.9 | H83: 2.9 | I83: 31510 | J83: 91846.6 | K83: 2020-04-08 | L83: 64 | M83: INE880B01015
A84: ANUP | B84: EQ | C84: 304.75 | D84: 323.7 | E84: 303.1 | F84: 313.2 | G84: 313.05 | H84: 312.75 | I84: 11786 | J84: 3732090.6 | K84: 2020-04-08 | L84: 460 | M84: INE294Z01018
A85: APARINDS | B85: EQ | C85: 296.95 | D85: 300.35 | E85: 290.6 | F85: 295.85 | G85: 295.5 | H85: 296.05 | I85: 6051 | J85: 1806443.45 | K85: 2020-04-08 | L85: 427 | M85: INE372A01015
A86: APCL | B86: EQ | C86: 102.4 | D86: 102.4 | E86: 95.2 | F86: 97.35 | G86: 97 | H86: 98.5 | I86: 3739 | J86: 362867.6 | K86: 2020-04-08 | L86: 79 | M86: INE071F01012
A87: APCOTEXIND | B87: EQ | C87: 87.55 | D87: 94.85 | E87: 86 | F87: 87.5 | G87: 86.1 | H87: 87.45 | I87: 13115 | J87: 1175575.25 | K87: 2020-04-08 | L87: 323 | M87: INE116A01032
A88: APEX | B88: EQ | C88: 190 | D88: 201.65 | E88: 185.1 | F88: 201.65 | G88: 201.65 | H88: 183.35 | I88: 141806 | J88: 27768799.35 | K88: 2020-04-08 | L88: 3293 | M88: INE346W01013
A89: APLAPOLLO | B89: EQ | C89: 1245 | D89: 1274 | E89: 1220 | F89: 1259.5 | G89: 1258 | H89: 1231.75 | I89: 21152 | J89: 26442272.1 | K89: 2020-04-08 | L89: 3032 | M89: INE702C01019
A90: APLLTD | B90: EQ | C90: 630 | D90: 702.65 | E90: 615.5 | F90: 640.85 | G90: 626 | H90: 610.2 | I90: 540272 | J90: 353935242.1 | K90: 2020-04-08 | L90: 30323 | M90: INE901L01018
A91: APOLLO | B91: EQ | C91: 45.5 | D91: 56 | E91: 45.25 | F91: 54.3 | G91: 53.55 | H91: 46.7 | I91: 68951 | J91: 3631629.4 | K91: 2020-04-08 | L91: 1694 | M91: INE713T01010
A92: APOLLOHOSP | B92: EQ | C92: 1225.9 | D92: 1338.4 | E92: 1211 | F92: 1263.95 | G92: 1261 | H92: 1225.95 | I92: 2070270 | J92: 2654141027 | K92: 2020-04-08 | L92: 156926 | M92: INE437A01024
A93: APOLLOPIPE | B93: EQ | C93: 279.5 | D93: 304 | E93: 262.95 | F93: 281.3 | G93: 281 | H93: 280.1 | I93: 12940 | J93: 3607793.25 | K93: 2020-04-08 | L93: 543 | M93: INE126J01016
A94: APOLLOTYRE | B94: EQ | C94: 83.5 | D94: 87.15 | E94: 82 | F94: 83.4 | G94: 83.15 | H94: 83.5 | I94: 2950752 | J94: 248872037.1 | K94: 2020-04-08 | L94: 19408 | M94: INE438A01022
A95: APOLSINHOT | B95: EQ | C95: 460.35 | D95: 460.4 | E95: 421.1 | F95: 439.8 | G95: 436 | H95: 438.6 | I95: 694 | J95: 306874.65 | K95: 2020-04-08 | L95: 84 | M95: INE451F01024
A96: APTECHT | B96: EQ | C96: 85.3 | D96: 87.7 | E96: 83.55 | F96: 84.6 | G96: 84.3 | H96: 85.3 | I96: 106721 | J96: 9133416.7 | K96: 2020-04-08 | L96: 2385 | M96: INE266F01018
A97: ARCHIDPLY | B97: EQ | C97: 16.55 | D97: 17 | E97: 16.45 | F97: 16.85 | G97: 16.95 | H97: 16.75 | I97: 4083 | J97: 68300.2 | K97: 2020-04-08 | L97: 63 | M97: INE877I01016
A98: ARCHIES | B98: EQ | C98: 9.4 | D98: 9.5 | E98: 9 | F98: 9.05 | G98: 9.15 | H98: 9.45 | I98: 24343 | J98: 224667.6 | K98: 2020-04-08 | L98: 150 | M98: INE731A01020
A99: ARCOTECH | B99: EQ | C99: 0.9 | D99: 0.95 | E99: 0.85 | F99: 0.9 | G99: 0.9 | H99: 0.9 | I99: 51482 | J99: 47500.05 | K99: 2020-04-08 | L99: 77 | M99: INE574I01035
A100: ARENTERP | B100: EQ | C100: 12.65 | D100: 12.65 | E100: 12.05 | F100: 12.05 | G100: 12.05 | H100: 12.65 | I100: 63 | J100: 765.15 | K100: 2020-04-08 | L100: 4 | M100: INE610C01014
A101: ARIES | B101: EQ | C101: 44.4 | D101: 47.6 | E101: 42.65 | F101: 43.6 | G101: 44 | H101: 44.4 | I101: 50875 | J101: 2250478.25 | K101: 2020-04-08 | L101: 1080 | M101: INE298I01015
A102: ARIHANT | B102: EQ | C102: 12.05 | D102: 12.55 | E102: 11.6 | F102: 12.15 | G102: 12.5 | H102: 12.05 | I102: 964 | J102: 11418.15 | K102: 2020-04-08 | L102: 27 | M102: INE413D01011
A103: ARIHANTSUP | B103: EQ | C103: 21.4 | D103: 21.45 | E103: 19.45 | F103: 19.5 | G103: 21 | H103: 20.45 | I103: 4362 | J103: 85414.05 | K103: 2020-04-08 | L103: 80 | M103: INE643K01018
A104: ARMANFIN | B104: EQ | C104: 340 | D104: 373.2 | E104: 337.7 | F104: 373.05 | G104: 373.2 | H104: 355.45 | I104: 50867 | J104: 18465582.65 | K104: 2020-04-08 | L104: 911 | M104: INE109C01017
A105: AROGRANITE | B105: EQ | C105: 21.95 | D105: 24.5 | E105: 20.85 | F105: 24.2 | G105: 24.5 | H105: 22.35 | I105: 26052 | J105: 602565.3 | K105: 2020-04-08 | L105: 183 | M105: INE210C01013
A106: ARROWGREEN | B106: BE | C106: 33.55 | D106: 35 | E106: 33.45 | F106: 33.45 | G106: 33.45 | H106: 33.85 | I106: 5735 | J106: 195198.5 | K106: 2020-04-08 | L106: 32 | M106: INE570D01018
A107: ARSHIYA | B107: EQ | C107: 7.1 | D107: 7.6 | E107: 7.1 | F107: 7.6 | G107: 7.6 | H107: 7.25 | I107: 23178 | J107: 175819.45 | K107: 2020-04-08 | L107: 63 | M107: INE968D01022
A108: ARSSINFRA | B108: EQ | C108: 11.25 | D108: 12.3 | E108: 10.9 | F108: 11.8 | G108: 11.85 | H108: 11.15 | I108: 16388 | J108: 189874.85 | K108: 2020-04-08 | L108: 107 | M108: INE267I01010
A109: ARTEMISMED | B109: EQ | C109: 140 | D109: 147 | E109: 136.3 | F109: 138 | G109: 137 | H109: 139.15 | I109: 1729 | J109: 245138.4 | K109: 2020-04-08 | L109: 31 | M109: INE025R01013
A110: ARVIND | B110: EQ | C110: 23.5 | D110: 24.4 | E110: 22.45 | F110: 23.75 | G110: 23.75 | H110: 22.2 | I110: 2137547 | J110: 50521243.45 | K110: 2020-04-08 | L110: 7057 | M110: INE034A01011
A111: ARVINDFASN | B111: EQ | C111: 139.8 | D111: 141.9 | E111: 132.2 | F111: 133.8 | G111: 134.75 | H111: 139.85 | I111: 46445 | J111: 6387304.5 | K111: 2020-04-08 | L111: 1243 | M111: INE955V01021
A112: ARVSMART | B112: EQ | C112: 64.05 | D112: 67 | E112: 64 | F112: 65.4 | G112: 65.5 | H112: 65 | I112: 10000 | J112: 656036.65 | K112: 2020-04-08 | L112: 320 | M112: INE034S01021
A113: ASAHIINDIA | B113: EQ | C113: 152 | D113: 158 | E113: 147.05 | F113: 155.5 | G113: 152.35 | H113: 153.2 | I113: 5605 | J113: 858978.65 | K113: 2020-04-08 | L113: 218 | M113: INE439A01020
A114: ASAHISONG | B114: EQ | C114: 80.8 | D114: 88.95 | E114: 80.05 | F114: 85.25 | G114: 86 | H114: 80.9 | I114: 8055 | J114: 692533.2 | K114: 2020-04-08 | L114: 314 | M114: INE228I01012
A115: ASAL | B115: EQ | C115: 14.8 | D115: 14.9 | E115: 14.5 | F115: 14.5 | G115: 14.5 | H115: 14.25 | I115: 8037 | J115: 118819.3 | K115: 2020-04-08 | L115: 36 | M115: INE900C01027
A116: ASALCBR | B116: EQ | C116: 164.9 | D116: 175 | E116: 158 | F116: 165.7 | G116: 165 | H116: 162.9 | I116: 31033 | J116: 5116102.05 | K116: 2020-04-08 | L116: 970 | M116: INE073G01016
A117: ASHAPURMIN | B117: EQ | C117: 22.1 | D117: 22.1 | E117: 22.05 | F117: 22.1 | G117: 22.1 | H117: 21.05 | I117: 8770 | J117: 193792 | K117: 2020-04-08 | L117: 43 | M117: INE348A01023
A118: ASHIANA | B118: EQ | C118: 52.9 | D118: 52.9 | E118: 49.1 | F118: 49.95 | G118: 50 | H118: 50 | I118: 69042 | J118: 3480534.3 | K118: 2020-04-08 | L118: 621 | M118: INE365D01021
A119: ASHIMASYN | B119: EQ | C119: 3.9 | D119: 3.9 | E119: 3.9 | F119: 3.9 | G119: 3.9 | H119: 3.55 | I119: 28914 | J119: 112764.6 | K119: 2020-04-08 | L119: 46 | M119: INE440A01010
A120: ASHOKA | B120: EQ | C120: 38.35 | D120: 42.7 | E120: 37.8 | F120: 42.7 | G120: 42.7 | H120: 38.85 | I120: 1577514 | J120: 65134101.3 | K120: 2020-04-08 | L120: 8475 | M120: INE442H01029
A121: ASHOKLEY | B121: EQ | C121: 39.85 | D121: 47.8 | E121: 38.75 | F121: 43.85 | G121: 43.6 | H121: 39.85 | I121: 76817768 | J121: 3355417806 | K121: 2020-04-08 | L121: 169889 | M121: INE208A01029
A122: ASIANHOTNR | B122: EQ | C122: 70 | D122: 71.8 | E122: 66 | F122: 71.55 | G122: 71.5 | H122: 65.4 | I122: 4982 | J122: 349215.55 | K122: 2020-04-08 | L122: 198 | M122: INE363A01022
A123: ASIANPAINT | B123: EQ | C123: 1623.8 | D123: 1687.8 | E123: 1600 | F123: 1608.95 | G123: 1608 | H123: 1623.8 | I123: 2382216 | J123: 3911658954 | K123: 2020-04-08 | L123: 101146 | M123: INE021A01026
A124: ASIANTILES | B124: EQ | C124: 156 | D124: 162.9 | E124: 155 | F124: 157.6 | G124: 156.5 | H124: 157.65 | I124: 19917 | J124: 3151924.4 | K124: 2020-04-08 | L124: 431 | M124: INE022I01019
A125: ASPINWALL | B125: EQ | C125: 93 | D125: 98.7 | E125: 83.55 | F125: 93 | G125: 93 | H125: 90 | I125: 413 | J125: 38837.15 | K125: 2020-04-08 | L125: 20 | M125: INE991I01015
A126: ASTEC | B126: EQ | C126: 450.65 | D126: 465.05 | E126: 440 | F126: 460.05 | G126: 460.3 | H126: 443.9 | I126: 5283 | J126: 2392645.5 | K126: 2020-04-08 | L126: 494 | M126: INE563J01010
A127: ASTERDM | B127: EQ | C127: 96 | D127: 103.5 | E127: 93.8 | F127: 99.25 | G127: 99 | H127: 94.55 | I127: 996205 | J127: 98978623.7 | K127: 2020-04-08 | L127: 4570 | M127: INE914M01019
A128: ASTRAL | B128: EQ | C128: 962 | D128: 986 | E128: 952 | F128: 955.45 | G128: 954 | H128: 973.85 | I128: 59212 | J128: 57381672.65 | K128: 2020-04-08 | L128: 7623 | M128: INE006I01046
A129: ASTRAMICRO | B129: EQ | C129: 56.9 | D129: 62.55 | E129: 55.85 | F129: 61.7 | G129: 62.55 | H129: 56.9 | I129: 253097 | J129: 15146656.55 | K129: 2020-04-08 | L129: 1961 | M129: INE386C01029
A130: ASTRAZEN | B130: EQ | C130: 2700 | D130: 2830 | E130: 2544 | F130: 2561.6 | G130: 2549 | H130: 2693.65 | I130: 38510 | J130: 104113109 | K130: 2020-04-08 | L130: 6647 | M130: INE203A01020
A131: ASTRON | B131: EQ | C131: 26.15 | D131: 29.9 | E131: 25.3 | F131: 27.5 | G131: 27.8 | H131: 27.65 | I131: 61618 | J131: 1693449.45 | K131: 2020-04-08 | L131: 1743 | M131: INE646X01014
A132: ATFL | B132: EQ | C132: 479.65 | D132: 499 | E132: 475 | F132: 481.55 | G132: 475 | H132: 479.65 | I132: 6104 | J132: 2975754.9 | K132: 2020-04-08 | L132: 411 | M132: INE209A01019
A133: ATLANTA | B133: EQ | C133: 3 | D133: 3.15 | E133: 3 | F133: 3.15 | G133: 3.15 | H133: 3 | I133: 8624 | J133: 26936.35 | K133: 2020-04-08 | L133: 28 | M133: INE285H01022
A134: ATLASCYCLE | B134: BE | C134: 30 | D134: 31.5 | E134: 29.5 | F134: 30.7 | G134: 30.7 | H134: 30 | I134: 2000 | J134: 60118.65 | K134: 2020-04-08 | L134: 42 | M134: INE446A01025
A135: ATNINTER | B135: BE | C135: 0.1 | D135: 0.1 | E135: 0.1 | F135: 0.1 | G135: 0.1 | H135: 0.1 | I135: 12716 | J135: 1271.6 | K135: 2020-04-08 | L135: 5 | M135: INE803A01027
A136: ATUL | B136: EQ | C136: 3930 | D136: 4005 | E136: 3908.35 | F136: 3951.85 | G136: 3954.95 | H136: 3927.1 | I136: 76768 | J136: 304824820.4 | K136: 2020-04-08 | L136: 11635 | M136: INE100A01010
A137: ATULAUTO | B137: EQ | C137: 151.35 | D137: 154.05 | E137: 146.8 | F137: 153.45 | G137: 153.95 | H137: 146.75 | I137: 13699 | J137: 2093863.3 | K137: 2020-04-08 | L137: 810 | M137: INE951D01028
A138: AUBANK | B138: EQ | C138: 461.2 | D138: 490 | E138: 457 | F138: 480.3 | G138: 473 | H138: 478.4 | I138: 1791057 | J138: 837589012.6 | K138: 2020-04-08 | L138: 59410 | M138: INE949L01017
A139: AURIONPRO | B139: EQ | C139: 41.75 | D139: 43.7 | E139: 40 | F139: 42.9 | G139: 42.9 | H139: 40.95 | I139: 8828 | J139: 376649.05 | K139: 2020-04-08 | L139: 213 | M139: INE132H01018
A140: AUROPHARMA | B140: EQ | C140: 432.5 | D140: 476.3 | E140: 426.3 | F140: 438.15 | G140: 438.9 | H140: 445.7 | I140: 13186213 | J140: 5925576015 | K140: 2020-04-08 | L140: 205238 | M140: INE406A01037
A141: AUSOMENT | B141: EQ | C141: 26.1 | D141: 26.1 | E141: 26.1 | F141: 26.1 | G141: 26.1 | H141: 25 | I141: 100 | J141: 2610 | K141: 2020-04-08 | L141: 1 | M141: INE218C01016
A142: AUTOAXLES | B142: EQ | C142: 413 | D142: 423.5 | E142: 398.05 | F142: 413.45 | G142: 416 | H142: 399.3 | I142: 5448 | J142: 2244823.45 | K142: 2020-04-08 | L142: 638 | M142: INE449A01011
A143: AUTOIND | B143: EQ | C143: 11.3 | D143: 11.35 | E143: 11.1 | F143: 11.35 | G143: 11.35 | H143: 10.85 | I143: 9358 | J143: 105383.05 | K143: 2020-04-08 | L143: 68 | M143: INE718H01014
A144: AUTOLITIND | B144: EQ | C144: 13.2 | D144: 14.4 | E144: 13.2 | F144: 13.8 | G144: 13.9 | H144: 13.75 | I144: 4699 | J144: 65525.8 | K144: 2020-04-08 | L144: 68 | M144: INE448A01013
A145: AVADHSUGAR | B145: EQ | C145: 143.55 | D145: 143.55 | E145: 143.55 | F145: 143.55 | G145: 143.55 | H145: 136.75 | I145: 13174 | J145: 1891127.7 | K145: 2020-04-08 | L145: 157 | M145: INE349W01017
A146: AVANTIFEED | B146: EQ | C146: 311 | D146: 341.55 | E146: 310.5 | F146: 341.35 | G146: 341.55 | H146: 310.5 | I146: 748404 | J146: 246839085.1 | K146: 2020-04-08 | L146: 23272 | M146: INE871C01038
A147: AVTNPL | B147: EQ | C147: 25.45 | D147: 27.8 | E147: 24.25 | F147: 27.25 | G147: 27 | H147: 25.05 | I147: 213540 | J147: 5643644.4 | K147: 2020-04-08 | L147: 1601 | M147: INE488D01021
A148: AXISBANK | B148: EQ | C148: 383.75 | D148: 427.7 | E148: 373.5 | F148: 391.35 | G148: 391.4 | H148: 388.85 | I148: 64930772 | J148: 2.575974593e+10 | K148: 2020-04-08 | L148: 769506 | M148: INE238A01034
A149: AXISCADES | B149: EQ | C149: 30.9 | D149: 31.5 | E149: 28.65 | F149: 31.4 | G149: 31.5 | H149: 30 | I149: 39670 | J149: 1232336.75 | K149: 2020-04-08 | L149: 621 | M149: INE555B01013
A150: AXISGOLD | B150: EQ | C150: 3969.9 | D150: 3989 | E150: 3925 | F150: 3973.3 | G150: 3983 | H150: 3919.55 | I150: 701 | J150: 2769851.6 | K150: 2020-04-08 | L150: 206 | M150: INF846K01347
A151: AXISNIFTY | B151: EQ | C151: 1000.01 | D151: 1000.01 | E151: 1000.01 | F151: 1000.01 | G151: 1000.01 | H151: 1007 | I151: 2 | J151: 2000.02 | K151: 2020-04-08 | L151: 1 | M151: INF846K01ZL0
A152: AYMSYNTEX | B152: EQ | C152: 15.5 | D152: 16.8 | E152: 15.5 | F152: 16.5 | G152: 16.5 | H152: 16.1 | I152: 2637 | J152: 43548.55 | K152: 2020-04-08 | L152: 26 | M152: INE193B01039
A153: BAFNAPH | B153: EQ | C153: 16.05 | D153: 16.05 | E153: 16.05 | F153: 16.05 | G153: 16.05 | H153: 15.3 | I153: 272 | J153: 4365.6 | K153: 2020-04-08 | L153: 8 | M153: INE878I01022
A154: BAGFILMS | B154: BE | C154: 1.75 | D154: 1.8 | E154: 1.75 | F154: 1.8 | G154: 1.8 | H154: 1.75 | I154: 3861 | J154: 6912.3 | K154: 2020-04-08 | L154: 20 | M154: INE116D01028
A155: BAJAJ-AUTO | B155: EQ | C155: 2180 | D155: 2383.45 | E155: 2168.55 | F155: 2241.7 | G155: 2260 | H155: 2280.05 | I155: 840875 | J155: 1933266167 | K155: 2020-04-08 | L155: 59866 | M155: INE917I01010
A156: BAJAJCON | B156: EQ | C156: 136 | D156: 148.65 | E156: 135.1 | F156: 137.95 | G156: 138 | H156: 138.15 | I156: 1031633 | J156: 145711259.1 | K156: 2020-04-08 | L156: 26102 | M156: INE933K01021
A157: BAJAJELEC | B157: EQ | C157: 277.3 | D157: 294.5 | E157: 277.3 | F157: 287.8 | G157: 289 | H157: 277.3 | I157: 58251 | J157: 16797537.55 | K157: 2020-04-08 | L157: 3821 | M157: INE193E01025
A158: BAJAJFINSV | B158: EQ | C158: 4575 | D158: 4950 | E158: 4537.8 | F158: 4608.5 | G158: 4604 | H158: 4724.9 | I158: 1113057 | J158: 5259493342 | K158: 2020-04-08 | L158: 158158 | M158: INE918I01018
A159: BAJAJHIND | B159: EQ | C159: 3.05 | D159: 3.05 | E159: 3.05 | F159: 3.05 | G159: 3.05 | H159: 2.95 | I159: 80900 | J159: 246745 | K159: 2020-04-08 | L159: 110 | M159: INE306A01021
A160: BAJAJHLDNG | B160: EQ | C160: 2027.95 | D160: 2073.85 | E160: 1925 | F160: 2024.75 | G160: 2025 | H160: 1978.9 | I160: 25453 | J160: 51363834.45 | K160: 2020-04-08 | L160: 6198 | M160: INE118A01012
A161: BAJFINANCE | B161: EQ | C161: 2184 | D161: 2374 | E161: 2144.15 | F161: 2332.9 | G161: 2329 | H161: 2253.35 | I161: 9109346 | J161: 2.088826331e+10 | K161: 2020-04-08 | L161: 516967 | M161: INE296A01024
A162: BALAJITELE | B162: EQ | C162: 43 | D162: 45 | E162: 40.8 | F162: 41.9 | G162: 42.15 | H162: 43.75 | I162: 194912 | J162: 8414452.4 | K162: 2020-04-08 | L162: 1677 | M162: INE794B01026
A163: BALAMINES | B163: EQ | C163: 277 | D163: 296 | E163: 260.4 | F163: 283.65 | G163: 284.45 | H163: 271.2 | I163: 70594 | J163: 20058887.5 | K163: 2020-04-08 | L163: 2337 | M163: INE050E01027
A164: BALAXI | B164: BE | C164: 82.7 | D164: 82.7 | E164: 75.05 | F164: 79.9 | G164: 79.9 | H164: 79 | I164: 1047 | J164: 78761.9 | K164: 2020-04-08 | L164: 24 | M164: INE618N01014
A165: BALKRISHNA | B165: EQ | C165: 8.6 | D165: 8.8 | E165: 8.35 | F165: 8.8 | G165: 8.8 | H165: 8.4 | I165: 7860 | J165: 67624.35 | K165: 2020-04-08 | L165: 49 | M165: INE875R01011
A166: BALKRISIND | B166: EQ | C166: 822 | D166: 862 | E166: 815 | F166: 821.35 | G166: 818.3 | H166: 823.55 | I166: 444079 | J166: 371870250.3 | K166: 2020-04-08 | L166: 24462 | M166: INE787D01026
A167: BALLARPUR | B167: EQ | C167: 0.4 | D167: 0.4 | E167: 0.3 | F167: 0.35 | G167: 0.35 | H167: 0.35 | I167: 9769871 | J167: 3419941.15 | K167: 2020-04-08 | L167: 514 | M167: INE294A01037
A168: BALMLAWRIE | B168: EQ | C168: 84 | D168: 87.9 | E168: 81 | F168: 84.75 | G168: 85.65 | H168: 85.5 | I168: 202053 | J168: 17357055.25 | K168: 2020-04-08 | L168: 3105 | M168: INE164A01016
A169: BALPHARMA | B169: EQ | C169: 38.9 | D169: 41.7 | E169: 38.9 | F169: 41.7 | G169: 41.7 | H169: 37.95 | I169: 40933 | J169: 1688199.5 | K169: 2020-04-08 | L169: 518 | M169: INE083D01012
A170: BALRAMCHIN | B170: EQ | C170: 123.85 | D170: 126.4 | E170: 123 | F170: 126.4 | G170: 126.4 | H170: 120.4 | I170: 642515 | J170: 80884980.2 | K170: 2020-04-08 | L170: 7125 | M170: INE119A01028
A171: BANARBEADS | B171: EQ | C171: 30.25 | D171: 32.5 | E171: 29.6 | F171: 29.75 | G171: 29.75 | H171: 31.5 | I171: 160 | J171: 4873.85 | K171: 2020-04-08 | L171: 26 | M171: INE655B01011
A172: BANARISUG | B172: EQ | C172: 900 | D172: 925 | E172: 880 | F172: 886.1 | G172: 880 | H172: 893.1 | I172: 410 | J172: 368979.1 | K172: 2020-04-08 | L172: 94 | M172: INE459A01010
A173: BANCOINDIA | B173: EQ | C173: 65.45 | D173: 67.5 | E173: 64.1 | F173: 65.95 | G173: 66 | H173: 65.45 | I173: 40062 | J173: 2654130.6 | K173: 2020-04-08 | L173: 1013 | M173: INE213C01025
A174: BANDHANBNK | B174: EQ | C174: 167.95 | D174: 209.05 | E174: 167.5 | F174: 193.75 | G174: 195.25 | H174: 167.25 | I174: 30692919 | J174: 5833285762 | K174: 2020-04-08 | L174: 332020 | M174: INE545U01014
A175: BANG | B175: EQ | C175: 12.05 | D175: 13.1 | E175: 11.9 | F175: 13.1 | G175: 13.1 | H175: 12.5 | I175: 1590 | J175: 20489 | K175: 2020-04-08 | L175: 31 | M175: INE863I01016
A176: BANKBARODA | B176: EQ | C176: 48 | D176: 51.5 | E176: 47.3 | F176: 48.35 | G176: 48.45 | H176: 48.15 | I176: 27159204 | J176: 1340103716 | K176: 2020-04-08 | L176: 77070 | M176: INE028A01039
A177: BANKBEES | B177: EQ | C177: 190 | D177: 205.4 | E177: 186.06 | F177: 191.28 | G177: 191.4 | H177: 192.12 | I177: 676832 | J177: 131368353.2 | K177: 2020-04-08 | L177: 10023 | M177: INF204KB15I9
A178: BANKINDIA | B178: EQ | C178: 32.7 | D178: 34.75 | E178: 32.5 | F178: 33.35 | G178: 33.25 | H178: 32.95 | I178: 1236627 | J178: 41574499.75 | K178: 2020-04-08 | L178: 6257 | M178: INE084A01016
A179: BANSWRAS | B179: EQ | C179: 77.4 | D179: 77.4 | E179: 70.2 | F179: 71.15 | G179: 70.2 | H179: 73.75 | I179: 22922 | J179: 1667255.55 | K179: 2020-04-08 | L179: 137 | M179: INE629D01012
A180: BASF | B180: EQ | C180: 1154 | D180: 1154 | E180: 1105 | F180: 1119.95 | G180: 1120.5 | H180: 1138.25 | I180: 26139 | J180: 29425244.35 | K180: 2020-04-08 | L180: 2640 | M180: INE373A01013
A181: BASML | B181: EQ | C181: 74.05 | D181: 84 | E181: 74.05 | F181: 80 | G181: 80 | H181: 78.7 | I181: 1648 | J181: 135366.45 | K181: 2020-04-08 | L181: 154 | M181: INE186H01014
A182: BATAINDIA | B182: EQ | C182: 1246.5 | D182: 1339 | E182: 1228 | F182: 1240.05 | G182: 1238.95 | H182: 1246.4 | I182: 1346088 | J182: 1726485633 | K182: 2020-04-08 | L182: 66274 | M182: INE176A01028
A183: BAYERCROP | B183: EQ | C183: 3500 | D183: 3946.6 | E183: 3499.3 | F183: 3818.15 | G183: 3772.15 | H183: 3510 | I183: 32833 | J183: 125437264 | K183: 2020-04-08 | L183: 6737 | M183: INE462A01022
A184: BBL | B184: EQ | C184: 590 | D184: 621.25 | E184: 590 | F184: 613.05 | G184: 621.25 | H184: 589.55 | I184: 9335 | J184: 5684085.45 | K184: 2020-04-08 | L184: 804 | M184: INE464A01028
A185: BBTC | B185: EQ | C185: 810 | D185: 854.3 | E185: 774 | F185: 784.2 | G185: 787.95 | H185: 788.4 | I185: 76612 | J185: 62014517.65 | K185: 2020-04-08 | L185: 5281 | M185: INE050A01025
A186: BCG | B186: EQ | C186: 3.6 | D186: 3.65 | E186: 3.55 | F186: 3.65 | G186: 3.65 | H186: 3.5 | I186: 305718 | J186: 1113234.95 | K186: 2020-04-08 | L186: 149 | M186: INE425B01027
A187: BCP | B187: EQ | C187: 10.75 | D187: 10.75 | E187: 10.5 | F187: 10.75 | G187: 10.75 | H187: 10.25 | I187: 8192 | J187: 87934.6 | K187: 2020-04-08 | L187: 28 | M187: INE905P01028
A188: BDL | B188: EQ | C188: 191 | D188: 229 | E188: 188.2 | F188: 218.2 | G188: 216.4 | H188: 191.4 | I188: 448405 | J188: 97968192.25 | K188: 2020-04-08 | L188: 13672 | M188: INE171Z01018
A189: BEARDSELL | B189: EQ | C189: 6.7 | D189: 7.3 | E189: 6.7 | F189: 7.3 | G189: 7.3 | H189: 7.05 | I189: 1250 | J189: 8417 | K189: 2020-04-08 | L189: 4 | M189: INE520H01022
A190: BEDMUTHA | B190: EQ | C190: 12.8 | D190: 13.05 | E190: 12.45 | F190: 12.45 | G190: 12.45 | H190: 13.1 | I190: 19584 | J190: 245429.15 | K190: 2020-04-08 | L190: 32 | M190: INE844K01012
A191: BEL | B191: EQ | C191: 69 | D191: 71.3 | E191: 65.1 | F191: 66.4 | G191: 66.5 | H191: 69 | I191: 16699885 | J191: 1138705070 | K191: 2020-04-08 | L191: 69587 | M191: INE263A01024
A192: BEML | B192: EQ | C192: 492 | D192: 523.5 | E192: 492 | F192: 503.6 | G192: 503 | H192: 475.95 | I192: 890527 | J192: 458689246.6 | K192: 2020-04-08 | L192: 23670 | M192: INE258A01016
A193: BEPL | B193: EQ | C193: 31 | D193: 32.75 | E193: 30.3 | F193: 31.25 | G193: 31.6 | H193: 30.25 | I193: 333595 | J193: 10578641.1 | K193: 2020-04-08 | L193: 3321 | M193: INE922A01025
A194: BERGEPAINT | B194: EQ | C194: 479.9 | D194: 487.65 | E194: 460 | F194: 463.5 | G194: 462 | H194: 479.2 | I194: 1729062 | J194: 817908730.6 | K194: 2020-04-08 | L194: 32950 | M194: INE463A01038
A195: BFINVEST | B195: EQ | C195: 258 | D195: 268.8 | E195: 244.6 | F195: 246.3 | G195: 248.95 | H195: 257.45 | I195: 4938 | J195: 1236639.95 | K195: 2020-04-08 | L195: 244 | M195: INE878K01010
A196: BFUTILITIE | B196: EQ | C196: 158.35 | D196: 158.35 | E196: 151.05 | F196: 154.05 | G196: 153.7 | H196: 150.85 | I196: 138134 | J196: 21700813.75 | K196: 2020-04-08 | L196: 1649 | M196: INE243D01012
A197: BGRENERGY | B197: EQ | C197: 22.1 | D197: 22.85 | E197: 20.95 | F197: 21.1 | G197: 21.15 | H197: 22.2 | I197: 172282 | J197: 3763089.75 | K197: 2020-04-08 | L197: 1108 | M197: INE661I01014
A198: BHAGERIA | B198: EQ | C198: 85 | D198: 91.05 | E198: 80.65 | F198: 81.6 | G198: 82.3 | H198: 84.2 | I198: 34795 | J198: 2944870.7 | K198: 2020-04-08 | L198: 925 | M198: INE354C01027
A199: BHAGYANGR | B199: EQ | C199: 14.05 | D199: 15.2 | E199: 14 | F199: 14.4 | G199: 14.4 | H199: 14.4 | I199: 1338 | J199: 19622.25 | K199: 2020-04-08 | L199: 50 | M199: INE458B01036
A200: BHAGYAPROP | B200: EQ | C200: 18 | D200: 20 | E200: 18 | F200: 20 | G200: 20 | H200: 19 | I200: 999 | J200: 19011 | K200: 2020-04-08 | L200: 5 | M200: INE363W01018
... 1470 more rows

Sheet Sheet1 (hidden)

Sheet Sheet3 (hidden)

Sheet Sheet4 (hidden)

Sheet Sheet5 (hidden)
